Workbook

Sheet 1组 (hidden)
C1: 1组 | D1: 新
C2: 2组 | D2: 旧
C3: 3组
C4: 4组
C5: 5组
A6: 2016侨益股份有限公司货代事业部到货量统计表
A7: 客服组 | B7: 业务类型 | C7: 客户 | D7: 货名 | E7: 2016预算（集）吨 | F7: 2016预算（散）吨 | G7: 预计集装箱货量1月 | H7: 预计散船货量1月 | I7: 预计货量合计1月 | J7: 实际集装箱货量1月 | K7: 实际散船货量1月 | L7: 实际货量合计1月 | M7: 预计集装箱货量2月 | N7: 预计散船货量2月 | O7: 预计货量合计2月 | P7: 实际集装箱货量2月 | Q7: 实际散船货量2月 | R7: 实际货量合计2月 | S7: 预计集装箱货量3月 | T7: 预计散船货量3月 | U7: 预计货量合计3月 | V7: 实际集装箱货量3月 | W7: 实际散船货量3月 | X7: 实际货量合计3月 | Y7: 预计集装箱货量4月 | Z7: 预计散船货量4月 | AA7: 预计货量合计4月 | AB7: 实际集装箱货量4月 | AC7: 实际散船货量4月 | AD7: 实际货量合计4月 | AE7: 预计集装箱货量5月 | AF7: 预计散船货量5月 | AG7: 预计货量合计5月 | AH7: 实际集装箱货量5月 | AI7: 实际散船货量5月 | AJ7: 实际货量合计5月 | AK7: 预计集装箱货量6月 | AL7: 预计散船货量6月 | AM7: 预计货量合计6月 | AN7: 实际集装箱货量6月 | AO7: 实际散船货量6月 | AP7: 实际货量合计6月 | AQ7: 预计集装箱货量7月 | AR7: 预计散船货量7月 | AS7: 预计货量合计7月 | AT7: 实际集装箱货量7月 | AU7: 实际散船货量7月 | AV7: 实际货量合计7月 | AW7: 预计集装箱货量8月 | AX7: 预计散船货量8月 | AY7: 预计货量合计8月 | AZ7: 实际集装箱货量8月 | BA7: 实际散船货量8月 | BB7: 实际货量合计8月 | BC7: 预计集装箱货量9月 | BD7: 预计散船货量9月 | BE7: 预计货量合计9月 | BF7: 实际集装箱货量9月 | BG7: 实际散船货量9月 | BH7: 实际货量合计9月 | BI7: 预计集装箱货量10月 | BJ7: 预计散船货量10月 | BK7: 预计货量合计10月 | BL7: 实际集装箱货量10月 | BM7: 实际散船货量10月 | BN7: 实际货量合计10月 | BO7: 预计集装箱货量11月 | BP7: 预计散船货量11月 | BQ7: 预计货量合计11月 | BR7: 实际集装箱货量11月 | BS7: 实际散船货量11月 | BT7: 实际货量合计11月 | BU7: 预计集装箱货量12月 | BV7: 预计散船货量12月 | BW7: 预计货量合计12月 | BX7: 实际集装箱货量12月 | BY7: 实际散船货量12月 | BZ7: 实际货量合计12月 | CA7: 实际集装箱货量全年 | CB7: 实际散船货量全年 | CC7: 实际货量合计全年
A8: 1组 | B8: 旧 | C8: 大连北大荒 | D8: 高粱 | E8: 0 | F8: 100000 | G8: 0 | H8: 50633 | I8: =SUM(G8:H8) -> 50633 | J8: 0 | K8: 0 | L8: =SUM(J8:K8) -> 0 | M8: 0 | N8: 0 | O8: =SUM(M8:N8) -> 0 | P8: 0 | Q8: 0 | R8: =SUM(P8:Q8) -> 0 | S8: 0 | T8: 0 | U8: =SUM(S8:T8) -> 0 | V8: 0 | W8: 0 | X8: =SUM(V8:W8) -> 0 | Y8: 0 | Z8: 0 | AA8: =SUM(Y8:Z8) -> 0 | AB8: 0 | AC8: 0 | AD8: =SUM(AB8:AC8) -> 0 | AE8: 0 | AF8: 0 | AG8: =SUM(AE8:AF8) -> 0 | AH8: 0 | AI8: 0 | AJ8: =SUM(AH8:AI8) -> 0 | AK8: 0 | AL8: 0 | AM8: =SUM(AK8:AL8) -> 0 | AN8: 0 | AO8: 0 | AP8: =SUM(AN8:AO8) -> 0 | AQ8: 0 | AR8: 0 | AS8: =SUM(AQ8:AR8) -> 0 | AT8: 0 | AU8: 0 | AV8: =SUM(AT8:AU8) -> 0 | AW8: 0 | AX8: 0 | AY8: =SUM(AW8:AX8) -> 0 | AZ8: 0 | BA8: 0 | BB8: =SUM(AZ8:BA8) -> 0 | BC8: 0 | BD8: 0 | BE8: =SUM(BC8:BD8) -> 0 | BF8: 0 | BG8: 0 | BH8: =SUM(BF8:BG8) -> 0 | BI8: 0 | BJ8: 0 | BK8: =SUM(BI8:BJ8) -> 0 | BL8: 0 | BM8: 0 | BN8: =SUM(BL8:BM8) -> 0 | BO8: 0 | BP8: 0 | BQ8: =SUM(BO8:BP8) -> 0 | BR8: 0 | BS8: 0 | BT8: =SUM(BR8:BS8) -> 0 | BU8: 0 | BV8: 0 | BW8: =SUM(BU8:BV8) -> 0 | BX8: 0 | BY8: 0 | BZ8: =SUM(BX8:BY8) -> 0 | CA8: =J8+P8+V8+AB8+AH8+AN8+AT8+AZ8+BF8+BL8+BR8+BX8 -> 0 | CB8: =K8+Q8+W8+AC8+AI8+AO8+AU8+BA8+BG8+BM8+BS8+BY8 -> 0 | CC8: =SUM(CA8:CB8) -> 0
A9: 1组 | B9: 旧 | C9: 广东俊杰 | D9: DDGS | E9: 0 | F9: 50000 | G9: 0 | H9: 0 | I9: 0 | J9: 0 | K9: 0 | L9: 0 | M9: 0 | N9: 0 | O9: 0 | P9: 0 | Q9: 0 | R9: 0 | S9: 0 | T9: 0 | U9: 0 | V9: 0 | W9: 0 | X9: 0 | Y9: 0 | Z9: 0 | AA9: 0 | AB9: 0 | AC9: 0 | AD9: 0 | AE9: 0 | AF9: 0 | AG9: 0 | AH9: 0 | AI9: 0 | AJ9: 0 | AK9: 0 | AL9: 0 | AM9: 0 | AN9: 0 | AO9: 0 | AP9: 0 | AQ9: 0 | AR9: 0 | AS9: 0 | AT9: 0 | AU9: 0 | AV9: 0 | AW9: 0 | AX9: 0 | AY9: 0 | AZ9: 0 | BA9: 0 | BB9: 0 | BC9: 0 | BD9: 0 | BE9: 0 | BF9: 0 | BG9: 0 | BH9: 0 | BI9: 0 | BJ9: 0 | BK9: 0 | BL9: 0 | BM9: 0 | BN9: 0 | BO9: 0 | BP9: 0 | BQ9: 0 | BR9: 0 | BS9: 0 | BT9: 0 | BU9: 0 | BV9: 0 | BW9: 0 | BX9: 0 | BY9: 0 | BZ9: 0 | CA9: 0 | CB9: 0 | CC9: 0
A10: 1组 | B10: 旧 | C10: 广东俊杰 | D10: 大麦 | E10: 0 | F10: 50000 | G10: 0 | H10: 0 | I10: 0 | J10: 0 | K10: 0 | L10: 0 | M10: 0 | N10: 0 | O10: 0 | P10: 0 | Q10: 0 | R10: 0 | S10: 0 | T10: 0 | U10: 0 | V10: 0 | W10: 0 | X10: 0 | Y10: 0 | Z10: 0 | AA10: 0 | AB10: 0 | AC10: 0 | AD10: 0 | AE10: 0 | AF10: 0 | AG10: 0 | AH10: 0 | AI10: 0 | AJ10: 0 | AK10: 0 | AL10: 0 | AM10: 0 | AN10: 0 | AO10: 0 | AP10: 0 | AQ10: 0 | AR10: 0 | AS10: 0 | AT10: 0 | AU10: 0 | AV10: 0 | AW10: 0 | AX10: 0 | AY10: 0 | AZ10: 0 | BA10: 0 | BB10: 0 | BC10: 0 | BD10: 0 | BE10: 0 | BF10: 0 | BG10: 0 | BH10: 0 | BI10: 0 | BJ10: 0 | BK10: 0 | BL10: 0 | BM10: 0 | BN10: 0 | BO10: 0 | BP10: 0 | BQ10: 0 | BR10: 0 | BS10: 0 | BT10: 0 | BU10: 0 | BV10: 0 | BW10: 0 | BX10: 0 | BY10: 0 | BZ10: 0 | CA10: 0 | CB10: 0 | CC10: 0
A11: 1组 | B11: 旧 | C11: 广东俊杰 | D11: 高粱 | E11: 0 | F11: 50000 | G11: 0 | H11: 0 | I11: 0 | J11: 0 | K11: 0 | L11: 0 | M11: 0 | N11: 0 | O11: 0 | P11: 0 | Q11: 0 | R11: 0 | S11: 0 | T11: 0 | U11: 0 | V11: 0 | W11: 0 | X11: 0 | Y11: 0 | Z11: 0 | AA11: 0 | AB11: 0 | AC11: 0 | AD11: 0 | AE11: 0 | AF11: 0 | AG11: 0 | AH11: 0 | AI11: 0 | AJ11: 0 | AK11: 0 | AL11: 0 | AM11: 0 | AN11: 0 | AO11: 0 | AP11: 0 | AQ11: 0 | AR11: 0 | AS11: 0 | AT11: 0 | AU11: 0 | AV11: 0 | AW11: 0 | AX11: 0 | AY11: 0 | AZ11: 0 | BA11: 0 | BB11: 0 | BC11: 0 | BD11: 0 | BE11: 0 | BF11: 0 | BG11: 0 | BH11: 0 | BI11: 0 | BJ11: 0 | BK11: 0 | BL11: 0 | BM11: 0 | BN11: 0 | BO11: 0 | BP11: 0 | BQ11: 0 | BR11: 0 | BS11: 0 | BT11: 0 | BU11: 0 | BV11: 0 | BW11: 0 | BX11: 0 | BY11: 0 | BZ11: 0 | CA11: 0 | CB11: 0 | CC11: 0
A12: 1组 | B12: 旧 | C12: 山东鸿进 | D12: DDGS | E12: 12000 | F12: 0 | G12: 3000 | H12: 0 | I12: 3000 | J12: 0 | K12: 0 | L12: 0 | M12: 0 | N12: 0 | O12: 0 | P12: 0 | Q12: 0 | R12: 0 | S12: 0 | T12: 0 | U12: 0 | V12: 0 | W12: 0 | X12: 0 | Y12: 0 | Z12: 0 | AA12: 0 | AB12: 0 | AC12: 0 | AD12: 0 | AE12: 0 | AF12: 0 | AG12: 0 | AH12: 0 | AI12: 0 | AJ12: 0 | AK12: 0 | AL12: 0 | AM12: 0 | AN12: 0 | AO12: 0 | AP12: 0 | AQ12: 0 | AR12: 0 | AS12: 0 | AT12: 0 | AU12: 0 | AV12: 0 | AW12: 0 | AX12: 0 | AY12: 0 | AZ12: 0 | BA12: 0 | BB12: 0 | BC12: 0 | BD12: 0 | BE12: 0 | BF12: 0 | BG12: 0 | BH12: 0 | BI12: 0 | BJ12: 0 | BK12: 0 | BL12: 0 | BM12: 0 | BN12: 0 | BO12: 0 | BP12: 0 | BQ12: 0 | BR12: 0 | BS12: 0 | BT12: 0 | BU12: 0 | BV12: 0 | BW12: 0 | BX12: 0 | BY12: 0 | BZ12: 0 | CA12: 0 | CB12: 0 | CC12: 0
A13: 1组 | B13: 旧 | C13: 上海浦耀 | D13: DDGS | E13: 10000 | F13: 0 | G13: 3000 | H13: 0 | I13: 3000 | J13: 0 | K13: 0 | L13: 0 | M13: 0 | N13: 0 | O13: 0 | P13: 0 | Q13: 0 | R13: 0 | S13: 0 | T13: 0 | U13: 0 | V13: 0 | W13: 0 | X13: 0 | Y13: 0 | Z13: 0 | AA13: 0 | AB13: 0 | AC13: 0 | AD13: 0 | AE13: 0 | AF13: 0 | AG13: 0 | AH13: 0 | AI13: 0 | AJ13: 0 | AK13: 0 | AL13: 0 | AM13: 0 | AN13: 0 | AO13: 0 | AP13: 0 | AQ13: 0 | AR13: 0 | AS13: 0 | AT13: 0 | AU13: 0 | AV13: 0 | AW13: 0 | AX13: 0 | AY13: 0 | AZ13: 0 | BA13: 0 | BB13: 0 | BC13: 0 | BD13: 0 | BE13: 0 | BF13: 0 | BG13: 0 | BH13: 0 | BI13: 0 | BJ13: 0 | BK13: 0 | BL13: 0 | BM13: 0 | BN13: 0 | BO13: 0 | BP13: 0 | BQ13: 0 | BR13: 0 | BS13: 0 | BT13: 0 | BU13: 0 | BV13: 0 | BW13: 0 | BX13: 0 | BY13: 0 | BZ13: 0 | CA13: 0 | CB13: 0 | CC13: 0
A14: 1组 | B14: 新 | C14: 上海浦耀 | D14: 菜籽粕 | E14: 0 | F14: 40000 | G14: 0 | H14: 0 | I14: 0 | J14: 0 | K14: 0 | L14: =SUM(J14:K14) -> 0 | M14: 0 | N14: 0 | O14: =SUM(M14:N14) -> 0 | P14: 0 | Q14: 0 | R14: =SUM(P14:Q14) -> 0 | S14: 0 | T14: 0 | U14: =SUM(S14:T14) -> 0 | V14: 0 | W14: 0 | X14: =SUM(V14:W14) -> 0 | Y14: 0 | Z14: 0 | AA14: =SUM(Y14:Z14) -> 0 | AB14: 0 | AC14: 0 | AD14: =SUM(AB14:AC14) -> 0 | AE14: 0 | AF14: 0 | AG14: =SUM(AE14:AF14) -> 0 | AH14: 0 | AI14: 0 | AJ14: =SUM(AH14:AI14) -> 0 | AK14: 0 | AL14: 0 | AM14: =SUM(AK14:AL14) -> 0 | AN14: 0 | AO14: 0 | AP14: =SUM(AN14:AO14) -> 0 | AQ14: 0 | AR14: 0 | AS14: =SUM(AQ14:AR14) -> 0 | AT14: 0 | AU14: 0 | AV14: =SUM(AT14:AU14) -> 0 | AW14: 0 | AX14: 0 | AY14: =SUM(AW14:AX14) -> 0 | AZ14: 0 | BA14: 0 | BB14: =SUM(AZ14:BA14) -> 0 | BC14: 0 | BD14: 0 | BE14: =SUM(BC14:BD14) -> 0 | BF14: 0 | BG14: 0 | BH14: =SUM(BF14:BG14) -> 0 | BI14: 0 | BJ14: 0 | BK14: =SUM(BI14:BJ14) -> 0 | BL14: 0 | BM14: 0 | BN14: =SUM(BL14:BM14) -> 0 | BO14: 0 | BP14: 0 | BQ14: =SUM(BO14:BP14) -> 0 | BR14: 0 | BS14: 0 | BT14: =SUM(BR14:BS14) -> 0 | BU14: 0 | BV14: 0 | BW14: =SUM(BU14:BV14) -> 0 | BX14: 0 | BY14: 0 | BZ14: =SUM(BX14:BY14) -> 0 | CA14: =J14+P14+V14+AB14+AH14+AN14+AT14+AZ14+BF14+BL14+BR14+BX14 -> 0 | CB14: =K14+Q14+W14+AC14+AI14+AO14+AU14+BA14+BG14+BM14+BS14+BY14 -> 0 | CC14: =SUM(CA14:CB14) -> 0
A15: 1组 | B15: 旧 | C15: 上海浦耀 | D15: 大豆 | E15: 36000 | F15: 0 | G15: 1000 | H15: 0 | I15: =SUM(G15:H15) -> 1000 | J15: 0 | K15: 0 | L15: 0 | M15: 0 | N15: 0 | O15: 0 | P15: 0 | Q15: 0 | R15: 0 | S15: 0 | T15: 0 | U15: 0 | V15: 0 | W15: 0 | X15: 0 | Y15: 0 | Z15: 0 | AA15: 0 | AB15: 0 | AC15: 0 | AD15: 0 | AE15: 0 | AF15: 0 | AG15: 0 | AH15: 0 | AI15: 0 | AJ15: 0 | AK15: 0 | AL15: 0 | AM15: 0 | AN15: 0 | AO15: 0 | AP15: 0 | AQ15: 0 | AR15: 0 | AS15: 0 | AT15: 0 | AU15: 0 | AV15: 0 | AW15: 0 | AX15: 0 | AY15: 0 | AZ15: 0 | BA15: 0 | BB15: 0 | BC15: 0 | BD15: 0 | BE15: 0 | BF15: 0 | BG15: 0 | BH15: 0 | BI15: 0 | BJ15: 0 | BK15: 0 | BL15: 0 | BM15: 0 | BN15: 0 | BO15: 0 | BP15: 0 | BQ15: 0 | BR15: 0 | BS15: 0 | BT15: 0 | BU15: 0 | BV15: 0 | BW15: 0 | BX15: 0 | BY15: 0 | BZ15: 0 | CA15: 0 | CB15: 0 | CC15: 0
A16: 1组 | B16: 旧 | C16: 双胞胎 | D16: 鱼粉 | E16: 49500 | F16: 0 | G16: 0 | H16: 0 | I16: 0 | J16: 0 | K16: 0 | L16: 0 | M16: 0 | N16: 0 | O16: 0 | P16: 0 | Q16: 0 | R16: 0 | S16: 0 | T16: 0 | U16: 0 | V16: 0 | W16: 0 | X16: 0 | Y16: 0 | Z16: 0 | AA16: 0 | AB16: 0 | AC16: 0 | AD16: 0 | AE16: 0 | AF16: 0 | AG16: 0 | AH16: 0 | AI16: 0 | AJ16: 0 | AK16: 0 | AL16: 0 | AM16: 0 | AN16: 0 | AO16: 0 | AP16: 0 | AQ16: 0 | AR16: 0 | AS16: 0 | AT16: 0 | AU16: 0 | AV16: 0 | AW16: 0 | AX16: 0 | AY16: 0 | AZ16: 0 | BA16: 0 | BB16: 0 | BC16: 0 | BD16: 0 | BE16: 0 | BF16: 0 | BG16: 0 | BH16: 0 | BI16: 0 | BJ16: 0 | BK16: 0 | BL16: 0 | BM16: 0 | BN16: 0 | BO16: 0 | BP16: 0 | BQ16: 0 | BR16: 0 | BS16: 0 | BT16: 0 | BU16: 0 | BV16: 0 | BW16: 0 | BX16: 0 | BY16: 0 | BZ16: 0 | CA16: 0 | CB16: 0 | CC16: 0
A17: 1组 | B17: 旧 | C17: 双胞胎 | D17: 乳清粉 | E17: 9800 | F17: 0 | G17: 0 | H17: 0 | I17: 0 | J17: 0 | K17: 0 | L17: 0 | M17: 0 | N17: 0 | O17: 0 | P17: 0 | Q17: 0 | R17: 0 | S17: 0 | T17: 0 | U17: 0 | V17: 0 | W17: 0 | X17: 0 | Y17: 0 | Z17: 0 | AA17: 0 | AB17: 0 | AC17: 0 | AD17: 0 | AE17: 0 | AF17: 0 | AG17: 0 | AH17: 0 | AI17: 0 | AJ17: 0 | AK17: 0 | AL17: 0 | AM17: 0 | AN17: 0 | AO17: 0 | AP17: 0 | AQ17: 0 | AR17: 0 | AS17: 0 | AT17: 0 | AU17: 0 | AV17: 0 | AW17: 0 | AX17: 0 | AY17: 0 | AZ17: 0 | BA17: 0 | BB17: 0 | BC17: 0 | BD17: 0 | BE17: 0 | BF17: 0 | BG17: 0 | BH17: 0 | BI17: 0 | BJ17: 0 | BK17: 0 | BL17: 0 | BM17: 0 | BN17: 0 | BO17: 0 | BP17: 0 | BQ17: 0 | BR17: 0 | BS17: 0 | BT17: 0 | BU17: 0 | BV17: 0 | BW17: 0 | BX17: 0 | BY17: 0 | BZ17: 0 | CA17: 0 | CB17: 0 | CC17: 0
A18: 1组 | B18: 旧 | C18: 新谷 | D18: DDGS | E18: 20000 | F18: 0 | G18: 4000 | H18: 0 | I18: 4000 | J18: 0 | K18: 0 | L18: 0 | M18: 0 | N18: 0 | O18: 0 | P18: 0 | Q18: 0 | R18: 0 | S18: 0 | T18: 0 | U18: 0 | V18: 0 | W18: 0 | X18: 0 | Y18: 0 | Z18: 0 | AA18: 0 | AB18: 0 | AC18: 0 | AD18: 0 | AE18: 0 | AF18: 0 | AG18: 0 | AH18: 0 | AI18: 0 | AJ18: 0 | AK18: 0 | AL18: 0 | AM18: 0 | AN18: 0 | AO18: 0 | AP18: 0 | AQ18: 0 | AR18: 0 | AS18: 0 | AT18: 0 | AU18: 0 | AV18: 0 | AW18: 0 | AX18: 0 | AY18: 0 | AZ18: 0 | BA18: 0 | BB18: 0 | BC18: 0 | BD18: 0 | BE18: 0 | BF18: 0 | BG18: 0 | BH18: 0 | BI18: 0 | BJ18: 0 | BK18: 0 | BL18: 0 | BM18: 0 | BN18: 0 | BO18: 0 | BP18: 0 | BQ18: 0 | BR18: 0 | BS18: 0 | BT18: 0 | BU18: 0 | BV18: 0 | BW18: 0 | BX18: 0 | BY18: 0 | BZ18: 0 | CA18: 0 | CB18: 0 | CC18: 0
A19: 1组 | B19: 旧 | C19: 新谷 | D19: 高粱 | E19: 0 | F19: 250000 | G19: 0 | H19: 78000 | I19: 78000 | J19: 0 | K19: 0 | L19: 0 | M19: 0 | N19: 0 | O19: 0 | P19: 0 | Q19: 0 | R19: 0 | S19: 0 | T19: 0 | U19: 0 | V19: 0 | W19: 0 | X19: 0 | Y19: 0 | Z19: 0 | AA19: 0 | AB19: 0 | AC19: 0 | AD19: 0 | AE19: 0 | AF19: 0 | AG19: 0 | AH19: 0 | AI19: 0 | AJ19: 0 | AK19: 0 | AL19: 0 | AM19: 0 | AN19: 0 | AO19: 0 | AP19: 0 | AQ19: 0 | AR19: 0 | AS19: 0 | AT19: 0 | AU19: 0 | AV19: 0 | AW19: 0 | AX19: 0 | AY19: 0 | AZ19: 0 | BA19: 0 | BB19: 0 | BC19: 0 | BD19: 0 | BE19: 0 | BF19: 0 | BG19: 0 | BH19: 0 | BI19: 0 | BJ19: 0 | BK19: 0 | BL19: 0 | BM19: 0 | BN19: 0 | BO19: 0 | BP19: 0 | BQ19: 0 | BR19: 0 | BS19: 0 | BT19: 0 | BU19: 0 | BV19: 0 | BW19: 0 | BX19: 0 | BY19: 0 | BZ19: 0 | CA19: 0 | CB19: 0 | CC19: 0
A20: 1组 | B20: 旧 | C20: 中国国投 | D20: DDGS | E20: 5500 | F20: 0 | G20: 4000 | H20: 0 | I20: 4000 | J20: 0 | K20: 0 | L20: 0 | M20: 0 | N20: 0 | O20: 0 | P20: 0 | Q20: 0 | R20: 0 | S20: 0 | T20: 0 | U20: 0 | V20: 0 | W20: 0 | X20: 0 | Y20: 0 | Z20: 0 | AA20: 0 | AB20: 0 | AC20: 0 | AD20: 0 | AE20: 0 | AF20: 0 | AG20: 0 | AH20: 0 | AI20: 0 | AJ20: 0 | AK20: 0 | AL20: 0 | AM20: 0 | AN20: 0 | AO20: 0 | AP20: 0 | AQ20: 0 | AR20: 0 | AS20: 0 | AT20: 0 | AU20: 0 | AV20: 0 | AW20: 0 | AX20: 0 | AY20: 0 | AZ20: 0 | BA20: 0 | BB20: 0 | BC20: 0 | BD20: 0 | BE20: 0 | BF20: 0 | BG20: 0 | BH20: 0 | BI20: 0 | BJ20: 0 | BK20: 0 | BL20: 0 | BM20: 0 | BN20: 0 | BO20: 0 | BP20: 0 | BQ20: 0 | BR20: 0 | BS20: 0 | BT20: 0 | BU20: 0 | BV20: 0 | BW20: 0 | BX20: 0 | BY20: 0 | BZ20: 0 | CA20: 0 | CB20: 0 | CC20: 0
A21: 1组 | B21: 新 | C21: 中国国投 | D21: 鱼粉 | E21: 15000 | F21: 0 | G21: 300 | H21: 0 | I21: =SUM(G21,H21) -> 300 | J21: 0 | K21: 0 | L21: 0 | M21: 0 | N21: 0 | O21: 0 | P21: 0 | Q21: 0 | R21: 0 | S21: 0 | T21: 0 | U21: 0 | V21: 0 | W21: 0 | X21: 0 | Y21: 0 | Z21: 0 | AA21: 0 | AB21: 0 | AC21: 0 | AD21: 0 | AE21: 0 | AF21: 0 | AG21: 0 | AH21: 0 | AI21: 0 | AJ21: 0 | AK21: 0 | AL21: 0 | AM21: 0 | AN21: 0 | AO21: 0 | AP21: 0 | AQ21: 0 | AR21: 0 | AS21: 0 | AT21: 0 | AU21: 0 | AV21: 0 | AW21: 0 | AX21: 0 | AY21: 0 | AZ21: 0 | BA21: 0 | BB21: 0 | BC21: 0 | BD21: 0 | BE21: 0 | BF21: 0 | BG21: 0 | BH21: 0 | BI21: 0 | BJ21: 0 | BK21: 0 | BL21: 0 | BM21: 0 | BN21: 0 | BO21: 0 | BP21: 0 | BQ21: 0 | BR21: 0 | BS21: 0 | BT21: 0 | BU21: 0 | BV21: 0 | BW21: 0 | BX21: 0 | BY21: 0 | BZ21: 0 | CA21: 0 | CB21: 0 | CC21: 0
A22: 1组 | B22: 新 | C22: 上海优海 | D22: DDGS | E22: 0 | F22: 0 | G22: 1000 | H22: 0 | I22: =SUM(G22:H22) -> 1000 | J22: 0 | K22: 0 | L22: 0 | M22: 0 | N22: 0 | O22: 0 | P22: 0 | Q22: 0 | R22: 0 | S22: 0 | T22: 0 | U22: 0 | V22: 0 | W22: 0 | X22: 0 | Y22: 0 | Z22: 0 | AA22: 0 | AB22: 0 | AC22: 0 | AD22: 0 | AE22: 0 | AF22: 0 | AG22: 0 | AH22: 0 | AI22: 0 | AJ22: 0 | AK22: 0 | AL22: 0 | AM22: 0 | AN22: 0 | AO22: 0 | AP22: 0 | AQ22: 0 | AR22: 0 | AS22: 0 | AT22: 0 | AU22: 0 | AV22: 0 | AW22: 0 | AX22: 0 | AY22: 0 | AZ22: 0 | BA22: 0 | BB22: 0 | BC22: 0 | BD22: 0 | BE22: 0 | BF22: 0 | BG22: 0 | BH22: 0 | BI22: 0 | BJ22: 0 | BK22: 0 | BL22: 0 | BM22: 0 | BN22: 0 | BO22: 0 | BP22: 0 | BQ22: 0 | BR22: 0 | BS22: 0 | BT22: 0 | BU22: 0 | BV22: 0 | BW22: 0 | BX22: 0 | BY22: 0 | BZ22: 0 | CA22: 0 | CB22: 0 | CC22: 0
A23: 1组 | B23: 新 | C23: 新兴县 | D23: 苜蓿草 | E23: 0 | F23: 0 | G23: 0 | H23: 0 | I23: 0 | J23: 0 | K23: 0 | L23: 0 | M23: 0 | N23: 0 | O23: 0 | P23: 0 | Q23: 0 | R23: 0 | S23: 0 | T23: 0 | U23: 0 | V23: 0 | W23: 0 | X23: 0 | Y23: 0 | Z23: 0 | AA23: 0 | AB23: 0 | AC23: 0 | AD23: 0 | AE23: 0 | AF23: 0 | AG23: 0 | AH23: 0 | AI23: 0 | AJ23: 0 | AK23: 0 | AL23: 0 | AM23: 0 | AN23: 0 | AO23: 0 | AP23: 0 | AQ23: 0 | AR23: 0 | AS23: 0 | AT23: 0 | AU23: 0 | AV23: 0 | AW23: 0 | AX23: 0 | AY23: 0 | AZ23: 0 | BA23: 0 | BB23: 0 | BC23: 0 | BD23: 0 | BE23: 0 | BF23: 0 | BG23: 0 | BH23: 0 | BI23: 0 | BJ23: 0 | BK23: 0 | BL23: 0 | BM23: 0 | BN23: 0 | BO23: 0 | BP23: 0 | BQ23: 0 | BR23: 0 | BS23: 0 | BT23: 0 | BU23: 0 | BV23: 0 | BW23: 0 | BX23: 0 | BY23: 0 | BZ23: 0 | CA23: 0 | CB23: 0 | CC23: 0
A24: 1组 | B24: 新 | C24: 安徽安粮 | D24: 乳清粉 | E24: 0 | F24: 0 | G24: 500 | H24: 0 | I24: 500 | J24: 0 | K24: 0 | L24: 0 | M24: 0 | N24: 0 | O24: 0 | P24: 0 | Q24: 0 | R24: 0 | S24: 0 | T24: 0 | U24: 0 | V24: 0 | W24: 0 | X24: 0 | Y24: 0 | Z24: 0 | AA24: 0 | AB24: 0 | AC24: 0 | AD24: 0 | AE24: 0 | AF24: 0 | AG24: 0 | AH24: 0 | AI24: 0 | AJ24: 0 | AK24: 0 | AL24: 0 | AM24: 0 | AN24: 0 | AO24: 0 | AP24: 0 | AQ24: 0 | AR24: 0 | AS24: 0 | AT24: 0 | AU24: 0 | AV24: 0 | AW24: 0 | AX24: 0 | AY24: 0 | AZ24: 0 | BA24: 0 | BB24: 0 | BC24: 0 | BD24: 0 | BE24: 0 | BF24: 0 | BG24: 0 | BH24: 0 | BI24: 0 | BJ24: 0 | BK24: 0 | BL24: 0 | BM24: 0 | BN24: 0 | BO24: 0 | BP24: 0 | BQ24: 0 | BR24: 0 | BS24: 0 | BT24: 0 | BU24: 0 | BV24: 0 | BW24: 0 | BX24: 0 | BY24: 0 | BZ24: 0 | CA24: 0 | CB24: 0 | CC24: 0
C25: 合计 | E25: =SUM(E8:E24) -> 157800 | F25: 540000 | G25: 16800 | H25: 128633 | I25: =SUM(I8:I24) -> 145433 | J25: 0 | K25: 0 | L25: 0 | M25: 0 | N25: 0 | O25: 0 | P25: 0 | Q25: 0 | R25: 0 | S25: 0 | T25: 0 | U25: 0 | V25: 0 | W25: 0 | X25: 0 | Y25: 0 | Z25: 0 | AA25: 0 | AB25: 0 | AC25: 0 | AD25: 0 | AE25: 0 | AF25: 0 | AG25: 0 | AH25: 0 | AI25: 0 | AJ25: 0 | AK25: 0 | AL25: 0 | AM25: 0 | AN25: 0 | AO25: 0 | AP25: 0 | AQ25: 0 | AR25: 0 | AS25: 0 | AT25: 0 | AU25: 0 | AV25: 0 | AW25: 0 | AX25: 0 | AY25: 0 | AZ25: 0 | BA25: 0 | BB25: 0 | BC25: 0 | BD25: 0 | BE25: 0 | BF25: 0 | BG25: 0 | BH25: 0 | BI25: 0 | BJ25: 0 | BK25: 0 | BL25: 0 | BM25: 0 | BN25: 0 | BO25: 0 | BP25: 0 | BQ25: 0 | BR25: 0 | BS25: 0 | BT25: 0 | BU25: =SUM(BU8:BU24) -> 0 | BV25: 0 | BW25: 0 | BX25: 0 | BY25: 0 | BZ25: 0 | CA25: 0 | CB25: 0 | CC25: 0

Sheet 2组 (hidden)
C1: 1组 | D1: 新
C2: 2组 | D2: 旧
C3: 3组
C4: 4组
C5: 5组
A6: 2016侨益股份有限公司货代事业部到货量统计表
A7: 2组 | B7: 业务类型 | C7: 客户 | D7: 货名 | E7: 2016预算（集）吨 | F7: 2016预算（散）吨 | G7: 预计集装箱货量1月 | H7: 预计散船货量1月 | I7: 预计货量合计1月 | J7: 实际集装箱货量1月 | K7: 实际散船货量1月 | L7: 实际货量合计1月 | M7: 预计集装箱货量2月 | N7: 预计散船货量2月 | O7: 预计货量合计2月 | P7: 实际集装箱货量2月 | Q7: 实际散船货量2月 | R7: 实际货量合计2月 | S7: 预计集装箱货量3月 | T7: 预计散船货量3月 | U7: 预计货量合计3月 | V7: 实际集装箱货量3月 | W7: 实际散船货量3月 | X7: 实际货量合计3月 | Y7: 预计集装箱货量4月 | Z7: 预计散船货量4月 | AA7: 预计货量合计4月 | AB7: 实际集装箱货量4月 | AC7: 实际散船货量4月 | AD7: 实际货量合计4月 | AE7: 预计集装箱货量5月 | AF7: 预计散船货量5月 | AG7: 预计货量合计5月 | AH7: 实际集装箱货量5月 | AI7: 实际散船货量5月 | AJ7: 实际货量合计5月 | AK7: 预计集装箱货量6月 | AL7: 预计散船货量6月 | AM7: 预计货量合计6月 | AN7: 实际集装箱货量6月 | AO7: 实际散船货量6月 | AP7: 实际货量合计6月 | AQ7: 预计集装箱货量7月 | AR7: 预计散船货量7月 | AS7: 预计货量合计7月 | AT7: 实际集装箱货量7月 | AU7: 实际散船货量7月 | AV7: 实际货量合计7月 | AW7: 预计集装箱货量8月 | AX7: 预计散船货量8月 | AY7: 预计货量合计8月 | AZ7: 实际集装箱货量8月 | BA7: 实际散船货量8月 | BB7: 实际货量合计8月 | BC7: 预计集装箱货量9月 | BD7: 预计散船货量9月 | BE7: 预计货量合计9月 | BF7: 实际集装箱货量9月 | BG7: 实际散船货量9月 | BH7: 实际货量合计9月 | BI7: 预计集装箱货量10月 | BJ7: 预计散船货量10月 | BK7: 预计货量合计10月 | BL7: 实际集装箱货量10月 | BM7: 实际散船货量10月 | BN7: 实际货量合计10月 | BO7: 预计集装箱货量11月 | BP7: 预计散船货量11月 | BQ7: 预计货量合计11月 | BR7: 实际集装箱货量11月 | BS7: 实际散船货量11月 | BT7: 实际货量合计11月 | BU7: 预计集装箱货量12月 | BV7: 预计散船货量12月 | BW7: 预计货量合计12月 | BX7: 实际集装箱货量12月 | BY7: 实际散船货量12月 | BZ7: 实际货量合计12月 | CA7: 实际集装箱货量全年 | CB7: 实际散船货量全年 | CC7: 实际货量合计全年
A8: 2组 | B8: 旧 | C8: 中牧股份 | D8: DDGS | E8: 15000 | F8: 0 | G8: 7000 | H8: 0 | I8: =SUM(G8:H8) -> 7000 | J8: 0 | K8: 0 | L8: =SUM(J8:K8) -> 0 | M8: 0 | N8: 0 | O8: =SUM(M8:N8) -> 0 | P8: 0 | Q8: 0 | R8: =SUM(P8:Q8) -> 0 | S8: 0 | T8: 0 | U8: =SUM(S8:T8) -> 0 | V8: 0 | W8: 0 | X8: =SUM(V8:W8) -> 0 | Y8: 0 | Z8: 0 | AA8: =SUM(Y8:Z8) -> 0 | AB8: 0 | AC8: 0 | AD8: =SUM(AB8:AC8) -> 0 | AE8: 0 | AF8: 0 | AG8: =SUM(AE8:AF8) -> 0 | AH8: 0 | AI8: 0 | AJ8: =SUM(AH8:AI8) -> 0 | AK8: 0 | AL8: 0 | AM8: =SUM(AK8:AL8) -> 0 | AN8: 0 | AO8: 0 | AP8: =SUM(AN8:AO8) -> 0 | AQ8: 0 | AR8: 0 | AS8: =SUM(AQ8:AR8) -> 0 | AT8: 0 | AU8: 0 | AV8: =SUM(AT8:AU8) -> 0 | AW8: 0 | AX8: 0 | AY8: =SUM(AW8:AX8) -> 0 | AZ8: 0 | BA8: 0 | BB8: =SUM(AZ8:BA8) -> 0 | BC8: 0 | BD8: 0 | BE8: =SUM(BC8:BD8) -> 0 | BF8: 0 | BG8: 0 | BH8: =SUM(BF8:BG8) -> 0 | BI8: 0 | BJ8: 0 | BK8: =SUM(BI8:BJ8) -> 0 | BL8: 0 | BM8: 0 | BN8: =SUM(BL8:BM8) -> 0 | BO8: 0 | BP8: 0 | BQ8: =SUM(BO8:BP8) -> 0 | BR8: 0 | BS8: 0 | BT8: =SUM(BR8:BS8) -> 0 | BU8: 0 | BV8: 0 | BW8: =SUM(BU8:BV8) -> 0 | BX8: 0 | BY8: 0 | BZ8: =SUM(BX8:BY8) -> 0 | CA8: =J8+P8+V8+AB8+AH8+AN8+AT8+AZ8+BF8+BL8+BR8+BX8 -> 0 | CB8: =K8+Q8+W8+AC8+AI8+AO8+AU8+BA8+BG8+BM8+BS8+BY8 -> 0 | CC8: =SUM(CA8:CB8) -> 0
A9: 2组 | B9: 旧 | C9: 中牧工商 | D9: DDGS | E9: 15000 | F9: 0 | G9: 3000 | H9: 0 | I9: =SUM(G9:H9) -> 3000 | J9: 0 | K9: 0 | L9: =SUM(J9:K9) -> 0 | M9: 0 | N9: 0 | O9: =SUM(M9:N9) -> 0 | P9: 0 | Q9: 0 | R9: =SUM(P9:Q9) -> 0 | S9: 0 | T9: 0 | U9: =SUM(S9:T9) -> 0 | V9: 0 | W9: 0 | X9: =SUM(V9:W9) -> 0 | Y9: 0 | Z9: 0 | AA9: =SUM(Y9:Z9) -> 0 | AB9: 0 | AC9: 0 | AD9: =SUM(AB9:AC9) -> 0 | AE9: 0 | AF9: 0 | AG9: =SUM(AE9:AF9) -> 0 | AH9: 0 | AI9: 0 | AJ9: =SUM(AH9:AI9) -> 0 | AK9: 0 | AL9: 0 | AM9: =SUM(AK9:AL9) -> 0 | AN9: 0 | AO9: 0 | AP9: =SUM(AN9:AO9) -> 0 | AQ9: 0 | AR9: 0 | AS9: =SUM(AQ9:AR9) -> 0 | AT9: 0 | AU9: 0 | AV9: =SUM(AT9:AU9) -> 0 | AW9: 0 | AX9: 0 | AY9: =SUM(AW9:AX9) -> 0 | AZ9: 0 | BA9: 0 | BB9: =SUM(AZ9:BA9) -> 0 | BC9: 0 | BD9: 0 | BE9: =SUM(BC9:BD9) -> 0 | BF9: 0 | BG9: 0 | BH9: =SUM(BF9:BG9) -> 0 | BI9: 0 | BJ9: 0 | BK9: =SUM(BI9:BJ9) -> 0 | BL9: 0 | BM9: 0 | BN9: =SUM(BL9:BM9) -> 0 | BO9: 0 | BP9: 0 | BQ9: =SUM(BO9:BP9) -> 0 | BR9: 0 | BS9: 0 | BT9: =SUM(BR9:BS9) -> 0 | BU9: 0 | BV9: 0 | BW9: =SUM(BU9:BV9) -> 0 | BX9: 0 | BY9: 0 | BZ9: =SUM(BX9:BY9) -> 0 | CA9: 0 | CB9: 0 | CC9: =SUM(CA9:CB9) -> 0
A10: 2组 | B10: 旧 | C10: 丰原国贸 | D10: DDGS | E10: 10000 | F10: 0 | G10: 0 | H10: 0 | I10: =SUM(G10:H10) -> 0 | J10: 0 | K10: 0 | L10: =SUM(J10:K10) -> 0 | M10: 0 | N10: 0 | O10: =SUM(M10:N10) -> 0 | P10: 0 | Q10: 0 | R10: =SUM(P10:Q10) -> 0 | S10: 0 | T10: 0 | U10: =SUM(S10:T10) -> 0 | V10: 0 | W10: 0 | X10: =SUM(V10:W10) -> 0 | Y10: 0 | Z10: 0 | AA10: =SUM(Y10:Z10) -> 0 | AB10: 0 | AC10: 0 | AD10: =SUM(AB10:AC10) -> 0 | AE10: 0 | AF10: 0 | AG10: =SUM(AE10:AF10) -> 0 | AH10: 0 | AI10: 0 | AJ10: =SUM(AH10:AI10) -> 0 | AK10: 0 | AL10: 0 | AM10: =SUM(AK10:AL10) -> 0 | AN10: 0 | AO10: 0 | AP10: =SUM(AN10:AO10) -> 0 | AQ10: 0 | AR10: 0 | AS10: =SUM(AQ10:AR10) -> 0 | AT10: 0 | AU10: 0 | AV10: =SUM(AT10:AU10) -> 0 | AW10: 0 | AX10: 0 | AY10: =SUM(AW10:AX10) -> 0 | AZ10: 0 | BA10: 0 | BB10: =SUM(AZ10:BA10) -> 0 | BC10: 0 | BD10: 0 | BE10: =SUM(BC10:BD10) -> 0 | BF10: 0 | BG10: 0 | BH10: =SUM(BF10:BG10) -> 0 | BI10: 0 | BJ10: 0 | BK10: =SUM(BI10:BJ10) -> 0 | BL10: 0 | BM10: 0 | BN10: =SUM(BL10:BM10) -> 0 | BO10: 0 | BP10: 0 | BQ10: =SUM(BO10:BP10) -> 0 | BR10: 0 | BS10: 0 | BT10: =SUM(BR10:BS10) -> 0 | BU10: 0 | BV10: 0 | BW10: =SUM(BU10:BV10) -> 0 | BX10: 0 | BY10: 0 | BZ10: =SUM(BX10:BY10) -> 0 | CA10: =J10+P10+V10+AB10+AH10+AN10+AT10+AZ10+BF10+BL10+BR10+BX10 -> 0 | CB10: 0 | CC10: =SUM(CA10:CB10) -> 0
A11: 2组 | B11: 旧 | C11: 丰原货运 | D11: DDGS | E11: 0 | F11: 0 | G11: 2000 | H11: 0 | I11: 2000 | J11: 0 | K11: 0 | L11: 0 | M11: 0 | N11: 0 | O11: 0 | P11: 0 | Q11: 0 | R11: 0 | S11: 0 | T11: 0 | U11: 0 | V11: 0 | W11: 0 | X11: 0 | Y11: 0 | Z11: 0 | AA11: 0 | AB11: 0 | AC11: 0 | AD11: 0 | AE11: 0 | AF11: 0 | AG11: 0 | AH11: 0 | AI11: 0 | AJ11: 0 | AK11: 0 | AL11: 0 | AM11: 0 | AN11: 0 | AO11: 0 | AP11: 0 | AQ11: 0 | AR11: 0 | AS11: 0 | AT11: 0 | AU11: 0 | AV11: 0 | AW11: 0 | AX11: 0 | AY11: 0 | AZ11: 0 | BA11: 0 | BB11: 0 | BC11: 0 | BD11: 0 | BE11: 0 | BF11: 0 | BG11: 0 | BH11: 0 | BI11: 0 | BJ11: 0 | BK11: 0 | BL11: 0 | BM11: 0 | BN11: 0 | BO11: 0 | BP11: 0 | BQ11: 0 | BR11: 0 | BS11: 0 | BT11: 0 | BU11: 0 | BV11: 0 | BW11: 0 | BX11: 0 | BY11: 0 | BZ11: 0 | CA11: 0 | CB11: 0 | CC11: 0
A12: 2组 | B12: 旧 | C12: 禾瑞康 | D12: 米糠 | E12: 120000 | F12: 0 | G12: 0 | H12: 0 | I12: 0 | J12: 0 | K12: 0 | L12: 0 | M12: 0 | N12: 0 | O12: 0 | P12: 0 | Q12: 0 | R12: 0 | S12: 0 | T12: 0 | U12: 0 | V12: 0 | W12: 0 | X12: 0 | Y12: 0 | Z12: 0 | AA12: 0 | AB12: 0 | AC12: 0 | AD12: 0 | AE12: 0 | AF12: 0 | AG12: 0 | AH12: 0 | AI12: 0 | AJ12: 0 | AK12: 0 | AL12: 0 | AM12: 0 | AN12: 0 | AO12: 0 | AP12: 0 | AQ12: 0 | AR12: 0 | AS12: 0 | AT12: 0 | AU12: 0 | AV12: 0 | AW12: 0 | AX12: 0 | AY12: 0 | AZ12: 0 | BA12: 0 | BB12: 0 | BC12: 0 | BD12: 0 | BE12: 0 | BF12: 0 | BG12: 0 | BH12: 0 | BI12: 0 | BJ12: 0 | BK12: 0 | BL12: 0 | BM12: 0 | BN12: 0 | BO12: 0 | BP12: 0 | BQ12: 0 | BR12: 0 | BS12: 0 | BT12: 0 | BU12: 0 | BV12: 0 | BW12: 0 | BX12: 0 | BY12: 0 | BZ12: 0 | CA12: 0 | CB12: 0 | CC12: 0
A13: 2组 | B13: 旧 | C13: 禾瑞康 | D13: 精制淡水鱼油 | E13: 0 | F13: 0 | G13: 85.18 | H13: 0 | I13: 85.18 | J13: 0 | K13: 0 | L13: 0 | M13: 0 | N13: 0 | O13: 0 | P13: 0 | Q13: 0 | R13: 0 | S13: 0 | T13: 0 | U13: 0 | V13: 0 | W13: 0 | X13: 0 | Y13: 0 | Z13: 0 | AA13: 0 | AB13: 0 | AC13: 0 | AD13: 0 | AE13: 0 | AF13: 0 | AG13: 0 | AH13: 0 | AI13: 0 | AJ13: 0 | AK13: 0 | AL13: 0 | AM13: 0 | AN13: 0 | AO13: 0 | AP13: 0 | AQ13: 0 | AR13: 0 | AS13: 0 | AT13: 0 | AU13: 0 | AV13: 0 | AW13: 0 | AX13: 0 | AY13: 0 | AZ13: 0 | BA13: 0 | BB13: 0 | BC13: 0 | BD13: 0 | BE13: 0 | BF13: 0 | BG13: 0 | BH13: 0 | BI13: 0 | BJ13: 0 | BK13: 0 | BL13: 0 | BM13: 0 | BN13: 0 | BO13: 0 | BP13: 0 | BQ13: 0 | BR13: 0 | BS13: 0 | BT13: 0 | BU13: 0 | BV13: 0 | BW13: 0 | BX13: 0 | BY13: 0 | BZ13: 0 | CA13: 0 | CB13: 0 | CC13: 0
A14: 2组 | B14: 旧 | C14: 宇腾 | D14: 铅精矿 | E14: 50000 | F14: 150000 | G14: 2000 | H14: 0 | I14: 2000 | J14: 0 | K14: 0 | L14: 0 | M14: 0 | N14: 0 | O14: 0 | P14: 0 | Q14: 0 | R14: 0 | S14: 0 | T14: 0 | U14: 0 | V14: 0 | W14: 0 | X14: 0 | Y14: 0 | Z14: 0 | AA14: 0 | AB14: 0 | AC14: 0 | AD14: 0 | AE14: 0 | AF14: 0 | AG14: 0 | AH14: 0 | AI14: 0 | AJ14: 0 | AK14: 0 | AL14: 0 | AM14: 0 | AN14: 0 | AO14: 0 | AP14: 0 | AQ14: 0 | AR14: 0 | AS14: 0 | AT14: 0 | AU14: 0 | AV14: 0 | AW14: 0 | AX14: 0 | AY14: 0 | AZ14: 0 | BA14: 0 | BB14: 0 | BC14: 0 | BD14: 0 | BE14: 0 | BF14: 0 | BG14: 0 | BH14: 0 | BI14: 0 | BJ14: 0 | BK14: 0 | BL14: 0 | BM14: 0 | BN14: 0 | BO14: 0 | BP14: 0 | BQ14: 0 | BR14: 0 | BS14: 0 | BT14: 0 | BU14: 0 | BV14: 0 | BW14: 0 | BX14: 0 | BY14: 0 | BZ14: 0 | CA14: 0 | CB14: 0 | CC14: 0
A15: 2组 | B15: 旧 | C15: 银星 | D15: 铅精矿 | E15: 0 | F15: 40000 | G15: 0 | H15: 0 | I15: 0 | J15: 0 | K15: 0 | L15: 0 | M15: 0 | N15: 0 | O15: 0 | P15: 0 | Q15: 0 | R15: 0 | S15: 0 | T15: 0 | U15: 0 | V15: 0 | W15: 0 | X15: 0 | Y15: 0 | Z15: 0 | AA15: 0 | AB15: 0 | AC15: 0 | AD15: 0 | AE15: 0 | AF15: 0 | AG15: 0 | AH15: 0 | AI15: 0 | AJ15: 0 | AK15: 0 | AL15: 0 | AM15: 0 | AN15: 0 | AO15: 0 | AP15: 0 | AQ15: 0 | AR15: 0 | AS15: 0 | AT15: 0 | AU15: 0 | AV15: 0 | AW15: 0 | AX15: 0 | AY15: 0 | AZ15: 0 | BA15: 0 | BB15: 0 | BC15: 0 | BD15: 0 | BE15: 0 | BF15: 0 | BG15: 0 | BH15: 0 | BI15: 0 | BJ15: 0 | BK15: 0 | BL15: 0 | BM15: 0 | BN15: 0 | BO15: 0 | BP15: 0 | BQ15: 0 | BR15: 0 | BS15: 0 | BT15: 0 | BU15: 0 | BV15: 0 | BW15: 0 | BX15: 0 | BY15: 0 | BZ15: 0 | CA15: 0 | CB15: 0 | CC15: 0
A16: 2组 | B16: 旧 | C16: 中金 | D16: 锌精矿 | E16: 2000 | F16: 70000 | G16: 1100 | H16: 5000 | I16: 6100 | J16: 0 | K16: 0 | L16: 0 | M16: 0 | N16: 0 | O16: 0 | P16: 0 | Q16: 0 | R16: 0 | S16: 0 | T16: 0 | U16: 0 | V16: 0 | W16: 0 | X16: 0 | Y16: 0 | Z16: 0 | AA16: 0 | AB16: 0 | AC16: 0 | AD16: 0 | AE16: 0 | AF16: 0 | AG16: 0 | AH16: 0 | AI16: 0 | AJ16: 0 | AK16: 0 | AL16: 0 | AM16: 0 | AN16: 0 | AO16: 0 | AP16: 0 | AQ16: 0 | AR16: 0 | AS16: 0 | AT16: 0 | AU16: 0 | AV16: 0 | AW16: 0 | AX16: 0 | AY16: 0 | AZ16: 0 | BA16: 0 | BB16: 0 | BC16: 0 | BD16: 0 | BE16: 0 | BF16: 0 | BG16: 0 | BH16: 0 | BI16: 0 | BJ16: 0 | BK16: 0 | BL16: 0 | BM16: 0 | BN16: 0 | BO16: 0 | BP16: 0 | BQ16: 0 | BR16: 0 | BS16: 0 | BT16: 0 | BU16: 0 | BV16: 0 | BW16: 0 | BX16: 0 | BY16: 0 | BZ16: 0 | CA16: 0 | CB16: 0 | CC16: 0
A17: 2组 | B17: 旧 | C17: 株冶 | D17: 锌精矿 | E17: 0 | F17: 0 | G17: 0 | H17: 40000 | I17: 40000 | J17: 0 | K17: 0 | L17: 0 | M17: 0 | N17: 0 | O17: 0 | P17: 0 | Q17: 0 | R17: 0 | S17: 0 | T17: 0 | U17: 0 | V17: 0 | W17: 0 | X17: 0 | Y17: 0 | Z17: 0 | AA17: 0 | AB17: 0 | AC17: 0 | AD17: 0 | AE17: 0 | AF17: 0 | AG17: 0 | AH17: 0 | AI17: 0 | AJ17: 0 | AK17: 0 | AL17: 0 | AM17: 0 | AN17: 0 | AO17: 0 | AP17: 0 | AQ17: 0 | AR17: 0 | AS17: 0 | AT17: 0 | AU17: 0 | AV17: 0 | AW17: 0 | AX17: 0 | AY17: 0 | AZ17: 0 | BA17: 0 | BB17: 0 | BC17: 0 | BD17: 0 | BE17: 0 | BF17: 0 | BG17: 0 | BH17: 0 | BI17: 0 | BJ17: 0 | BK17: 0 | BL17: 0 | BM17: 0 | BN17: 0 | BO17: 0 | BP17: 0 | BQ17: 0 | BR17: 0 | BS17: 0 | BT17: 0 | BU17: 0 | BV17: 0 | BW17: 0 | BX17: 0 | BY17: 0 | BZ17: 0 | CA17: 0 | CB17: 0 | CC17: 0
A18: 2组 | B18: 旧 | C18: 华壬 | D18: 大豆 | E18: 2000 | F18: 0 | G18: 0 | H18: 0 | I18: 0 | J18: 0 | K18: 0 | L18: 0 | M18: 0 | N18: 0 | O18: 0 | P18: 0 | Q18: 0 | R18: 0 | S18: 0 | T18: 0 | U18: 0 | V18: 0 | W18: 0 | X18: 0 | Y18: 0 | Z18: 0 | AA18: 0 | AB18: 0 | AC18: 0 | AD18: 0 | AE18: 0 | AF18: 0 | AG18: 0 | AH18: 0 | AI18: 0 | AJ18: 0 | AK18: 0 | AL18: 0 | AM18: 0 | AN18: 0 | AO18: 0 | AP18: 0 | AQ18: 0 | AR18: 0 | AS18: 0 | AT18: 0 | AU18: 0 | AV18: 0 | AW18: 0 | AX18: 0 | AY18: 0 | AZ18: 0 | BA18: 0 | BB18: 0 | BC18: 0 | BD18: 0 | BE18: 0 | BF18: 0 | BG18: 0 | BH18: 0 | BI18: 0 | BJ18: 0 | BK18: 0 | BL18: 0 | BM18: 0 | BN18: 0 | BO18: 0 | BP18: 0 | BQ18: 0 | BR18: 0 | BS18: 0 | BT18: 0 | BU18: 0 | BV18: 0 | BW18: 0 | BX18: 0 | BY18: 0 | BZ18: 0 | CA18: 0 | CB18: 0 | CC18: 0
A19: 2组 | B19: 旧 | C19: 华壬 | D19: 大麦 | E19: 0 | F19: 50000 | G19: 0 | H19: 0 | I19: 0 | J19: 0 | K19: 0 | L19: 0 | M19: 0 | N19: 0 | O19: 0 | P19: 0 | Q19: 0 | R19: 0 | S19: 0 | T19: 0 | U19: 0 | V19: 0 | W19: 0 | X19: 0 | Y19: 0 | Z19: 0 | AA19: 0 | AB19: 0 | AC19: 0 | AD19: 0 | AE19: 0 | AF19: 0 | AG19: 0 | AH19: 0 | AI19: 0 | AJ19: 0 | AK19: 0 | AL19: 0 | AM19: 0 | AN19: 0 | AO19: 0 | AP19: 0 | AQ19: 0 | AR19: 0 | AS19: 0 | AT19: 0 | AU19: 0 | AV19: 0 | AW19: 0 | AX19: 0 | AY19: 0 | AZ19: 0 | BA19: 0 | BB19: 0 | BC19: 0 | BD19: 0 | BE19: 0 | BF19: 0 | BG19: 0 | BH19: 0 | BI19: 0 | BJ19: 0 | BK19: 0 | BL19: 0 | BM19: 0 | BN19: 0 | BO19: 0 | BP19: 0 | BQ19: 0 | BR19: 0 | BS19: 0 | BT19: 0 | BU19: 0 | BV19: 0 | BW19: 0 | BX19: 0 | BY19: 0 | BZ19: 0 | CA19: 0 | CB19: 0 | CC19: 0
A20: 2组 | B20: 旧 | C20: 华壬 | D20: 大米 | E20: 50000 | F20: 0 | G20: 0 | H20: 0 | I20: 0 | J20: 0 | K20: 0 | L20: 0 | M20: 0 | N20: 0 | O20: 0 | P20: 0 | Q20: 0 | R20: 0 | S20: 0 | T20: 0 | U20: 0 | V20: 0 | W20: 0 | X20: 0 | Y20: 0 | Z20: 0 | AA20: 0 | AB20: 0 | AC20: 0 | AD20: 0 | AE20: 0 | AF20: 0 | AG20: 0 | AH20: 0 | AI20: 0 | AJ20: 0 | AK20: 0 | AL20: 0 | AM20: 0 | AN20: 0 | AO20: 0 | AP20: 0 | AQ20: 0 | AR20: 0 | AS20: 0 | AT20: 0 | AU20: 0 | AV20: 0 | AW20: 0 | AX20: 0 | AY20: 0 | AZ20: 0 | BA20: 0 | BB20: 0 | BC20: 0 | BD20: 0 | BE20: 0 | BF20: 0 | BG20: 0 | BH20: 0 | BI20: 0 | BJ20: 0 | BK20: 0 | BL20: 0 | BM20: 0 | BN20: 0 | BO20: 0 | BP20: 0 | BQ20: 0 | BR20: 0 | BS20: 0 | BT20: 0 | BU20: 0 | BV20: 0 | BW20: 0 | BX20: 0 | BY20: 0 | BZ20: 0 | CA20: 0 | CB20: 0 | CC20: 0
A21: 2组 | B21: 旧 | C21: 华壬 | D21: 高粱 | E21: 0 | F21: 100000 | G21: 0 | H21: 0 | I21: 0 | J21: 0 | K21: 0 | L21: 0 | M21: 0 | N21: 0 | O21: 0 | P21: 0 | Q21: 0 | R21: 0 | S21: 0 | T21: 0 | U21: 0 | V21: 0 | W21: 0 | X21: 0 | Y21: 0 | Z21: 0 | AA21: 0 | AB21: 0 | AC21: 0 | AD21: 0 | AE21: 0 | AF21: 0 | AG21: 0 | AH21: 0 | AI21: 0 | AJ21: 0 | AK21: 0 | AL21: 0 | AM21: 0 | AN21: 0 | AO21: 0 | AP21: 0 | AQ21: 0 | AR21: 0 | AS21: 0 | AT21: 0 | AU21: 0 | AV21: 0 | AW21: 0 | AX21: 0 | AY21: 0 | AZ21: 0 | BA21: 0 | BB21: 0 | BC21: 0 | BD21: 0 | BE21: 0 | BF21: 0 | BG21: 0 | BH21: 0 | BI21: 0 | BJ21: 0 | BK21: 0 | BL21: 0 | BM21: 0 | BN21: 0 | BO21: 0 | BP21: 0 | BQ21: 0 | BR21: 0 | BS21: 0 | BT21: 0 | BU21: 0 | BV21: 0 | BW21: 0 | BX21: 0 | BY21: 0 | BZ21: 0 | CA21: 0 | CB21: 0 | CC21: 0
A22: 2组 | B22: 旧 | C22: 华壬 | D22: 小麦 | E22: 1000 | F22: 0 | G22: 0 | H22: 0 | I22: 0 | J22: 0 | K22: 0 | L22: 0 | M22: 0 | N22: 0 | O22: 0 | P22: 0 | Q22: 0 | R22: 0 | S22: 0 | T22: 0 | U22: 0 | V22: 0 | W22: 0 | X22: 0 | Y22: 0 | Z22: 0 | AA22: 0 | AB22: 0 | AC22: 0 | AD22: 0 | AE22: 0 | AF22: 0 | AG22: 0 | AH22: 0 | AI22: 0 | AJ22: 0 | AK22: 0 | AL22: 0 | AM22: 0 | AN22: 0 | AO22: 0 | AP22: 0 | AQ22: 0 | AR22: 0 | AS22: 0 | AT22: 0 | AU22: 0 | AV22: 0 | AW22: 0 | AX22: 0 | AY22: 0 | AZ22: 0 | BA22: 0 | BB22: 0 | BC22: 0 | BD22: 0 | BE22: 0 | BF22: 0 | BG22: 0 | BH22: 0 | BI22: 0 | BJ22: 0 | BK22: 0 | BL22: 0 | BM22: 0 | BN22: 0 | BO22: 0 | BP22: 0 | BQ22: 0 | BR22: 0 | BS22: 0 | BT22: 0 | BU22: 0 | BV22: 0 | BW22: 0 | BX22: 0 | BY22: 0 | BZ22: 0 | CA22: 0 | CB22: 0 | CC22: 0
A23: 2组 | B23: 旧 | C23: 华壬 | D23: 玉米 | E23: 0 | F23: 100000 | G23: 0 | H23: 0 | I23: 0 | J23: 0 | K23: 0 | L23: 0 | M23: 0 | N23: 0 | O23: 0 | P23: 0 | Q23: 0 | R23: 0 | S23: 0 | T23: 0 | U23: 0 | V23: 0 | W23: 0 | X23: 0 | Y23: 0 | Z23: 0 | AA23: 0 | AB23: 0 | AC23: 0 | AD23: 0 | AE23: 0 | AF23: 0 | AG23: 0 | AH23: 0 | AI23: 0 | AJ23: 0 | AK23: 0 | AL23: 0 | AM23: 0 | AN23: 0 | AO23: 0 | AP23: 0 | AQ23: 0 | AR23: 0 | AS23: 0 | AT23: 0 | AU23: 0 | AV23: 0 | AW23: 0 | AX23: 0 | AY23: 0 | AZ23: 0 | BA23: 0 | BB23: 0 | BC23: 0 | BD23: 0 | BE23: 0 | BF23: 0 | BG23: 0 | BH23: 0 | BI23: 0 | BJ23: 0 | BK23: 0 | BL23: 0 | BM23: 0 | BN23: 0 | BO23: 0 | BP23: 0 | BQ23: 0 | BR23: 0 | BS23: 0 | BT23: 0 | BU23: 0 | BV23: 0 | BW23: 0 | BX23: 0 | BY23: 0 | BZ23: 0 | CA23: 0 | CB23: 0 | CC23: 0
A24: 2组 | B24: 旧 | C24: 正和 | D24: 大豆 | E24: 0 | F24: 0 | G24: 388.465 | H24: 0 | I24: 388.465 | J24: 0 | K24: 0 | L24: 0 | M24: 0 | N24: 0 | O24: 0 | P24: 0 | Q24: 0 | R24: 0 | S24: 0 | T24: 0 | U24: 0 | V24: 0 | W24: 0 | X24: 0 | Y24: 0 | Z24: 0 | AA24: 0 | AB24: 0 | AC24: 0 | AD24: 0 | AE24: 0 | AF24: 0 | AG24: 0 | AH24: 0 | AI24: 0 | AJ24: 0 | AK24: 0 | AL24: 0 | AM24: 0 | AN24: 0 | AO24: 0 | AP24: 0 | AQ24: 0 | AR24: 0 | AS24: 0 | AT24: 0 | AU24: 0 | AV24: 0 | AW24: 0 | AX24: 0 | AY24: 0 | AZ24: 0 | BA24: 0 | BB24: 0 | BC24: 0 | BD24: 0 | BE24: 0 | BF24: 0 | BG24: 0 | BH24: 0 | BI24: 0 | BJ24: 0 | BK24: 0 | BL24: 0 | BM24: 0 | BN24: 0 | BO24: 0 | BP24: 0 | BQ24: 0 | BR24: 0 | BS24: 0 | BT24: 0 | BU24: 0 | BV24: 0 | BW24: 0 | BX24: 0 | BY24: 0 | BZ24: 0 | CA24: 0 | CB24: 0 | CC24: 0
A25: 2组 | B25: 旧 | C25: 正和 | D25: 大米 | E25: 0 | F25: 0 | G25: 972 | H25: 0 | I25: 972 | J25: 0 | K25: 0 | L25: 0 | M25: 0 | N25: 0 | O25: 0 | P25: 0 | Q25: 0 | R25: 0 | S25: 0 | T25: 0 | U25: 0 | V25: 0 | W25: 0 | X25: 0 | Y25: 0 | Z25: 0 | AA25: 0 | AB25: 0 | AC25: 0 | AD25: 0 | AE25: 0 | AF25: 0 | AG25: 0 | AH25: 0 | AI25: 0 | AJ25: 0 | AK25: 0 | AL25: 0 | AM25: 0 | AN25: 0 | AO25: 0 | AP25: 0 | AQ25: 0 | AR25: 0 | AS25: 0 | AT25: 0 | AU25: 0 | AV25: 0 | AW25: 0 | AX25: 0 | AY25: 0 | AZ25: 0 | BA25: 0 | BB25: 0 | BC25: 0 | BD25: 0 | BE25: 0 | BF25: 0 | BG25: 0 | BH25: 0 | BI25: 0 | BJ25: 0 | BK25: 0 | BL25: 0 | BM25: 0 | BN25: 0 | BO25: 0 | BP25: 0 | BQ25: 0 | BR25: 0 | BS25: 0 | BT25: 0 | BU25: 0 | BV25: 0 | BW25: 0 | BX25: 0 | BY25: 0 | BZ25: 0 | CA25: 0 | CB25: 0 | CC25: 0
A26: 2组 | B26: 旧 | C26: 肇庆福加德 | D26: 小麦 | E26: 0 | F26: 100000 | G26: 0 | H26: 0 | I26: 0 | J26: 0 | K26: 0 | L26: 0 | M26: 0 | N26: 0 | O26: 0 | P26: 0 | Q26: 0 | R26: 0 | S26: 0 | T26: 0 | U26: 0 | V26: 0 | W26: 0 | X26: 0 | Y26: 0 | Z26: 0 | AA26: 0 | AB26: 0 | AC26: 0 | AD26: 0 | AE26: 0 | AF26: 0 | AG26: 0 | AH26: 0 | AI26: 0 | AJ26: 0 | AK26: 0 | AL26: 0 | AM26: 0 | AN26: 0 | AO26: 0 | AP26: 0 | AQ26: 0 | AR26: 0 | AS26: 0 | AT26: 0 | AU26: 0 | AV26: 0 | AW26: 0 | AX26: 0 | AY26: 0 | AZ26: 0 | BA26: 0 | BB26: 0 | BC26: 0 | BD26: 0 | BE26: 0 | BF26: 0 | BG26: 0 | BH26: 0 | BI26: 0 | BJ26: 0 | BK26: 0 | BL26: 0 | BM26: 0 | BN26: 0 | BO26: 0 | BP26: 0 | BQ26: 0 | BR26: 0 | BS26: 0 | BT26: 0 | BU26: 0 | BV26: 0 | BW26: 0 | BX26: 0 | BY26: 0 | BZ26: 0 | CA26: 0 | CB26: 0 | CC26: 0
A27: 2组 | B27: 旧 | C27: 嘉吉 | D27: 棕榈油 | E27: 0 | F27: 0 | G27: 200 | H27: 0 | I27: 200 | J27: 0 | K27: 0 | L27: 0 | M27: 0 | N27: 0 | O27: 0 | P27: 0 | Q27: 0 | R27: 0 | S27: 0 | T27: 0 | U27: 0 | V27: 0 | W27: 0 | X27: 0 | Y27: 0 | Z27: 0 | AA27: 0 | AB27: 0 | AC27: 0 | AD27: 0 | AE27: 0 | AF27: 0 | AG27: 0 | AH27: 0 | AI27: 0 | AJ27: 0 | AK27: 0 | AL27: 0 | AM27: 0 | AN27: 0 | AO27: 0 | AP27: 0 | AQ27: 0 | AR27: 0 | AS27: 0 | AT27: 0 | AU27: 0 | AV27: 0 | AW27: 0 | AX27: 0 | AY27: 0 | AZ27: 0 | BA27: 0 | BB27: 0 | BC27: 0 | BD27: 0 | BE27: 0 | BF27: 0 | BG27: 0 | BH27: 0 | BI27: 0 | BJ27: 0 | BK27: 0 | BL27: 0 | BM27: 0 | BN27: 0 | BO27: 0 | BP27: 0 | BQ27: 0 | BR27: 0 | BS27: 0 | BT27: 0 | BU27: 0 | BV27: 0 | BW27: 0 | BX27: 0 | BY27: 0 | BZ27: 0 | CA27: =J27+P27+V27+AB27+AH27+AN27+AT27+AZ27+BF27+BL27+BR27+BX27 -> 0 | CB27: 0 | CC27: 0
A28: 2组 | B28: 旧 | C28: 轻出 | D28: 粗铜 | E28: 0 | F28: 0 | G28: 500 | H28: 0 | I28: 500 | J28: 0 | K28: 0 | L28: 0 | M28: 0 | N28: 0 | O28: 0 | P28: 0 | Q28: 0 | R28: 0 | S28: 0 | T28: 0 | U28: 0 | V28: 0 | W28: 0 | X28: 0 | Y28: 0 | Z28: 0 | AA28: 0 | AB28: 0 | AC28: 0 | AD28: 0 | AE28: 0 | AF28: 0 | AG28: 0 | AH28: 0 | AI28: 0 | AJ28: 0 | AK28: 0 | AL28: 0 | AM28: 0 | AN28: 0 | AO28: 0 | AP28: 0 | AQ28: 0 | AR28: 0 | AS28: 0 | AT28: 0 | AU28: 0 | AV28: 0 | AW28: 0 | AX28: 0 | AY28: 0 | AZ28: 0 | BA28: 0 | BB28: 0 | BC28: 0 | BD28: 0 | BE28: 0 | BF28: 0 | BG28: 0 | BH28: 0 | BI28: 0 | BJ28: 0 | BK28: 0 | BL28: 0 | BM28: 0 | BN28: 0 | BO28: 0 | BP28: 0 | BQ28: 0 | BR28: 0 | BS28: 0 | BT28: 0 | BU28: 0 | BV28: 0 | BW28: 0 | BX28: 0 | BY28: 0 | BZ28: 0 | CA28: 0 | CB28: 0 | CC28: 0
A29: 2组 | B29: 旧 | C29: 金禾 | D29: 小麦粗粉 | E29: 0 | F29: 0 | G29: 21.672 | H29: 0 | I29: 21.672 | J29: 0 | K29: 0 | L29: 0 | M29: 0 | N29: 0 | O29: 0 | P29: 0 | Q29: 0 | R29: 0 | S29: 0 | T29: 0 | U29: 0 | V29: 0 | W29: 0 | X29: 0 | Y29: 0 | Z29: 0 | AA29: 0 | AB29: 0 | AC29: 0 | AD29: 0 | AE29: 0 | AF29: 0 | AG29: 0 | AH29: 0 | AI29: 0 | AJ29: 0 | AK29: 0 | AL29: 0 | AM29: 0 | AN29: 0 | AO29: 0 | AP29: 0 | AQ29: 0 | AR29: 0 | AS29: 0 | AT29: 0 | AU29: 0 | AV29: 0 | AW29: 0 | AX29: 0 | AY29: 0 | AZ29: 0 | BA29: 0 | BB29: 0 | BC29: 0 | BD29: 0 | BE29: 0 | BF29: 0 | BG29: 0 | BH29: 0 | BI29: 0 | BJ29: 0 | BK29: 0 | BL29: 0 | BM29: 0 | BN29: 0 | BO29: 0 | BP29: 0 | BQ29: 0 | BR29: 0 | BS29: 0 | BT29: 0 | BU29: 0 | BV29: 0 | BW29: 0 | BX29: 0 | BY29: 0 | BZ29: 0 | CA29: 0 | CB29: 0 | CC29: 0
A30: 2组 | B30: 新 | C30: 国药嘉远 | D30: 葵花籽原油 | E30: 0 | F30: 0 | G30: 132.98 | H30: 0 | I30: 132.98 | J30: 0 | K30: 0 | L30: 0 | M30: 0 | N30: 0 | O30: 0 | P30: 0 | Q30: 0 | R30: 0 | S30: 0 | T30: 0 | U30: 0 | V30: 0 | W30: 0 | X30: 0 | Y30: 0 | Z30: 0 | AA30: 0 | AB30: 0 | AC30: 0 | AD30: 0 | AE30: 0 | AF30: 0 | AG30: 0 | AH30: 0 | AI30: 0 | AJ30: 0 | AK30: 0 | AL30: 0 | AM30: 0 | AN30: 0 | AO30: 0 | AP30: 0 | AQ30: 0 | AR30: 0 | AS30: 0 | AT30: 0 | AU30: 0 | AV30: 0 | AW30: 0 | AX30: 0 | AY30: 0 | AZ30: 0 | BA30: 0 | BB30: 0 | BC30: 0 | BD30: 0 | BE30: 0 | BF30: 0 | BG30: 0 | BH30: 0 | BI30: 0 | BJ30: 0 | BK30: 0 | BL30: 0 | BM30: 0 | BN30: 0 | BO30: 0 | BP30: 0 | BQ30: 0 | BR30: 0 | BS30: 0 | BT30: 0 | BU30: 0 | BV30: 0 | BW30: 0 | BX30: 0 | BY30: 0 | BZ30: 0 | CA30: 0 | CB30: 0 | CC30: 0
C31: 合计 | E31: =SUM(E8:E30) -> 265000 | F31: 610000 | G31: 17400.297 | H31: =SUM(H8:H30) -> 45000 | I31: 62400.297 | J31: 0 | K31: 0 | L31: 0 | M31: 0 | N31: 0 | O31: 0 | P31: 0 | Q31: 0 | R31: 0 | S31: 0 | T31: 0 | U31: 0 | V31: 0 | W31: 0 | X31: 0 | Y31: 0 | Z31: 0 | AA31: 0 | AB31: 0 | AC31: 0 | AD31: 0 | AE31: 0 | AF31: 0 | AG31: 0 | AH31: 0 | AI31: 0 | AJ31: 0 | AK31: 0 | AL31: 0 | AM31: 0 | AN31: 0 | AO31: 0 | AP31: 0 | AQ31: 0 | AR31: 0 | AS31: 0 | AT31: 0 | AU31: 0 | AV31: 0 | AW31: 0 | AX31: 0 | AY31: 0 | AZ31: 0 | BA31: 0 | BB31: 0 | BC31: 0 | BD31: 0 | BE31: 0 | BF31: 0 | BG31: 0 | BH31: 0 | BI31: 0 | BJ31: 0 | BK31: 0 | BL31: 0 | BM31: 0 | BN31: 0 | BO31: 0 | BP31: 0 | BQ31: 0 | BR31: 0 | BS31: 0 | BT31: =SUM(BT8:BT30) -> 0 | BU31: 0 | BV31: 0 | BW31: 0 | BX31: 0 | BY31: 0 | BZ31: 0 | CA31: 0 | CB31: 0 | CC31: 0

Sheet 3组 (hidden)
A1: 2016侨益股份有限公司货代事业部到货量统计表
A2: 客服组 | B2: 业务类型 | C2: 客户 | D2: 货名 | E2: 2016预算（集）吨 | F2: 2016预算（散）吨 | G2: 预计集装箱货量1月 | H2: 预计散船货量1月 | I2: 预计货量合计1月 | J2: 实际集装箱货量1月 | K2: 实际散船货量1月 | L2: 实际货量合计1月 | M2: 预计集装箱货量2月 | N2: 预计散船货量2月 | O2: 预计货量合计2月 | P2: 实际集装箱货量2月 | Q2: 实际散船货量2月 | R2: 实际货量合计2月 | S2: 预计集装箱货量3月 | T2: 预计散船货量3月 | U2: 预计货量合计3月 | V2: 实际集装箱货量3月 | W2: 实际散船货量3月 | X2: 实际货量合计3月 | Y2: 预计集装箱货量4月 | Z2: 预计散船货量4月 | AA2: 预计货量合计4月 | AB2: 实际集装箱货量4月 | AC2: 实际散船货量4月 | AD2: 实际货量合计4月 | AE2: 预计集装箱货量5月 | AF2: 预计散船货量5月 | AG2: 预计货量合计5月 | AH2: 实际集装箱货量5月 | AI2: 实际散船货量5月 | AJ2: 实际货量合计5月 | AK2: 预计集装箱货量6月 | AL2: 预计散船货量6月 | AM2: 预计货量合计6月 | AN2: 实际集装箱货量6月 | AO2: 实际散船货量6月 | AP2: 实际货量合计6月 | AQ2: 预计集装箱货量7月 | AR2: 预计散船货量7月 | AS2: 预计货量合计7月 | AT2: 实际集装箱货量7月 | AU2: 实际散船货量7月 | AV2: 实际货量合计7月 | AW2: 预计集装箱货量8月 | AX2: 预计散船货量8月 | AY2: 预计货量合计8月 | AZ2: 实际集装箱货量8月 | BA2: 实际散船货量8月 | BB2: 实际货量合计8月 | BC2: 预计集装箱货量9月 | BD2: 预计散船货量9月 | BE2: 预计货量合计9月 | BF2: 实际集装箱货量9月 | BG2: 实际散船货量9月 | BH2: 实际货量合计9月 | BI2: 预计集装箱货量10月 | BJ2: 预计散船货量10月 | BK2: 预计货量合计10月 | BL2: 实际集装箱货量10月 | BM2: 实际散船货量10月 | BN2: 实际货量合计10月 | BO2: 预计集装箱货量11月 | BP2: 预计散船货量11月 | BQ2: 预计货量合计11月 | BR2: 实际集装箱货量11月 | BS2: 实际散船货量11月 | BT2: 实际货量合计11月 | BU2: 预计集装箱货量12月 | BV2: 预计散船货量12月 | BW2: 预计货量合计12月 | BX2: 实际集装箱货量12月 | BY2: 实际散船货量12月 | BZ2: 实际货量合计12月 | CA2: 实际集装箱货量全年 | CB2: 实际散船货量全年 | CC2: 实际货量合计全年
A3: 3组 | B3: 旧 | C3: 福百盛 | D3: DDGS | E3: 12500 | F3: 0 | G3: 0 | H3: 0 | I3: =SUM(G3:H3) -> 0 | J3: 0 | K3: 0 | L3: =SUM(J3:K3) -> 0 | M3: 0 | N3: 0 | O3: =SUM(M3:N3) -> 0 | P3: 0 | Q3: 0 | R3: =SUM(P3:Q3) -> 0 | S3: 0 | T3: 0 | U3: =SUM(S3:T3) -> 0 | V3: 0 | W3: 0 | X3: =SUM(V3:W3) -> 0 | Y3: 0 | Z3: 0 | AA3: =SUM(Y3:Z3) -> 0 | AB3: 0 | AC3: 0 | AD3: =SUM(AB3:AC3) -> 0 | AE3: 0 | AF3: 0 | AG3: =SUM(AE3:AF3) -> 0 | AH3: 0 | AI3: 0 | AJ3: =SUM(AH3:AI3) -> 0 | AK3: 0 | AL3: 0 | AM3: =SUM(AK3:AL3) -> 0 | AN3: 0 | AO3: 0 | AP3: =SUM(AN3:AO3) -> 0 | AQ3: 0 | AR3: 0 | AS3: =SUM(AQ3:AR3) -> 0 | AT3: 0 | AU3: 0 | AV3: =SUM(AT3:AU3) -> 0 | AW3: 0 | AX3: 0 | AY3: =SUM(AW3:AX3) -> 0 | AZ3: 0 | BA3: 0 | BB3: =SUM(AZ3:BA3) -> 0 | BC3: 0 | BD3: 0 | BE3: =SUM(BC3:BD3) -> 0 | BF3: 0 | BG3: 0 | BH3: =SUM(BF3:BG3) -> 0 | BI3: 0 | BJ3: 0 | BK3: =SUM(BI3:BJ3) -> 0 | BL3: 0 | BM3: 0 | BN3: =SUM(BL3:BM3) -> 0 | BO3: 0 | BP3: 0 | BQ3: =SUM(BO3:BP3) -> 0 | BR3: 0 | BS3: 0 | BT3: =SUM(BR3:BS3) -> 0 | BU3: 0 | BV3: 0 | BW3: =SUM(BU3:BV3) -> 0 | BX3: 0 | BY3: 0 | BZ3: =SUM(BX3:BY3) -> 0 | CA3: =J3+P3+V3+AB3+AH3+AN3+AT3+AZ3+BF3+BL3+BR3+BX3 -> 0 | CB3: =K3+Q3+W3+AC3+AI3+AO3+AU3+BA3+BG3+BM3+BS3+BY3 -> 0 | CC3: =SUM(CA3:CB3) -> 0
A4: 3组 | B4: 旧 | C4: 福百盛 | D4: 木薯渣颗粒 | E4: 0 | F4: 50000 | G4: 0 | H4: 6000 | I4: =SUM(G4:H4) -> 6000 | J4: 0 | K4: 0 | L4: =SUM(J4:K4) -> 0 | M4: 0 | N4: 0 | O4: =SUM(M4:N4) -> 0 | P4: 0 | Q4: 0 | R4: =SUM(P4:Q4) -> 0 | S4: 0 | T4: 0 | U4: =SUM(S4:T4) -> 0 | V4: 0 | W4: 0 | X4: =SUM(V4:W4) -> 0 | Y4: 0 | Z4: 0 | AA4: =SUM(Y4:Z4) -> 0 | AB4: 0 | AC4: 0 | AD4: =SUM(AB4:AC4) -> 0 | AE4: 0 | AF4: 0 | AG4: =SUM(AE4:AF4) -> 0 | AH4: 0 | AI4: 0 | AJ4: =SUM(AH4:AI4) -> 0 | AK4: 0 | AL4: 0 | AM4: =SUM(AK4:AL4) -> 0 | AN4: 0 | AO4: 0 | AP4: =SUM(AN4:AO4) -> 0 | AQ4: 0 | AR4: 0 | AS4: =SUM(AQ4:AR4) -> 0 | AT4: 0 | AU4: 0 | AV4: =SUM(AT4:AU4) -> 0 | AW4: 0 | AX4: 0 | AY4: =SUM(AW4:AX4) -> 0 | AZ4: 0 | BA4: 0 | BB4: =SUM(AZ4:BA4) -> 0 | BC4: 0 | BD4: 0 | BE4: =SUM(BC4:BD4) -> 0 | BF4: 0 | BG4: 0 | BH4: =SUM(BF4:BG4) -> 0 | BI4: 0 | BJ4: 0 | BK4: =SUM(BI4:BJ4) -> 0 | BL4: 0 | BM4: 0 | BN4: =SUM(BL4:BM4) -> 0 | BO4: 0 | BP4: 0 | BQ4: =SUM(BO4:BP4) -> 0 | BR4: 0 | BS4: 0 | BT4: =SUM(BR4:BS4) -> 0 | BU4: 0 | BV4: 0 | BW4: =SUM(BU4:BV4) -> 0 | BX4: 0 | BY4: 0 | BZ4: =SUM(BX4:BY4) -> 0 | CA4: =J4+P4+V4+AB4+AH4+AN4+AT4+AZ4+BF4+BL4+BR4+BX4 -> 0 | CB4: 0 | CC4: =SUM(CA4:CB4) -> 0
A5: 3组 | B5: 旧 | C5: 家乐凯 | D5: 鱼粉 | E5: 500 | F5: 0 | G5: 0 | H5: 0 | I5: 0 | J5: 0 | K5: 0 | L5: 0 | M5: 0 | N5: 0 | O5: 0 | P5: 0 | Q5: 0 | R5: 0 | S5: 0 | T5: 0 | U5: 0 | V5: 0 | W5: 0 | X5: 0 | Y5: 0 | Z5: 0 | AA5: 0 | AB5: 0 | AC5: 0 | AD5: 0 | AE5: 0 | AF5: 0 | AG5: 0 | AH5: 0 | AI5: 0 | AJ5: 0 | AK5: 0 | AL5: 0 | AM5: 0 | AN5: 0 | AO5: 0 | AP5: 0 | AQ5: 0 | AR5: 0 | AS5: 0 | AT5: 0 | AU5: 0 | AV5: 0 | AW5: 0 | AX5: 0 | AY5: 0 | AZ5: 0 | BA5: 0 | BB5: 0 | BC5: 0 | BD5: 0 | BE5: 0 | BF5: 0 | BG5: 0 | BH5: 0 | BI5: 0 | BJ5: 0 | BK5: 0 | BL5: 0 | BM5: 0 | BN5: 0 | BO5: 0 | BP5: 0 | BQ5: 0 | BR5: 0 | BS5: 0 | BT5: 0 | BU5: 0 | BV5: 0 | BW5: 0 | BX5: 0 | BY5: 0 | BZ5: 0 | CA5: 0 | CB5: 0 | CC5: 0
A6: 3组 | B6: 旧 | C6: 莱州粮食 | D6: 小麦 | E6: 24000 | F6: 0 | G6: 0 | H6: 0 | I6: 0 | J6: 0 | K6: 0 | L6: 0 | M6: 0 | N6: 0 | O6: 0 | P6: 0 | Q6: 0 | R6: 0 | S6: 0 | T6: 0 | U6: 0 | V6: 0 | W6: 0 | X6: 0 | Y6: 0 | Z6: 0 | AA6: 0 | AB6: 0 | AC6: 0 | AD6: 0 | AE6: 0 | AF6: 0 | AG6: 0 | AH6: 0 | AI6: 0 | AJ6: 0 | AK6: 0 | AL6: 0 | AM6: 0 | AN6: 0 | AO6: 0 | AP6: 0 | AQ6: 0 | AR6: 0 | AS6: 0 | AT6: 0 | AU6: 0 | AV6: 0 | AW6: 0 | AX6: 0 | AY6: 0 | AZ6: 0 | BA6: 0 | BB6: 0 | BC6: 0 | BD6: 0 | BE6: 0 | BF6: 0 | BG6: 0 | BH6: 0 | BI6: 0 | BJ6: 0 | BK6: 0 | BL6: 0 | BM6: 0 | BN6: 0 | BO6: 0 | BP6: 0 | BQ6: 0 | BR6: 0 | BS6: 0 | BT6: 0 | BU6: 0 | BV6: 0 | BW6: 0 | BX6: 0 | BY6: 0 | BZ6: 0 | CA6: 0 | CB6: 0 | CC6: 0
A7: 3组 | B7: 旧 | C7: 深圳福加德 | D7: DDGS | E7: 5000 | F7: 0 | G7: 0 | H7: 0 | I7: 0 | J7: 0 | K7: 0 | L7: 0 | M7: 0 | N7: 0 | O7: 0 | P7: 0 | Q7: 0 | R7: 0 | S7: 0 | T7: 0 | U7: 0 | V7: 0 | W7: 0 | X7: 0 | Y7: 0 | Z7: 0 | AA7: 0 | AB7: 0 | AC7: 0 | AD7: 0 | AE7: 0 | AF7: 0 | AG7: 0 | AH7: 0 | AI7: 0 | AJ7: 0 | AK7: 0 | AL7: 0 | AM7: 0 | AN7: 0 | AO7: 0 | AP7: 0 | AQ7: 0 | AR7: 0 | AS7: 0 | AT7: 0 | AU7: 0 | AV7: 0 | AW7: 0 | AX7: 0 | AY7: 0 | AZ7: 0 | BA7: 0 | BB7: 0 | BC7: 0 | BD7: 0 | BE7: 0 | BF7: 0 | BG7: 0 | BH7: 0 | BI7: 0 | BJ7: 0 | BK7: 0 | BL7: 0 | BM7: 0 | BN7: 0 | BO7: 0 | BP7: 0 | BQ7: 0 | BR7: 0 | BS7: 0 | BT7: 0 | BU7: 0 | BV7: 0 | BW7: 0 | BX7: 0 | BY7: 0 | BZ7: 0 | CA7: 0 | CB7: 0 | CC7: 0
A8: 3组 | B8: 旧 | C8: 深圳福加德 | D8: 高粱 | E8: 50000 | F8: 100000 | G8: 0 | H8: 60900 | I8: 60900 | J8: 0 | K8: 0 | L8: 0 | M8: 0 | N8: 0 | O8: 0 | P8: 0 | Q8: 0 | R8: 0 | S8: 0 | T8: 0 | U8: 0 | V8: 0 | W8: 0 | X8: 0 | Y8: 0 | Z8: 0 | AA8: 0 | AB8: 0 | AC8: 0 | AD8: 0 | AE8: 0 | AF8: 0 | AG8: 0 | AH8: 0 | AI8: 0 | AJ8: 0 | AK8: 0 | AL8: 0 | AM8: 0 | AN8: 0 | AO8: 0 | AP8: 0 | AQ8: 0 | AR8: 0 | AS8: 0 | AT8: 0 | AU8: 0 | AV8: 0 | AW8: 0 | AX8: 0 | AY8: 0 | AZ8: 0 | BA8: 0 | BB8: 0 | BC8: 0 | BD8: 0 | BE8: 0 | BF8: 0 | BG8: 0 | BH8: 0 | BI8: 0 | BJ8: 0 | BK8: 0 | BL8: 0 | BM8: 0 | BN8: 0 | BO8: 0 | BP8: 0 | BQ8: 0 | BR8: 0 | BS8: 0 | BT8: 0 | BU8: 0 | BV8: 0 | BW8: 0 | BX8: 0 | BY8: 0 | BZ8: 0 | CA8: 0 | CB8: 0 | CC8: 0
A9: 3组 | B9: 旧 | C9: 深圳福加德 | D9: 大麦 | E9: 0 | F9: 150000 | G9: 0 | H9: 0 | I9: 0 | J9: 0 | K9: 0 | L9: 0 | M9: 0 | N9: 0 | O9: 0 | P9: 0 | Q9: 0 | R9: 0 | S9: 0 | T9: 0 | U9: 0 | V9: 0 | W9: 0 | X9: 0 | Y9: 0 | Z9: 0 | AA9: 0 | AB9: 0 | AC9: 0 | AD9: 0 | AE9: 0 | AF9: 0 | AG9: 0 | AH9: 0 | AI9: 0 | AJ9: 0 | AK9: 0 | AL9: 0 | AM9: 0 | AN9: 0 | AO9: 0 | AP9: 0 | AQ9: 0 | AR9: 0 | AS9: 0 | AT9: 0 | AU9: 0 | AV9: 0 | AW9: 0 | AX9: 0 | AY9: 0 | AZ9: 0 | BA9: 0 | BB9: 0 | BC9: 0 | BD9: 0 | BE9: 0 | BF9: 0 | BG9: 0 | BH9: 0 | BI9: 0 | BJ9: 0 | BK9: 0 | BL9: 0 | BM9: 0 | BN9: 0 | BO9: 0 | BP9: 0 | BQ9: 0 | BR9: 0 | BS9: 0 | BT9: 0 | BU9: 0 | BV9: 0 | BW9: 0 | BX9: 0 | BY9: 0 | BZ9: 0 | CA9: 0 | CB9: 0 | CC9: 0
A10: 3组 | B10: 旧 | C10: 深圳福加德 | D10: 紫苜蓿草 | E10: 0 | F10: 0 | G10: 207 | H10: 0 | I10: 207 | J10: 0 | K10: 0 | L10: =SUM(J10:K10) -> 0 | M10: 0 | N10: 0 | O10: =SUM(M10:N10) -> 0 | P10: 0 | Q10: 0 | R10: =SUM(P10:Q10) -> 0 | S10: 0 | T10: 0 | U10: =SUM(S10:T10) -> 0 | V10: 0 | W10: 0 | X10: =SUM(V10:W10) -> 0 | Y10: 0 | Z10: 0 | AA10: =SUM(Y10:Z10) -> 0 | AB10: 0 | AC10: 0 | AD10: =SUM(AB10:AC10) -> 0 | AE10: 0 | AF10: 0 | AG10: =SUM(AE10:AF10) -> 0 | AH10: 0 | AI10: 0 | AJ10: =SUM(AH10:AI10) -> 0 | AK10: 0 | AL10: 0 | AM10: =SUM(AK10:AL10) -> 0 | AN10: 0 | AO10: 0 | AP10: =SUM(AN10:AO10) -> 0 | AQ10: 0 | AR10: 0 | AS10: =SUM(AQ10:AR10) -> 0 | AT10: 0 | AU10: 0 | AV10: =SUM(AT10:AU10) -> 0 | AW10: 0 | AX10: 0 | AY10: =SUM(AW10:AX10) -> 0 | AZ10: 0 | BA10: 0 | BB10: =SUM(AZ10:BA10) -> 0 | BC10: 0 | BD10: 0 | BE10: =SUM(BC10:BD10) -> 0 | BF10: 0 | BG10: 0 | BH10: =SUM(BF10:BG10) -> 0 | BI10: 0 | BJ10: 0 | BK10: =SUM(BI10:BJ10) -> 0 | BL10: 0 | BM10: 0 | BN10: =SUM(BL10:BM10) -> 0 | BO10: 0 | BP10: 0 | BQ10: =SUM(BO10:BP10) -> 0 | BR10: 0 | BS10: 0 | BT10: =SUM(BR10:BS10) -> 0 | BU10: 0 | BV10: 0 | BW10: =SUM(BU10:BV10) -> 0 | BX10: 0 | BY10: 0 | BZ10: =SUM(BX10:BY10) -> 0 | CA10: =J10+P10+V10+AB10+AH10+AN10+AT10+AZ10+BF10+BL10+BR10+BX10 -> 0 | CB10: =K10+Q10+W10+AC10+AI10+AO10+AU10+BA10+BG10+BM10+BS10+BY10 -> 0 | CC10: =SUM(CA10:CB10) -> 0
A11: 3组 | B11: 旧 | C11: 新希望六和 | D11: DDGS | E11: 15000 | F11: 0 | G11: 0 | H11: 0 | I11: 0 | J11: 0 | K11: 0 | L11: 0 | M11: 0 | N11: 0 | O11: 0 | P11: 0 | Q11: 0 | R11: 0 | S11: 0 | T11: 0 | U11: 0 | V11: 0 | W11: 0 | X11: 0 | Y11: 0 | Z11: 0 | AA11: 0 | AB11: 0 | AC11: 0 | AD11: 0 | AE11: 0 | AF11: 0 | AG11: 0 | AH11: 0 | AI11: 0 | AJ11: 0 | AK11: 0 | AL11: 0 | AM11: 0 | AN11: 0 | AO11: 0 | AP11: 0 | AQ11: 0 | AR11: 0 | AS11: 0 | AT11: 0 | AU11: 0 | AV11: 0 | AW11: 0 | AX11: 0 | AY11: 0 | AZ11: 0 | BA11: 0 | BB11: 0 | BC11: 0 | BD11: 0 | BE11: 0 | BF11: 0 | BG11: 0 | BH11: 0 | BI11: 0 | BJ11: 0 | BK11: 0 | BL11: 0 | BM11: 0 | BN11: 0 | BO11: 0 | BP11: 0 | BQ11: 0 | BR11: 0 | BS11: 0 | BT11: 0 | BU11: 0 | BV11: 0 | BW11: 0 | BX11: 0 | BY11: 0 | BZ11: 0 | CA11: 0 | CB11: 0 | CC11: 0
A12: 3组 | B12: 旧 | C12: 湛江嘉冠禾 | D12: DDGS | E12: 20000 | F12: 0 | G12: 4900 | H12: 0 | I12: 4900 | J12: 0 | K12: 0 | L12: 0 | M12: 0 | N12: 0 | O12: 0 | P12: 0 | Q12: 0 | R12: 0 | S12: 0 | T12: 0 | U12: 0 | V12: 0 | W12: 0 | X12: 0 | Y12: 0 | Z12: 0 | AA12: 0 | AB12: 0 | AC12: 0 | AD12: 0 | AE12: 0 | AF12: 0 | AG12: 0 | AH12: 0 | AI12: 0 | AJ12: 0 | AK12: 0 | AL12: 0 | AM12: 0 | AN12: 0 | AO12: 0 | AP12: 0 | AQ12: 0 | AR12: 0 | AS12: 0 | AT12: 0 | AU12: 0 | AV12: 0 | AW12: 0 | AX12: 0 | AY12: 0 | AZ12: 0 | BA12: 0 | BB12: 0 | BC12: 0 | BD12: 0 | BE12: 0 | BF12: 0 | BG12: 0 | BH12: 0 | BI12: 0 | BJ12: 0 | BK12: 0 | BL12: 0 | BM12: 0 | BN12: 0 | BO12: 0 | BP12: 0 | BQ12: 0 | BR12: 0 | BS12: 0 | BT12: 0 | BU12: 0 | BV12: 0 | BW12: 0 | BX12: 0 | BY12: 0 | BZ12: 0 | CA12: 0 | CB12: 0 | CC12: 0
A13: 3组 | B13: 旧 | C13: 植之元 | D13: DDGS | E13: 40000 | F13: 0 | G13: 0 | H13: 0 | I13: 0 | J13: 0 | K13: 0 | L13: 0 | M13: 0 | N13: 0 | O13: 0 | P13: 0 | Q13: 0 | R13: 0 | S13: 0 | T13: 0 | U13: 0 | V13: 0 | W13: 0 | X13: 0 | Y13: 0 | Z13: 0 | AA13: 0 | AB13: 0 | AC13: 0 | AD13: 0 | AE13: 0 | AF13: 0 | AG13: 0 | AH13: 0 | AI13: 0 | AJ13: 0 | AK13: 0 | AL13: 0 | AM13: 0 | AN13: 0 | AO13: 0 | AP13: 0 | AQ13: 0 | AR13: 0 | AS13: 0 | AT13: 0 | AU13: 0 | AV13: 0 | AW13: 0 | AX13: 0 | AY13: 0 | AZ13: 0 | BA13: 0 | BB13: 0 | BC13: 0 | BD13: 0 | BE13: 0 | BF13: 0 | BG13: 0 | BH13: 0 | BI13: 0 | BJ13: 0 | BK13: 0 | BL13: 0 | BM13: 0 | BN13: 0 | BO13: 0 | BP13: 0 | BQ13: 0 | BR13: 0 | BS13: 0 | BT13: 0 | BU13: 0 | BV13: 0 | BW13: 0 | BX13: 0 | BY13: 0 | BZ13: 0 | CA13: 0 | CB13: 0 | CC13: 0
A14: 3组 | B14: 旧 | C14: 植之元 | D14: 大豆 | E14: 100000 | F14: 1500000 | G14: 2287.829 | H14: 130000 | I14: 132287.829 | J14: 0 | K14: 0 | L14: 0 | M14: 0 | N14: 0 | O14: 0 | P14: 0 | Q14: 0 | R14: 0 | S14: 0 | T14: 0 | U14: 0 | V14: 0 | W14: 0 | X14: 0 | Y14: 0 | Z14: 0 | AA14: 0 | AB14: 0 | AC14: 0 | AD14: 0 | AE14: 0 | AF14: 0 | AG14: 0 | AH14: 0 | AI14: 0 | AJ14: 0 | AK14: 0 | AL14: 0 | AM14: 0 | AN14: 0 | AO14: 0 | AP14: 0 | AQ14: 0 | AR14: 0 | AS14: 0 | AT14: 0 | AU14: 0 | AV14: 0 | AW14: 0 | AX14: 0 | AY14: 0 | AZ14: 0 | BA14: 0 | BB14: 0 | BC14: 0 | BD14: 0 | BE14: 0 | BF14: 0 | BG14: 0 | BH14: 0 | BI14: 0 | BJ14: 0 | BK14: 0 | BL14: 0 | BM14: 0 | BN14: 0 | BO14: 0 | BP14: 0 | BQ14: 0 | BR14: 0 | BS14: 0 | BT14: 0 | BU14: 0 | BV14: 0 | BW14: 0 | BX14: 0 | BY14: 0 | BZ14: 0 | CA14: 0 | CB14: 0 | CC14: 0
A15: 3组 | B15: 旧 | C15: 植之元 | D15: 大麦 | E15: 0 | F15: 60000 | G15: 0 | H15: 0 | I15: 0 | J15: 0 | K15: 0 | L15: 0 | M15: 0 | N15: 0 | O15: 0 | P15: 0 | Q15: 0 | R15: 0 | S15: 0 | T15: 0 | U15: 0 | V15: 0 | W15: 0 | X15: 0 | Y15: 0 | Z15: 0 | AA15: 0 | AB15: 0 | AC15: 0 | AD15: 0 | AE15: 0 | AF15: 0 | AG15: 0 | AH15: 0 | AI15: 0 | AJ15: 0 | AK15: 0 | AL15: 0 | AM15: 0 | AN15: 0 | AO15: 0 | AP15: 0 | AQ15: 0 | AR15: 0 | AS15: 0 | AT15: 0 | AU15: 0 | AV15: 0 | AW15: 0 | AX15: 0 | AY15: 0 | AZ15: 0 | BA15: 0 | BB15: 0 | BC15: 0 | BD15: 0 | BE15: 0 | BF15: 0 | BG15: 0 | BH15: 0 | BI15: 0 | BJ15: 0 | BK15: 0 | BL15: 0 | BM15: 0 | BN15: 0 | BO15: 0 | BP15: 0 | BQ15: 0 | BR15: 0 | BS15: 0 | BT15: 0 | BU15: 0 | BV15: 0 | BW15: 0 | BX15: 0 | BY15: 0 | BZ15: 0 | CA15: 0 | CB15: 0 | CC15: 0
A16: 3组 | B16: 旧 | C16: 植之元 | D16: 高粱 | E16: 3000 | F16: 60000 | G16: 0 | H16: 0 | I16: 0 | J16: 0 | K16: 0 | L16: 0 | M16: 0 | N16: 0 | O16: 0 | P16: 0 | Q16: 0 | R16: 0 | S16: 0 | T16: 0 | U16: 0 | V16: 0 | W16: 0 | X16: 0 | Y16: 0 | Z16: 0 | AA16: 0 | AB16: 0 | AC16: 0 | AD16: 0 | AE16: 0 | AF16: 0 | AG16: 0 | AH16: 0 | AI16: 0 | AJ16: 0 | AK16: 0 | AL16: 0 | AM16: 0 | AN16: 0 | AO16: 0 | AP16: 0 | AQ16: 0 | AR16: 0 | AS16: 0 | AT16: 0 | AU16: 0 | AV16: 0 | AW16: 0 | AX16: 0 | AY16: 0 | AZ16: 0 | BA16: 0 | BB16: 0 | BC16: 0 | BD16: 0 | BE16: 0 | BF16: 0 | BG16: 0 | BH16: 0 | BI16: 0 | BJ16: 0 | BK16: 0 | BL16: 0 | BM16: 0 | BN16: 0 | BO16: 0 | BP16: 0 | BQ16: 0 | BR16: 0 | BS16: 0 | BT16: 0 | BU16: 0 | BV16: 0 | BW16: 0 | BX16: 0 | BY16: 0 | BZ16: 0 | CA16: 0 | CB16: 0 | CC16: 0
A17: 3组 | B17: 旧 | C17: 植之元 | D17: 玉米 | E17: 20000 | F17: 0 | G17: 0 | H17: 0 | I17: 0 | J17: 0 | K17: 0 | L17: 0 | M17: 0 | N17: 0 | O17: 0 | P17: 0 | Q17: 0 | R17: 0 | S17: 0 | T17: 0 | U17: 0 | V17: 0 | W17: 0 | X17: 0 | Y17: 0 | Z17: 0 | AA17: 0 | AB17: 0 | AC17: 0 | AD17: 0 | AE17: 0 | AF17: 0 | AG17: 0 | AH17: 0 | AI17: 0 | AJ17: 0 | AK17: 0 | AL17: 0 | AM17: 0 | AN17: 0 | AO17: 0 | AP17: 0 | AQ17: 0 | AR17: 0 | AS17: 0 | AT17: 0 | AU17: 0 | AV17: 0 | AW17: 0 | AX17: 0 | AY17: 0 | AZ17: 0 | BA17: 0 | BB17: 0 | BC17: 0 | BD17: 0 | BE17: 0 | BF17: 0 | BG17: 0 | BH17: 0 | BI17: 0 | BJ17: 0 | BK17: 0 | BL17: 0 | BM17: 0 | BN17: 0 | BO17: 0 | BP17: 0 | BQ17: 0 | BR17: 0 | BS17: 0 | BT17: 0 | BU17: 0 | BV17: 0 | BW17: 0 | BX17: 0 | BY17: 0 | BZ17: 0 | CA17: 0 | CB17: 0 | CC17: 0
A18: 3组 | B18: 旧 | C18: 植之元 | D18: 米糠 | E18: 20000 | F18: 0 | G18: 0 | H18: 0 | I18: 0 | J18: 0 | K18: 0 | L18: 0 | M18: 0 | N18: 0 | O18: 0 | P18: 0 | Q18: 0 | R18: 0 | S18: 0 | T18: 0 | U18: 0 | V18: 0 | W18: 0 | X18: 0 | Y18: 0 | Z18: 0 | AA18: 0 | AB18: 0 | AC18: 0 | AD18: 0 | AE18: 0 | AF18: 0 | AG18: 0 | AH18: 0 | AI18: 0 | AJ18: 0 | AK18: 0 | AL18: 0 | AM18: 0 | AN18: 0 | AO18: 0 | AP18: 0 | AQ18: 0 | AR18: 0 | AS18: 0 | AT18: 0 | AU18: 0 | AV18: 0 | AW18: 0 | AX18: 0 | AY18: 0 | AZ18: 0 | BA18: 0 | BB18: 0 | BC18: 0 | BD18: 0 | BE18: 0 | BF18: 0 | BG18: 0 | BH18: 0 | BI18: 0 | BJ18: 0 | BK18: 0 | BL18: 0 | BM18: 0 | BN18: 0 | BO18: 0 | BP18: 0 | BQ18: 0 | BR18: 0 | BS18: 0 | BT18: 0 | BU18: 0 | BV18: 0 | BW18: 0 | BX18: 0 | BY18: 0 | BZ18: 0 | CA18: 0 | CB18: 0 | CC18: 0
A19: 3组 | B19: 旧 | C19: 东凌贸易 | D19: DDGS | E19: 0 | F19: 0 | G19: 1000 | H19: 0 | I19: 1000 | J19: 0 | K19: 0 | L19: 0 | M19: 0 | N19: 0 | O19: 0 | P19: 0 | Q19: 0 | R19: 0 | S19: 0 | T19: 0 | U19: 0 | V19: 0 | W19: 0 | X19: 0 | Y19: 0 | Z19: 0 | AA19: 0 | AB19: 0 | AC19: 0 | AD19: 0 | AE19: 0 | AF19: 0 | AG19: 0 | AH19: 0 | AI19: 0 | AJ19: 0 | AK19: 0 | AL19: 0 | AM19: 0 | AN19: 0 | AO19: 0 | AP19: 0 | AQ19: 0 | AR19: 0 | AS19: 0 | AT19: 0 | AU19: 0 | AV19: 0 | AW19: 0 | AX19: 0 | AY19: 0 | AZ19: 0 | BA19: 0 | BB19: 0 | BC19: 0 | BD19: 0 | BE19: 0 | BF19: 0 | BG19: 0 | BH19: 0 | BI19: 0 | BJ19: 0 | BK19: 0 | BL19: 0 | BM19: 0 | BN19: 0 | BO19: 0 | BP19: 0 | BQ19: 0 | BR19: 0 | BS19: 0 | BT19: 0 | BU19: 0 | BV19: 0 | BW19: 0 | BX19: 0 | BY19: 0 | BZ19: 0 | CA19: 0 | CB19: 0 | CC19: 0
A20: 3组 | B20: 旧 | C20: 厦门明穗 | D20: 高粱 | E20: 0 | F20: 0 | G20: 0 | H20: 14332.423 | I20: 14332.423 | J20: 0 | K20: 0 | L20: 0 | M20: 0 | N20: 0 | O20: 0 | P20: 0 | Q20: 0 | R20: 0 | S20: 0 | T20: 0 | U20: 0 | V20: 0 | W20: 0 | X20: 0 | Y20: 0 | Z20: 0 | AA20: 0 | AB20: 0 | AC20: 0 | AD20: 0 | AE20: 0 | AF20: 0 | AG20: 0 | AH20: 0 | AI20: 0 | AJ20: 0 | AK20: 0 | AL20: 0 | AM20: 0 | AN20: 0 | AO20: 0 | AP20: 0 | AQ20: 0 | AR20: 0 | AS20: 0 | AT20: 0 | AU20: 0 | AV20: 0 | AW20: 0 | AX20: 0 | AY20: 0 | AZ20: 0 | BA20: 0 | BB20: 0 | BC20: 0 | BD20: 0 | BE20: 0 | BF20: 0 | BG20: 0 | BH20: 0 | BI20: 0 | BJ20: 0 | BK20: 0 | BL20: 0 | BM20: 0 | BN20: 0 | BO20: 0 | BP20: 0 | BQ20: 0 | BR20: 0 | BS20: 0 | BT20: 0 | BU20: 0 | BV20: 0 | BW20: 0 | BX20: 0 | BY20: 0 | BZ20: 0 | CA20: 0 | CB20: 0 | CC20: 0
A21: 3组 | B21: 旧 | C21: 佛山谷宝 | D21: 大米 | E21: 0 | F21: 0 | G21: 750 | H21: 0 | I21: 750 | J21: 0 | K21: 0 | L21: 0 | M21: 0 | N21: 0 | O21: 0 | P21: 0 | Q21: 0 | R21: 0 | S21: 0 | T21: 0 | U21: 0 | V21: 0 | W21: 0 | X21: 0 | Y21: 0 | Z21: 0 | AA21: 0 | AB21: 0 | AC21: 0 | AD21: 0 | AE21: 0 | AF21: 0 | AG21: 0 | AH21: 0 | AI21: 0 | AJ21: 0 | AK21: 0 | AL21: 0 | AM21: 0 | AN21: 0 | AO21: 0 | AP21: 0 | AQ21: 0 | AR21: 0 | AS21: 0 | AT21: 0 | AU21: 0 | AV21: 0 | AW21: 0 | AX21: 0 | AY21: 0 | AZ21: 0 | BA21: 0 | BB21: 0 | BC21: 0 | BD21: 0 | BE21: 0 | BF21: 0 | BG21: 0 | BH21: 0 | BI21: 0 | BJ21: 0 | BK21: 0 | BL21: 0 | BM21: 0 | BN21: 0 | BO21: 0 | BP21: 0 | BQ21: 0 | BR21: 0 | BS21: 0 | BT21: 0 | BU21: 0 | BV21: 0 | BW21: 0 | BX21: 0 | BY21: 0 | BZ21: 0 | CA21: 0 | CB21: 0 | CC21: 0
C22: 合计 | E22: =SUM(E3:E21) -> 310000 | F22: 1920000 | G22: 9144.829 | H22: 211232.423 | I22: =SUM(I3:I21) -> 220377.252 | J22: 0 | K22: 0 | L22: 0 | M22: 0 | N22: 0 | O22: 0 | P22: 0 | Q22: 0 | R22: 0 | S22: 0 | T22: 0 | U22: 0 | V22: 0 | W22: 0 | X22: 0 | Y22: 0 | Z22: 0 | AA22: 0 | AB22: 0 | AC22: 0 | AD22: 0 | AE22: 0 | AF22: 0 | AG22: 0 | AH22: 0 | AI22: 0 | AJ22: 0 | AK22: 0 | AL22: 0 | AM22: 0 | AN22: 0 | AO22: 0 | AP22: 0 | AQ22: 0 | AR22: 0 | AS22: 0 | AT22: 0 | AU22: 0 | AV22: 0 | AW22: 0 | AX22: 0 | AY22: 0 | AZ22: 0 | BA22: 0 | BB22: 0 | BC22: 0 | BD22: 0 | BE22: 0 | BF22: 0 | BG22: 0 | BH22: 0 | BI22: 0 | BJ22: 0 | BK22: 0 | BL22: 0 | BM22: 0 | BN22: 0 | BO22: 0 | BP22: 0 | BQ22: 0 | BR22: 0 | BS22: 0 | BT22: 0 | BU22: =SUM(BU3:BU21) -> 0 | BV22: 0 | BW22: 0 | BX22: 0 | BY22: 0 | BZ22: 0 | CA22: 0 | CB22: 0 | CC22: 0

Sheet 4组 (hidden)
C1: 1组 | D1: 新
C2: 2组 | D2: 旧
C3: 3组
C4: 4组
C5: 5组
A6: 2016侨益股份有限公司货代事业部到货量统计表
A7: 客服组 | B7: 业务类型 | C7: 客户 | D7: 货名 | E7: 2016预算（集）吨 | F7: 2016预算（散）吨 | G7: 预计集装箱货量1月 | H7: 预计散船货量1月 | I7: 预计货量合计1月 | J7: 实际集装箱货量1月 | K7: 实际散船货量1月 | L7: 实际货量合计1月 | M7: 预计集装箱货量2月 | N7: 预计散船货量2月 | O7: 预计货量合计2月 | P7: 实际集装箱货量2月 | Q7: 实际散船货量2月 | R7: 实际货量合计2月 | S7: 预计集装箱货量3月 | T7: 预计散船货量3月 | U7: 预计货量合计3月 | V7: 实际集装箱货量3月 | W7: 实际散船货量3月 | X7: 实际货量合计3月 | Y7: 预计集装箱货量4月 | Z7: 预计散船货量4月 | AA7: 预计货量合计4月 | AB7: 实际集装箱货量4月 | AC7: 实际散船货量4月 | AD7: 实际货量合计4月 | AE7: 预计集装箱货量5月 | AF7: 预计散船货量5月 | AG7: 预计货量合计5月 | AH7: 实际集装箱货量5月 | AI7: 实际散船货量5月 | AJ7: 实际货量合计5月 | AK7: 预计集装箱货量6月 | AL7: 预计散船货量6月 | AM7: 预计货量合计6月 | AN7: 实际集装箱货量6月 | AO7: 实际散船货量6月 | AP7: 实际货量合计6月 | AQ7: 预计集装箱货量7月 | AR7: 预计散船货量7月 | AS7: 预计货量合计7月 | AT7: 实际集装箱货量7月 | AU7: 实际散船货量7月 | AV7: 实际货量合计7月 | AW7: 预计集装箱货量8月 | AX7: 预计散船货量8月 | AY7: 预计货量合计8月 | AZ7: 实际集装箱货量8月 | BA7: 实际散船货量8月 | BB7: 实际货量合计8月 | BC7: 预计集装箱货量9月 | BD7: 预计散船货量9月 | BE7: 预计货量合计9月 | BF7: 实际集装箱货量9月 | BG7: 实际散船货量9月 | BH7: 实际货量合计9月 | BI7: 预计集装箱货量10月 | BJ7: 预计散船货量10月 | BK7: 预计货量合计10月 | BL7: 实际集装箱货量10月 | BM7: 实际散船货量10月 | BN7: 实际货量合计10月 | BO7: 预计集装箱货量11月 | BP7: 预计散船货量11月 | BQ7: 预计货量合计11月 | BR7: 实际集装箱货量11月 | BS7: 实际散船货量11月 | BT7: 实际货量合计11月 | BU7: 预计集装箱货量12月 | BV7: 预计散船货量12月 | BW7: 预计货量合计12月 | BX7: 实际集装箱货量12月 | BY7: 实际散船货量12月 | BZ7: 实际货量合计12月 | CA7: 实际集装箱货量全年 | CB7: 实际散船货量全年 | CC7: 实际货量合计全年
A8: 4组 | B8: 旧 | C8: 东莞顶志 | D8: 芝麻 | E8: 5000 | F8: 0 | G8: 330 | H8: 0 | I8: =SUM(G8:H8) -> 330 | J8: 0 | K8: 0 | L8: =SUM(J8:K8) -> 0 | M8: 0 | N8: 0 | O8: =SUM(M8:N8) -> 0 | P8: 0 | Q8: 0 | R8: =SUM(P8:Q8) -> 0 | S8: 0 | T8: 0 | U8: =SUM(S8:T8) -> 0 | V8: 0 | W8: 0 | X8: =SUM(V8:W8) -> 0 | Y8: 0 | Z8: 0 | AA8: =SUM(Y8:Z8) -> 0 | AB8: 0 | AC8: 0 | AD8: =SUM(AB8:AC8) -> 0 | AE8: 0 | AF8: 0 | AG8: =SUM(AE8:AF8) -> 0 | AH8: 0 | AI8: 0 | AJ8: =SUM(AH8:AI8) -> 0 | AK8: 0 | AL8: 0 | AM8: =SUM(AK8:AL8) -> 0 | AN8: 0 | AO8: 0 | AP8: =SUM(AN8:AO8) -> 0 | AQ8: 0 | AR8: 0 | AS8: =SUM(AQ8:AR8) -> 0 | AT8: 0 | AU8: 0 | AV8: =SUM(AT8:AU8) -> 0 | AW8: 0 | AX8: 0 | AY8: =SUM(AW8:AX8) -> 0 | AZ8: 0 | BA8: 0 | BB8: =SUM(AZ8:BA8) -> 0 | BC8: 0 | BD8: 0 | BE8: =SUM(BC8:BD8) -> 0 | BF8: 0 | BG8: 0 | BH8: =SUM(BF8:BG8) -> 0 | BI8: 0 | BJ8: 0 | BK8: =SUM(BI8:BJ8) -> 0 | BL8: 0 | BM8: 0 | BN8: =SUM(BL8:BM8) -> 0 | BO8: 0 | BP8: 0 | BQ8: =SUM(BO8:BP8) -> 0 | BR8: 0 | BS8: 0 | BT8: =SUM(BR8:BS8) -> 0 | BU8: 0 | BV8: 0 | BW8: =SUM(BU8:BV8) -> 0 | BX8: 0 | BY8: 0 | BZ8: =SUM(BX8:BY8) -> 0 | CA8: =J8+P8+V8+AB8+AH8+AN8+AT8+AZ8+BF8+BL8+BR8+BX8 -> 0 | CB8: =K8+Q8+W8+AC8+AI8+AO8+AU8+BA8+BG8+BM8+BS8+BY8 -> 0 | CC8: =SUM(CA8:CB8) -> 0
A9: 4组 | B9: 旧 | C9: 东莞顶志 | D9: 芝麻油 | E9: 5000 | F9: 0 | G9: 0 | H9: 0 | I9: =SUM(G9:H9) -> 0 | J9: 0 | K9: 0 | L9: =SUM(J9:K9) -> 0 | M9: 0 | N9: 0 | O9: =SUM(M9:N9) -> 0 | P9: 0 | Q9: 0 | R9: =SUM(P9:Q9) -> 0 | S9: 0 | T9: 0 | U9: =SUM(S9:T9) -> 0 | V9: 0 | W9: 0 | X9: =SUM(V9:W9) -> 0 | Y9: 0 | Z9: 0 | AA9: =SUM(Y9:Z9) -> 0 | AB9: 0 | AC9: 0 | AD9: =SUM(AB9:AC9) -> 0 | AE9: 0 | AF9: 0 | AG9: =SUM(AE9:AF9) -> 0 | AH9: 0 | AI9: 0 | AJ9: =SUM(AH9:AI9) -> 0 | AK9: 0 | AL9: 0 | AM9: =SUM(AK9:AL9) -> 0 | AN9: 0 | AO9: 0 | AP9: =SUM(AN9:AO9) -> 0 | AQ9: 0 | AR9: 0 | AS9: =SUM(AQ9:AR9) -> 0 | AT9: 0 | AU9: 0 | AV9: =SUM(AT9:AU9) -> 0 | AW9: 0 | AX9: 0 | AY9: =SUM(AW9:AX9) -> 0 | AZ9: 0 | BA9: 0 | BB9: =SUM(AZ9:BA9) -> 0 | BC9: 0 | BD9: 0 | BE9: =SUM(BC9:BD9) -> 0 | BF9: 0 | BG9: 0 | BH9: =SUM(BF9:BG9) -> 0 | BI9: 0 | BJ9: 0 | BK9: =SUM(BI9:BJ9) -> 0 | BL9: 0 | BM9: 0 | BN9: =SUM(BL9:BM9) -> 0 | BO9: 0 | BP9: 0 | BQ9: =SUM(BO9:BP9) -> 0 | BR9: 0 | BS9: 0 | BT9: =SUM(BR9:BS9) -> 0 | BU9: 0 | BV9: 0 | BW9: =SUM(BU9:BV9) -> 0 | BX9: 0 | BY9: 0 | BZ9: =SUM(BX9:BY9) -> 0 | CA9: =J9+P9+V9+AB9+AH9+AN9+AT9+AZ9+BF9+BL9+BR9+BX9 -> 0 | CB9: =K9+Q9+W9+AC9+AI9+AO9+AU9+BA9+BG9+BM9+BS9+BY9 -> 0 | CC9: =SUM(CA9:CB9) -> 0
A10: 4组 | B10: 旧 | C10: 海大 | D10: 高粱 | E10: 0 | F10: 120000 | G10: 0 | H10: 0 | I10: =SUM(G10:H10) -> 0 | J10: 0 | K10: 0 | L10: =SUM(J10:K10) -> 0 | M10: 0 | N10: 0 | O10: =SUM(M10:N10) -> 0 | P10: 0 | Q10: 0 | R10: =SUM(P10:Q10) -> 0 | S10: 0 | T10: 0 | U10: =SUM(S10:T10) -> 0 | V10: 0 | W10: 0 | X10: =SUM(V10:W10) -> 0 | Y10: 0 | Z10: 0 | AA10: =SUM(Y10:Z10) -> 0 | AB10: 0 | AC10: 0 | AD10: =SUM(AB10:AC10) -> 0 | AE10: 0 | AF10: 0 | AG10: =SUM(AE10:AF10) -> 0 | AH10: 0 | AI10: 0 | AJ10: =SUM(AH10:AI10) -> 0 | AK10: 0 | AL10: 0 | AM10: =SUM(AK10:AL10) -> 0 | AN10: 0 | AO10: 0 | AP10: =SUM(AN10:AO10) -> 0 | AQ10: 0 | AR10: 0 | AS10: =SUM(AQ10:AR10) -> 0 | AT10: 0 | AU10: 0 | AV10: =SUM(AT10:AU10) -> 0 | AW10: 0 | AX10: 0 | AY10: =SUM(AW10:AX10) -> 0 | AZ10: 0 | BA10: 0 | BB10: =SUM(AZ10:BA10) -> 0 | BC10: 0 | BD10: 0 | BE10: =SUM(BC10:BD10) -> 0 | BF10: 0 | BG10: 0 | BH10: =SUM(BF10:BG10) -> 0 | BI10: 0 | BJ10: 0 | BK10: =SUM(BI10:BJ10) -> 0 | BL10: 0 | BM10: 0 | BN10: =SUM(BL10:BM10) -> 0 | BO10: 0 | BP10: 0 | BQ10: =SUM(BO10:BP10) -> 0 | BR10: 0 | BS10: 0 | BT10: =SUM(BR10:BS10) -> 0 | BU10: 0 | BV10: 0 | BW10: =SUM(BU10:BV10) -> 0 | BX10: 0 | BY10: 0 | BZ10: =SUM(BX10:BY10) -> 0 | CA10: =J10+P10+V10+AB10+AH10+AN10+AT10+AZ10+BF10+BL10+BR10+BX10 -> 0 | CB10: 0 | CC10: =SUM(CA10:CB10) -> 0
A11: 4组 | B11: 旧 | C11: 建发物流集团 | D11: 铅精矿 | E11: 0 | F11: 0 | G11: 0 | H11: 0 | I11: 0 | J11: 0 | K11: 0 | L11: 0 | M11: 0 | N11: 0 | O11: 0 | P11: 0 | Q11: 0 | R11: 0 | S11: 0 | T11: 0 | U11: 0 | V11: 0 | W11: 0 | X11: 0 | Y11: 0 | Z11: 0 | AA11: 0 | AB11: 0 | AC11: 0 | AD11: 0 | AE11: 0 | AF11: 0 | AG11: 0 | AH11: 0 | AI11: 0 | AJ11: 0 | AK11: 0 | AL11: 0 | AM11: 0 | AN11: 0 | AO11: 0 | AP11: 0 | AQ11: 0 | AR11: 0 | AS11: 0 | AT11: 0 | AU11: 0 | AV11: 0 | AW11: 0 | AX11: 0 | AY11: 0 | AZ11: 0 | BA11: 0 | BB11: 0 | BC11: 0 | BD11: 0 | BE11: 0 | BF11: 0 | BG11: 0 | BH11: 0 | BI11: 0 | BJ11: 0 | BK11: 0 | BL11: 0 | BM11: 0 | BN11: 0 | BO11: 0 | BP11: 0 | BQ11: 0 | BR11: 0 | BS11: 0 | BT11: 0 | BU11: 0 | BV11: 0 | BW11: 0 | BX11: 0 | BY11: 0 | BZ11: 0 | CA11: 0 | CB11: 0 | CC11: 0
A12: 4组 | B12: 旧 | C12: 青岛柏尊 | D12: 米糠 | E12: 40000 | F12: 0 | G12: 2500 | H12: 0 | I12: 2500 | J12: 0 | K12: 0 | L12: 0 | M12: 0 | N12: 0 | O12: 0 | P12: 0 | Q12: 0 | R12: 0 | S12: 0 | T12: 0 | U12: 0 | V12: 0 | W12: 0 | X12: 0 | Y12: 0 | Z12: 0 | AA12: 0 | AB12: 0 | AC12: 0 | AD12: 0 | AE12: 0 | AF12: 0 | AG12: 0 | AH12: 0 | AI12: 0 | AJ12: 0 | AK12: 0 | AL12: 0 | AM12: 0 | AN12: 0 | AO12: 0 | AP12: 0 | AQ12: 0 | AR12: 0 | AS12: 0 | AT12: 0 | AU12: 0 | AV12: 0 | AW12: 0 | AX12: 0 | AY12: 0 | AZ12: 0 | BA12: 0 | BB12: 0 | BC12: 0 | BD12: 0 | BE12: 0 | BF12: 0 | BG12: 0 | BH12: 0 | BI12: 0 | BJ12: 0 | BK12: 0 | BL12: 0 | BM12: 0 | BN12: 0 | BO12: 0 | BP12: 0 | BQ12: 0 | BR12: 0 | BS12: 0 | BT12: 0 | BU12: 0 | BV12: 0 | BW12: 0 | BX12: 0 | BY12: 0 | BZ12: 0 | CA12: 0 | CB12: 0 | CC12: 0
A13: 4组 | B13: 旧 | C13: 森茂发 | D13: 麦麸 | E13: 20000 | F13: 0 | G13: 220 | H13: 0 | I13: 220 | J13: 0 | K13: 0 | L13: 0 | M13: 0 | N13: 0 | O13: 0 | P13: 0 | Q13: 0 | R13: 0 | S13: 0 | T13: 0 | U13: 0 | V13: 0 | W13: 0 | X13: 0 | Y13: 0 | Z13: 0 | AA13: 0 | AB13: 0 | AC13: 0 | AD13: 0 | AE13: 0 | AF13: 0 | AG13: 0 | AH13: 0 | AI13: 0 | AJ13: 0 | AK13: 0 | AL13: 0 | AM13: 0 | AN13: 0 | AO13: 0 | AP13: 0 | AQ13: 0 | AR13: 0 | AS13: 0 | AT13: 0 | AU13: 0 | AV13: 0 | AW13: 0 | AX13: 0 | AY13: 0 | AZ13: 0 | BA13: 0 | BB13: 0 | BC13: 0 | BD13: 0 | BE13: 0 | BF13: 0 | BG13: 0 | BH13: 0 | BI13: 0 | BJ13: 0 | BK13: 0 | BL13: 0 | BM13: 0 | BN13: 0 | BO13: 0 | BP13: 0 | BQ13: 0 | BR13: 0 | BS13: 0 | BT13: 0 | BU13: 0 | BV13: 0 | BW13: 0 | BX13: 0 | BY13: 0 | BZ13: 0 | CA13: 0 | CB13: 0 | CC13: 0
A14: 4组 | B14: 旧 | C14: 厦门象屿 | D14: 高粱 | E14: 0 | F14: 0 | G14: 0 | H14: 57720 | I14: 57720 | J14: 0 | K14: 0 | L14: 0 | M14: 0 | N14: 0 | O14: 0 | P14: 0 | Q14: 0 | R14: 0 | S14: 0 | T14: 0 | U14: 0 | V14: 0 | W14: 0 | X14: 0 | Y14: 0 | Z14: 0 | AA14: 0 | AB14: 0 | AC14: 0 | AD14: 0 | AE14: 0 | AF14: 0 | AG14: 0 | AH14: 0 | AI14: 0 | AJ14: 0 | AK14: 0 | AL14: 0 | AM14: 0 | AN14: 0 | AO14: 0 | AP14: 0 | AQ14: 0 | AR14: 0 | AS14: 0 | AT14: 0 | AU14: 0 | AV14: 0 | AW14: 0 | AX14: 0 | AY14: 0 | AZ14: 0 | BA14: 0 | BB14: 0 | BC14: 0 | BD14: 0 | BE14: 0 | BF14: 0 | BG14: 0 | BH14: 0 | BI14: 0 | BJ14: 0 | BK14: 0 | BL14: 0 | BM14: 0 | BN14: 0 | BO14: 0 | BP14: 0 | BQ14: 0 | BR14: 0 | BS14: 0 | BT14: 0 | BU14: 0 | BV14: 0 | BW14: 0 | BX14: 0 | BY14: 0 | BZ14: 0 | CA14: 0 | CB14: 0 | CC14: 0
A15: 4组 | B15: 旧 | C15: 成都通威 | D15: 鱼粉 | E15: 0 | F15: 0 | G15: 150 | H15: 0 | I15: 150 | J15: 0 | K15: 0 | L15: 0 | M15: 0 | N15: 0 | O15: 0 | P15: 0 | Q15: 0 | R15: 0 | S15: 0 | T15: 0 | U15: 0 | V15: 0 | W15: 0 | X15: 0 | Y15: 0 | Z15: 0 | AA15: 0 | AB15: 0 | AC15: 0 | AD15: 0 | AE15: 0 | AF15: 0 | AG15: 0 | AH15: 0 | AI15: 0 | AJ15: 0 | AK15: 0 | AL15: 0 | AM15: 0 | AN15: 0 | AO15: 0 | AP15: 0 | AQ15: 0 | AR15: 0 | AS15: 0 | AT15: 0 | AU15: 0 | AV15: 0 | AW15: 0 | AX15: 0 | AY15: 0 | AZ15: 0 | BA15: 0 | BB15: 0 | BC15: 0 | BD15: 0 | BE15: 0 | BF15: 0 | BG15: 0 | BH15: 0 | BI15: 0 | BJ15: 0 | BK15: 0 | BL15: 0 | BM15: 0 | BN15: 0 | BO15: 0 | BP15: 0 | BQ15: 0 | BR15: 0 | BS15: 0 | BT15: 0 | BU15: 0 | BV15: 0 | BW15: 0 | BX15: 0 | BY15: 0 | BZ15: 0 | CA15: 0 | CB15: 0 | CC15: 0
A16: 4组 | B16: 旧 | C16: 厦门百拓 | D16: DDGS | E16: 0 | F16: 0 | G16: 1000 | H16: 0 | I16: 1000 | J16: 0 | K16: 0 | L16: 0 | M16: 0 | N16: 0 | O16: 0 | P16: 0 | Q16: 0 | R16: 0 | S16: 0 | T16: 0 | U16: 0 | V16: 0 | W16: 0 | X16: 0 | Y16: 0 | Z16: 0 | AA16: 0 | AB16: 0 | AC16: 0 | AD16: 0 | AE16: 0 | AF16: 0 | AG16: 0 | AH16: 0 | AI16: 0 | AJ16: 0 | AK16: 0 | AL16: 0 | AM16: 0 | AN16: 0 | AO16: 0 | AP16: 0 | AQ16: 0 | AR16: 0 | AS16: 0 | AT16: 0 | AU16: 0 | AV16: 0 | AW16: 0 | AX16: 0 | AY16: 0 | AZ16: 0 | BA16: 0 | BB16: 0 | BC16: 0 | BD16: 0 | BE16: 0 | BF16: 0 | BG16: 0 | BH16: 0 | BI16: 0 | BJ16: 0 | BK16: 0 | BL16: 0 | BM16: 0 | BN16: 0 | BO16: 0 | BP16: 0 | BQ16: 0 | BR16: 0 | BS16: 0 | BT16: 0 | BU16: 0 | BV16: 0 | BW16: 0 | BX16: 0 | BY16: 0 | BZ16: 0 | CA16: 0 | CB16: 0 | CC16: 0
A17: 4组 | B17: 旧 | C17: 恒兴 | D17: 高粱 | E17: 0 | F17: 0 | G17: 0 | H17: 5000 | I17: 5000 | J17: 0 | K17: 0 | L17: 0 | M17: 0 | N17: 0 | O17: 0 | P17: 0 | Q17: 0 | R17: 0 | S17: 0 | T17: 0 | U17: 0 | V17: 0 | W17: 0 | X17: 0 | Y17: 0 | Z17: 0 | AA17: 0 | AB17: 0 | AC17: 0 | AD17: 0 | AE17: 0 | AF17: 0 | AG17: 0 | AH17: 0 | AI17: 0 | AJ17: 0 | AK17: 0 | AL17: 0 | AM17: 0 | AN17: 0 | AO17: 0 | AP17: 0 | AQ17: 0 | AR17: 0 | AS17: 0 | AT17: 0 | AU17: 0 | AV17: 0 | AW17: 0 | AX17: 0 | AY17: 0 | AZ17: 0 | BA17: 0 | BB17: 0 | BC17: 0 | BD17: 0 | BE17: 0 | BF17: 0 | BG17: 0 | BH17: 0 | BI17: 0 | BJ17: 0 | BK17: 0 | BL17: 0 | BM17: 0 | BN17: 0 | BO17: 0 | BP17: 0 | BQ17: 0 | BR17: 0 | BS17: 0 | BT17: 0 | BU17: 0 | BV17: 0 | BW17: 0 | BX17: 0 | BY17: 0 | BZ17: 0 | CA17: 0 | CB17: 0 | CC17: 0
A18: 4组 | B18: 新 | C18: 厦门国贸 | D18: DDGS | E18: 0 | F18: 0 | G18: 3000 | H18: 0 | I18: 3000 | J18: 0 | K18: 0 | L18: 0 | M18: 20000 | N18: 0 | O18: 20000 | P18: 0 | Q18: 0 | R18: 0 | S18: 0 | T18: 0 | U18: 0 | V18: 0 | W18: 0 | X18: 0 | Y18: 0 | Z18: 0 | AA18: 0 | AB18: 0 | AC18: 0 | AD18: 0 | AE18: 0 | AF18: 0 | AG18: 0 | AH18: 0 | AI18: 0 | AJ18: 0 | AK18: 0 | AL18: 0 | AM18: 0 | AN18: 0 | AO18: 0 | AP18: 0 | AQ18: 0 | AR18: 0 | AS18: 0 | AT18: 0 | AU18: 0 | AV18: 0 | AW18: 0 | AX18: 0 | AY18: 0 | AZ18: 0 | BA18: 0 | BB18: 0 | BC18: 0 | BD18: 0 | BE18: 0 | BF18: 0 | BG18: 0 | BH18: 0 | BI18: 0 | BJ18: 0 | BK18: 0 | BL18: 0 | BM18: 0 | BN18: 0 | BO18: 0 | BP18: 0 | BQ18: 0 | BR18: 0 | BS18: 0 | BT18: 0 | BU18: 0 | BV18: 0 | BW18: 0 | BX18: 0 | BY18: 0 | BZ18: 0 | CA18: =J18+P18+V18+AB18+AH18+AN18+AT18+AZ18+BF18+BL18+BR18+BX18 -> 0 | CB18: 0 | CC18: 0
A19: 4组 | B19: 旧 | C19: 上海维加 | D19: DDGS | E19: 0 | F19: 0 | G19: 52.81 | H19: 0 | I19: 52.81 | J19: 0 | K19: 0 | L19: 0 | M19: 0 | N19: 0 | O19: 0 | P19: 0 | Q19: 0 | R19: 0 | S19: 0 | T19: 0 | U19: 0 | V19: 0 | W19: 0 | X19: 0 | Y19: 0 | Z19: 0 | AA19: 0 | AB19: 0 | AC19: 0 | AD19: 0 | AE19: 0 | AF19: 0 | AG19: 0 | AH19: 0 | AI19: 0 | AJ19: 0 | AK19: 0 | AL19: 0 | AM19: 0 | AN19: 0 | AO19: 0 | AP19: 0 | AQ19: 0 | AR19: 0 | AS19: 0 | AT19: 0 | AU19: 0 | AV19: 0 | AW19: 0 | AX19: 0 | AY19: 0 | AZ19: 0 | BA19: 0 | BB19: 0 | BC19: 0 | BD19: 0 | BE19: 0 | BF19: 0 | BG19: 0 | BH19: 0 | BI19: 0 | BJ19: 0 | BK19: 0 | BL19: 0 | BM19: 0 | BN19: 0 | BO19: 0 | BP19: 0 | BQ19: 0 | BR19: 0 | BS19: 0 | BT19: 0 | BU19: 0 | BV19: 0 | BW19: 0 | BX19: 0 | BY19: 0 | BZ19: 0 | CA19: 0 | CB19: 0 | CC19: 0
A20: 4组 | B20: 新 | C20: 恒通资源 | D20: DDGS | E20: 8000 | F20: 0 | G20: 0 | H20: 0 | I20: 0 | J20: 0 | K20: 0 | L20: 0 | M20: 0 | N20: 0 | O20: 0 | P20: 0 | Q20: 0 | R20: 0 | S20: 0 | T20: 0 | U20: 0 | V20: 0 | W20: 0 | X20: 0 | Y20: 0 | Z20: 0 | AA20: 0 | AB20: 0 | AC20: 0 | AD20: 0 | AE20: 0 | AF20: 0 | AG20: 0 | AH20: 0 | AI20: 0 | AJ20: 0 | AK20: 0 | AL20: 0 | AM20: 0 | AN20: 0 | AO20: 0 | AP20: 0 | AQ20: 0 | AR20: 0 | AS20: 0 | AT20: 0 | AU20: 0 | AV20: 0 | AW20: 0 | AX20: 0 | AY20: 0 | AZ20: 0 | BA20: 0 | BB20: 0 | BC20: 0 | BD20: 0 | BE20: 0 | BF20: 0 | BG20: 0 | BH20: 0 | BI20: 0 | BJ20: 0 | BK20: 0 | BL20: 0 | BM20: 0 | BN20: 0 | BO20: 0 | BP20: 0 | BQ20: 0 | BR20: 0 | BS20: 0 | BT20: 0 | BU20: 0 | BV20: 0 | BW20: 0 | BX20: 0 | BY20: 0 | BZ20: 0 | CA20: 0 | CB20: 0 | CC20: 0
C21: 合计 | E21: =SUM(E8:E20) -> 78000 | F21: =SUM(F8:F20) -> 120000 | G21: =SUM(G8:G20) -> 7252.81 | H21: 62720 | I21: 69972.81 | J21: 0 | K21: 0 | L21: 0 | M21: 20000 | N21: 0 | O21: 20000 | P21: 0 | Q21: 0 | R21: 0 | S21: 0 | T21: 0 | U21: 0 | V21: 0 | W21: 0 | X21: 0 | Y21: 0 | Z21: 0 | AA21: 0 | AB21: 0 | AC21: 0 | AD21: 0 | AE21: 0 | AF21: 0 | AG21: 0 | AH21: 0 | AI21: 0 | AJ21: 0 | AK21: 0 | AL21: 0 | AM21: 0 | AN21: 0 | AO21: 0 | AP21: 0 | AQ21: 0 | AR21: 0 | AS21: 0 | AT21: 0 | AU21: 0 | AV21: 0 | AW21: 0 | AX21: 0 | AY21: 0 | AZ21: 0 | BA21: 0 | BB21: 0 | BC21: 0 | BD21: 0 | BE21: 0 | BF21: 0 | BG21: 0 | BH21: 0 | BI21: 0 | BJ21: 0 | BK21: 0 | BL21: 0 | BM21: 0 | BN21: 0 | BO21: 0 | BP21: 0 | BQ21: 0 | BR21: 0 | BS21: =SUM(BS8:BS20) -> 0 | BT21: 0 | BU21: 0 | BV21: 0 | BW21: 0 | BX21: 0 | BY21: 0 | BZ21: 0 | CA21: 0 | CB21: 0 | CC21: 0

Sheet 5组 (hidden)
C1: 1组 | D1: 新
C2: 2组 | D2: 旧
C3: 3组
C4: 4组
C5: 5组
A6: 2016侨益股份有限公司货代事业部到货量统计表
A7: 客服组 | B7: 业务类型 | C7: 客户 | D7: 货名 | E7: 2016预算（集）吨 | F7: 2016预算（散）吨 | G7: 预计集装箱货量1月 | H7: 预计散船货量1月 | I7: 预计货量合计1月 | J7: 实际集装箱货量1月 | K7: 实际散船货量1月 | L7: 实际货量合计1月 | M7: 预计集装箱货量2月 | N7: 预计散船货量2月 | O7: 预计货量合计2月 | P7: 实际集装箱货量2月 | Q7: 实际散船货量2月 | R7: 实际货量合计2月 | S7: 预计集装箱货量3月 | T7: 预计散船货量3月 | U7: 预计货量合计3月 | V7: 实际集装箱货量3月 | W7: 实际散船货量3月 | X7: 实际货量合计3月 | Y7: 预计集装箱货量4月 | Z7: 预计散船货量4月 | AA7: 预计货量合计4月 | AB7: 实际集装箱货量4月 | AC7: 实际散船货量4月 | AD7: 实际货量合计4月 | AE7: 预计集装箱货量5月 | AF7: 预计散船货量5月 | AG7: 预计货量合计5月 | AH7: 实际集装箱货量5月 | AI7: 实际散船货量5月 | AJ7: 实际货量合计5月 | AK7: 预计集装箱货量6月 | AL7: 预计散船货量6月 | AM7: 预计货量合计6月 | AN7: 实际集装箱货量6月 | AO7: 实际散船货量6月 | AP7: 实际货量合计6月 | AQ7: 预计集装箱货量7月 | AR7: 预计散船货量7月 | AS7: 预计货量合计7月 | AT7: 实际集装箱货量7月 | AU7: 实际散船货量7月 | AV7: 实际货量合计7月 | AW7: 预计集装箱货量8月 | AX7: 预计散船货量8月 | AY7: 预计货量合计8月 | AZ7: 实际集装箱货量8月 | BA7: 实际散船货量8月 | BB7: 实际货量合计8月 | BC7: 预计集装箱货量9月 | BD7: 预计散船货量9月 | BE7: 预计货量合计9月 | BF7: 实际集装箱货量9月 | BG7: 实际散船货量9月 | BH7: 实际货量合计9月 | BI7: 预计集装箱货量10月 | BJ7: 预计散船货量10月 | BK7: 预计货量合计10月 | BL7: 实际集装箱货量10月 | BM7: 实际散船货量10月 | BN7: 实际货量合计10月 | BO7: 预计集装箱货量11月 | BP7: 预计散船货量11月 | BQ7: 预计货量合计11月 | BR7: 实际集装箱货量11月 | BS7: 实际散船货量11月 | BT7: 实际货量合计11月 | BU7: 预计集装箱货量12月 | BV7: 预计散船货量12月 | BW7: 预计货量合计12月 | BX7: 实际集装箱货量12月 | BY7: 实际散船货量12月 | BZ7: 实际货量合计12月 | CA7: 实际集装箱货量全年 | CB7: 实际散船货量全年 | CC7: 实际货量合计全年
A8: 5组 | B8: 旧 | C8: 建发农产品 | D8: DDGS | E8: 2000 | F8: 0 | G8: 2000 | H8: 0 | I8: =SUM(G8:H8) -> 2000 | J8: 0 | K8: 0 | L8: =SUM(J8:K8) -> 0 | M8: 0 | N8: 0 | O8: =SUM(M8:N8) -> 0 | P8: 0 | Q8: 0 | R8: =SUM(P8:Q8) -> 0 | S8: 0 | T8: 0 | U8: =SUM(S8:T8) -> 0 | V8: 0 | W8: 0 | X8: =SUM(V8:W8) -> 0 | Y8: 0 | Z8: 0 | AA8: =SUM(Y8:Z8) -> 0 | AB8: 0 | AC8: 0 | AD8: =SUM(AB8:AC8) -> 0 | AE8: 0 | AF8: 0 | AG8: =SUM(AE8:AF8) -> 0 | AH8: 0 | AI8: 0 | AJ8: =SUM(AH8:AI8) -> 0 | AK8: 0 | AL8: 0 | AM8: =SUM(AK8:AL8) -> 0 | AN8: 0 | AO8: 0 | AP8: =SUM(AN8:AO8) -> 0 | AQ8: 0 | AR8: 0 | AS8: =SUM(AQ8:AR8) -> 0 | AT8: 0 | AU8: 0 | AV8: =SUM(AT8:AU8) -> 0 | AW8: 0 | AX8: 0 | AY8: =SUM(AW8:AX8) -> 0 | AZ8: 0 | BA8: 0 | BB8: =SUM(AZ8:BA8) -> 0 | BC8: 0 | BD8: 0 | BE8: =SUM(BC8:BD8) -> 0 | BF8: 0 | BG8: 0 | BH8: =SUM(BF8:BG8) -> 0 | BI8: 0 | BJ8: 0 | BK8: =SUM(BI8:BJ8) -> 0 | BL8: 0 | BM8: 0 | BN8: =SUM(BL8:BM8) -> 0 | BO8: 0 | BP8: 0 | BQ8: =SUM(BO8:BP8) -> 0 | BR8: 0 | BS8: 0 | BT8: =SUM(BR8:BS8) -> 0 | BU8: 0 | BV8: 0 | BW8: =SUM(BU8:BV8) -> 0 | BX8: 0 | BY8: 0 | BZ8: =SUM(BX8:BY8) -> 0 | CA8: =J8+P8+V8+AB8+AH8+AN8+AT8+AZ8+BF8+BL8+BR8+BX8 -> 0 | CB8: 0 | CC8: =SUM(CA8:CB8) -> 0
A9: 5组 | B9: 旧 | C9: 建发农产品 | D9: 大豆 | E9: 10000 | F9: 0 | G9: 0 | H9: 0 | I9: 0 | J9: 0 | K9: 0 | L9: 0 | M9: 0 | N9: 0 | O9: 0 | P9: 0 | Q9: 0 | R9: 0 | S9: 0 | T9: 0 | U9: 0 | V9: 0 | W9: 0 | X9: 0 | Y9: 0 | Z9: 0 | AA9: 0 | AB9: 0 | AC9: 0 | AD9: 0 | AE9: 0 | AF9: 0 | AG9: 0 | AH9: 0 | AI9: 0 | AJ9: 0 | AK9: 0 | AL9: 0 | AM9: 0 | AN9: 0 | AO9: 0 | AP9: 0 | AQ9: 0 | AR9: 0 | AS9: 0 | AT9: 0 | AU9: 0 | AV9: 0 | AW9: 0 | AX9: 0 | AY9: 0 | AZ9: 0 | BA9: 0 | BB9: 0 | BC9: 0 | BD9: 0 | BE9: 0 | BF9: 0 | BG9: 0 | BH9: 0 | BI9: 0 | BJ9: 0 | BK9: 0 | BL9: 0 | BM9: 0 | BN9: 0 | BO9: 0 | BP9: 0 | BQ9: 0 | BR9: 0 | BS9: 0 | BT9: 0 | BU9: 0 | BV9: 0 | BW9: 0 | BX9: 0 | BY9: 0 | BZ9: 0 | CA9: 0 | CB9: 0 | CC9: 0
A10: 5组 | B10: 旧 | C10: 建发农产品 | D10: 大麦 | E10: 0 | F10: 66000 | G10: 0 | H10: 0 | I10: 0 | J10: 0 | K10: 0 | L10: 0 | M10: 0 | N10: 0 | O10: 0 | P10: 0 | Q10: 0 | R10: 0 | S10: 0 | T10: 0 | U10: 0 | V10: 0 | W10: 0 | X10: 0 | Y10: 0 | Z10: 0 | AA10: 0 | AB10: 0 | AC10: 0 | AD10: 0 | AE10: 0 | AF10: 0 | AG10: 0 | AH10: 0 | AI10: 0 | AJ10: 0 | AK10: 0 | AL10: 0 | AM10: 0 | AN10: 0 | AO10: 0 | AP10: 0 | AQ10: 0 | AR10: 0 | AS10: 0 | AT10: 0 | AU10: 0 | AV10: 0 | AW10: 0 | AX10: 0 | AY10: 0 | AZ10: 0 | BA10: 0 | BB10: 0 | BC10: 0 | BD10: 0 | BE10: 0 | BF10: 0 | BG10: 0 | BH10: 0 | BI10: 0 | BJ10: 0 | BK10: 0 | BL10: 0 | BM10: 0 | BN10: 0 | BO10: 0 | BP10: 0 | BQ10: 0 | BR10: 0 | BS10: 0 | BT10: 0 | BU10: 0 | BV10: 0 | BW10: 0 | BX10: 0 | BY10: 0 | BZ10: 0 | CA10: 0 | CB10: 0 | CC10: 0
A11: 5组 | B11: 旧 | C11: 建发农产品 | D11: 高粱 | E11: 0 | F11: 50000 | G11: 0 | H11: 53300 | I11: 53300 | J11: 0 | K11: 0 | L11: 0 | M11: 0 | N11: 0 | O11: 0 | P11: 0 | Q11: 0 | R11: 0 | S11: 0 | T11: 0 | U11: 0 | V11: 0 | W11: 0 | X11: 0 | Y11: 0 | Z11: 0 | AA11: 0 | AB11: 0 | AC11: 0 | AD11: 0 | AE11: 0 | AF11: 0 | AG11: 0 | AH11: 0 | AI11: 0 | AJ11: 0 | AK11: 0 | AL11: 0 | AM11: 0 | AN11: 0 | AO11: 0 | AP11: 0 | AQ11: 0 | AR11: 0 | AS11: 0 | AT11: 0 | AU11: 0 | AV11: 0 | AW11: 0 | AX11: 0 | AY11: 0 | AZ11: 0 | BA11: 0 | BB11: 0 | BC11: 0 | BD11: 0 | BE11: 0 | BF11: 0 | BG11: 0 | BH11: 0 | BI11: 0 | BJ11: 0 | BK11: 0 | BL11: 0 | BM11: 0 | BN11: 0 | BO11: 0 | BP11: 0 | BQ11: 0 | BR11: 0 | BS11: 0 | BT11: 0 | BU11: 0 | BV11: 0 | BW11: 0 | BX11: 0 | BY11: 0 | BZ11: 0 | CA11: =J11+P11+V11+AB11+AH11+AN11+AT11+AZ11+BF11+BL11+BR11+BX11 -> 0 | CB11: 0 | CC11: 0
A12: 5组 | B12: 新 | C12: 建发农产品 | D12: 木薯渣颗粒 | E12: 0 | F12: 50000 | G12: 0 | H12: 0 | I12: 0 | J12: 0 | K12: 0 | L12: 0 | M12: 0 | N12: 0 | O12: 0 | P12: 0 | Q12: 0 | R12: 0 | S12: 0 | T12: 0 | U12: 0 | V12: 0 | W12: 0 | X12: 0 | Y12: 0 | Z12: 0 | AA12: 0 | AB12: 0 | AC12: 0 | AD12: 0 | AE12: 0 | AF12: 0 | AG12: 0 | AH12: 0 | AI12: 0 | AJ12: 0 | AK12: 0 | AL12: 0 | AM12: 0 | AN12: 0 | AO12: 0 | AP12: 0 | AQ12: 0 | AR12: 0 | AS12: 0 | AT12: 0 | AU12: 0 | AV12: 0 | AW12: 0 | AX12: 0 | AY12: 0 | AZ12: 0 | BA12: 0 | BB12: 0 | BC12: 0 | BD12: 0 | BE12: 0 | BF12: 0 | BG12: 0 | BH12: 0 | BI12: 0 | BJ12: 0 | BK12: 0 | BL12: 0 | BM12: 0 | BN12: 0 | BO12: 0 | BP12: 0 | BQ12: 0 | BR12: 0 | BS12: 0 | BT12: 0 | BU12: 0 | BV12: 0 | BW12: 0 | BX12: 0 | BY12: 0 | BZ12: 0 | CA12: =J12+P12+V12+AB12+AH12+AN12+AT12+AZ12+BF12+BL12+BR12+BX12 -> 0 | CB12: =K12+Q12+W12+AC12+AI12+AO12+AU12+BA12+BG12+BM12+BS12+BY12 -> 0 | CC12: 0
A13: 5组 | B13: 旧 | C13: 建发物流集团 | D13: DDGS | E13: 2000 | F13: 0 | G13: 0 | H13: 0 | I13: 0 | J13: 0 | K13: 0 | L13: 0 | M13: 0 | N13: 0 | O13: 0 | P13: 0 | Q13: 0 | R13: 0 | S13: 0 | T13: 0 | U13: 0 | V13: 0 | W13: 0 | X13: 0 | Y13: 0 | Z13: 0 | AA13: 0 | AB13: 0 | AC13: 0 | AD13: 0 | AE13: 0 | AF13: 0 | AG13: 0 | AH13: 0 | AI13: 0 | AJ13: 0 | AK13: 0 | AL13: 0 | AM13: 0 | AN13: 0 | AO13: 0 | AP13: 0 | AQ13: 0 | AR13: 0 | AS13: 0 | AT13: 0 | AU13: 0 | AV13: 0 | AW13: 0 | AX13: 0 | AY13: 0 | AZ13: 0 | BA13: 0 | BB13: 0 | BC13: 0 | BD13: 0 | BE13: 0 | BF13: 0 | BG13: 0 | BH13: 0 | BI13: 0 | BJ13: 0 | BK13: 0 | BL13: 0 | BM13: 0 | BN13: 0 | BO13: 0 | BP13: 0 | BQ13: 0 | BR13: 0 | BS13: 0 | BT13: 0 | BU13: 0 | BV13: 0 | BW13: 0 | BX13: 0 | BY13: 0 | BZ13: 0 | CA13: 0 | CB13: 0 | CC13: 0
A14: 5组 | B14: 旧 | C14: 建发原材料 | D14: DDGS | E14: 50000 | F14: 0 | G14: 43500 | H14: 0 | I14: 43500 | J14: 0 | K14: 0 | L14: 0 | M14: 0 | N14: 0 | O14: 0 | P14: 0 | Q14: 0 | R14: 0 | S14: 0 | T14: 0 | U14: 0 | V14: 0 | W14: 0 | X14: 0 | Y14: 0 | Z14: 0 | AA14: 0 | AB14: 0 | AC14: 0 | AD14: 0 | AE14: 0 | AF14: 0 | AG14: 0 | AH14: 0 | AI14: 0 | AJ14: 0 | AK14: 0 | AL14: 0 | AM14: 0 | AN14: 0 | AO14: 0 | AP14: 0 | AQ14: 0 | AR14: 0 | AS14: 0 | AT14: 0 | AU14: 0 | AV14: 0 | AW14: 0 | AX14: 0 | AY14: 0 | AZ14: 0 | BA14: 0 | BB14: 0 | BC14: 0 | BD14: 0 | BE14: 0 | BF14: 0 | BG14: 0 | BH14: 0 | BI14: 0 | BJ14: 0 | BK14: 0 | BL14: 0 | BM14: 0 | BN14: 0 | BO14: 0 | BP14: 0 | BQ14: 0 | BR14: 0 | BS14: 0 | BT14: 0 | BU14: 0 | BV14: 0 | BW14: 0 | BX14: 0 | BY14: 0 | BZ14: 0 | CA14: 0 | CB14: 0 | CC14: 0
A15: 5组 | B15: 旧 | C15: 建发原材料 | D15: 大豆 | E15: 18000 | F15: 0 | G15: 0 | H15: 0 | I15: 0 | J15: 0 | K15: 0 | L15: 0 | M15: 0 | N15: 0 | O15: 0 | P15: 0 | Q15: 0 | R15: 0 | S15: 0 | T15: 0 | U15: 0 | V15: 0 | W15: 0 | X15: 0 | Y15: 0 | Z15: 0 | AA15: 0 | AB15: 0 | AC15: 0 | AD15: 0 | AE15: 0 | AF15: 0 | AG15: 0 | AH15: 0 | AI15: 0 | AJ15: 0 | AK15: 0 | AL15: 0 | AM15: 0 | AN15: 0 | AO15: 0 | AP15: 0 | AQ15: 0 | AR15: 0 | AS15: 0 | AT15: 0 | AU15: 0 | AV15: 0 | AW15: 0 | AX15: 0 | AY15: 0 | AZ15: 0 | BA15: 0 | BB15: 0 | BC15: 0 | BD15: 0 | BE15: 0 | BF15: 0 | BG15: 0 | BH15: 0 | BI15: 0 | BJ15: 0 | BK15: 0 | BL15: 0 | BM15: 0 | BN15: 0 | BO15: 0 | BP15: 0 | BQ15: 0 | BR15: 0 | BS15: 0 | BT15: 0 | BU15: 0 | BV15: 0 | BW15: 0 | BX15: 0 | BY15: 0 | BZ15: 0 | CA15: 0 | CB15: 0 | CC15: 0
A16: 5组 | B16: 旧 | C16: 建发原材料 | D16: 大麦 | E16: 0 | F16: 200000 | G16: 0 | H16: 0 | I16: 0 | J16: 0 | K16: 0 | L16: 0 | M16: 0 | N16: 0 | O16: 0 | P16: 0 | Q16: 0 | R16: 0 | S16: 0 | T16: 0 | U16: 0 | V16: 0 | W16: 0 | X16: 0 | Y16: 0 | Z16: 0 | AA16: 0 | AB16: 0 | AC16: 0 | AD16: 0 | AE16: 0 | AF16: 0 | AG16: 0 | AH16: 0 | AI16: 0 | AJ16: 0 | AK16: 0 | AL16: 0 | AM16: 0 | AN16: 0 | AO16: 0 | AP16: 0 | AQ16: 0 | AR16: 0 | AS16: 0 | AT16: 0 | AU16: 0 | AV16: 0 | AW16: 0 | AX16: 0 | AY16: 0 | AZ16: 0 | BA16: 0 | BB16: 0 | BC16: 0 | BD16: 0 | BE16: 0 | BF16: 0 | BG16: 0 | BH16: 0 | BI16: 0 | BJ16: 0 | BK16: 0 | BL16: 0 | BM16: 0 | BN16: 0 | BO16: 0 | BP16: 0 | BQ16: 0 | BR16: 0 | BS16: 0 | BT16: 0 | BU16: 0 | BV16: 0 | BW16: 0 | BX16: 0 | BY16: 0 | BZ16: 0 | CA16: 0 | CB16: 0 | CC16: 0
A17: 5组 | B17: 旧 | C17: 建发原材料 | D17: 高粱 | E17: 0 | F17: 200000 | G17: 0 | H17: 0 | I17: 0 | J17: 0 | K17: 0 | L17: 0 | M17: 0 | N17: 0 | O17: 0 | P17: 0 | Q17: 0 | R17: 0 | S17: 0 | T17: 0 | U17: 0 | V17: 0 | W17: 0 | X17: 0 | Y17: 0 | Z17: 0 | AA17: 0 | AB17: 0 | AC17: 0 | AD17: 0 | AE17: 0 | AF17: 0 | AG17: 0 | AH17: 0 | AI17: 0 | AJ17: 0 | AK17: 0 | AL17: 0 | AM17: 0 | AN17: 0 | AO17: 0 | AP17: 0 | AQ17: 0 | AR17: 0 | AS17: 0 | AT17: 0 | AU17: 0 | AV17: 0 | AW17: 0 | AX17: 0 | AY17: 0 | AZ17: 0 | BA17: 0 | BB17: 0 | BC17: 0 | BD17: 0 | BE17: 0 | BF17: 0 | BG17: 0 | BH17: 0 | BI17: 0 | BJ17: 0 | BK17: 0 | BL17: 0 | BM17: 0 | BN17: 0 | BO17: 0 | BP17: 0 | BQ17: 0 | BR17: 0 | BS17: 0 | BT17: 0 | BU17: 0 | BV17: 0 | BW17: 0 | BX17: 0 | BY17: 0 | BZ17: 0 | CA17: 0 | CB17: 0 | CC17: 0
A18: 5组 | B18: 旧 | C18: 建发原材料 | D18: 玉米 | E18: 0 | F18: 60000 | G18: 0 | H18: 0 | I18: 0 | J18: 0 | K18: 0 | L18: 0 | M18: 0 | N18: 0 | O18: 0 | P18: 0 | Q18: 0 | R18: 0 | S18: 0 | T18: 0 | U18: 0 | V18: 0 | W18: 0 | X18: 0 | Y18: 0 | Z18: 0 | AA18: 0 | AB18: 0 | AC18: 0 | AD18: 0 | AE18: 0 | AF18: 0 | AG18: 0 | AH18: 0 | AI18: 0 | AJ18: 0 | AK18: 0 | AL18: 0 | AM18: 0 | AN18: 0 | AO18: 0 | AP18: 0 | AQ18: 0 | AR18: 0 | AS18: 0 | AT18: 0 | AU18: 0 | AV18: 0 | AW18: 0 | AX18: 0 | AY18: 0 | AZ18: 0 | BA18: 0 | BB18: 0 | BC18: 0 | BD18: 0 | BE18: 0 | BF18: 0 | BG18: 0 | BH18: 0 | BI18: 0 | BJ18: 0 | BK18: 0 | BL18: 0 | BM18: 0 | BN18: 0 | BO18: 0 | BP18: 0 | BQ18: 0 | BR18: 0 | BS18: 0 | BT18: 0 | BU18: 0 | BV18: 0 | BW18: 0 | BX18: 0 | BY18: 0 | BZ18: 0 | CA18: 0 | CB18: 0 | CC18: 0
A19: 5组 | B19: 旧 | C19: 青岛建发物流 | D19: DDGS | E19: 2000 | F19: 0 | G19: 1561.46 | H19: 0 | I19: 1561.46 | J19: 0 | K19: 0 | L19: 0 | M19: 0 | N19: 0 | O19: 0 | P19: 0 | Q19: 0 | R19: 0 | S19: 0 | T19: 0 | U19: 0 | V19: 0 | W19: 0 | X19: 0 | Y19: 0 | Z19: 0 | AA19: 0 | AB19: 0 | AC19: 0 | AD19: 0 | AE19: 0 | AF19: 0 | AG19: 0 | AH19: 0 | AI19: 0 | AJ19: 0 | AK19: 0 | AL19: 0 | AM19: 0 | AN19: 0 | AO19: 0 | AP19: 0 | AQ19: 0 | AR19: 0 | AS19: 0 | AT19: 0 | AU19: 0 | AV19: 0 | AW19: 0 | AX19: 0 | AY19: 0 | AZ19: 0 | BA19: 0 | BB19: 0 | BC19: 0 | BD19: 0 | BE19: 0 | BF19: 0 | BG19: 0 | BH19: 0 | BI19: 0 | BJ19: 0 | BK19: 0 | BL19: 0 | BM19: 0 | BN19: 0 | BO19: 0 | BP19: 0 | BQ19: 0 | BR19: 0 | BS19: 0 | BT19: 0 | BU19: 0 | BV19: 0 | BW19: 0 | BX19: 0 | BY19: 0 | BZ19: 0 | CA19: 0 | CB19: 0 | CC19: 0
A20: 5组 | B20: 旧 | C20: 青岛建发物流 | D20: 乳清粉 | E20: 200 | F20: 0 | G20: 0 | H20: 0 | I20: 0 | J20: 0 | K20: 0 | L20: 0 | M20: 0 | N20: 0 | O20: 0 | P20: 0 | Q20: 0 | R20: 0 | S20: 0 | T20: 0 | U20: 0 | V20: 0 | W20: 0 | X20: 0 | Y20: 0 | Z20: 0 | AA20: 0 | AB20: 0 | AC20: 0 | AD20: 0 | AE20: 0 | AF20: 0 | AG20: 0 | AH20: 0 | AI20: 0 | AJ20: 0 | AK20: 0 | AL20: 0 | AM20: 0 | AN20: 0 | AO20: 0 | AP20: 0 | AQ20: 0 | AR20: 0 | AS20: 0 | AT20: 0 | AU20: 0 | AV20: 0 | AW20: 0 | AX20: 0 | AY20: 0 | AZ20: 0 | BA20: 0 | BB20: 0 | BC20: 0 | BD20: 0 | BE20: 0 | BF20: 0 | BG20: 0 | BH20: 0 | BI20: 0 | BJ20: 0 | BK20: 0 | BL20: 0 | BM20: 0 | BN20: 0 | BO20: 0 | BP20: 0 | BQ20: 0 | BR20: 0 | BS20: 0 | BT20: 0 | BU20: 0 | BV20: 0 | BW20: 0 | BX20: 0 | BY20: 0 | BZ20: 0 | CA20: =J20+P20+V20+AB20+AH20+AN20+AT20+AZ20+BF20+BL20+BR20+BX20 -> 0 | CB20: 0 | CC20: 0
A21: 5组 | B21: 旧 | C21: 路易达孚 | D21: 大豆 | E21: 0 | F21: 350000 | G21: 0 | H21: 0 | I21: 0 | J21: 0 | K21: 0 | L21: 0 | M21: 0 | N21: 0 | O21: 0 | P21: 0 | Q21: 0 | R21: 0 | S21: 0 | T21: 0 | U21: 0 | V21: 0 | W21: 0 | X21: 0 | Y21: 0 | Z21: 0 | AA21: 0 | AB21: 0 | AC21: 0 | AD21: 0 | AE21: 0 | AF21: 0 | AG21: 0 | AH21: 0 | AI21: 0 | AJ21: 0 | AK21: 0 | AL21: 0 | AM21: 0 | AN21: 0 | AO21: 0 | AP21: 0 | AQ21: 0 | AR21: 0 | AS21: 0 | AT21: 0 | AU21: 0 | AV21: 0 | AW21: 0 | AX21: 0 | AY21: 0 | AZ21: 0 | BA21: 0 | BB21: 0 | BC21: 0 | BD21: 0 | BE21: 0 | BF21: 0 | BG21: 0 | BH21: 0 | BI21: 0 | BJ21: 0 | BK21: 0 | BL21: 0 | BM21: 0 | BN21: 0 | BO21: 0 | BP21: 0 | BQ21: 0 | BR21: 0 | BS21: 0 | BT21: 0 | BU21: 0 | BV21: 0 | BW21: 0 | BX21: 0 | BY21: 0 | BZ21: 0 | CA21: 0 | CB21: 0 | CC21: 0
A22: 5组 | B22: 旧 | C22: 中粮新沙 | D22: 大豆 | E22: 0 | F22: 600000 | G22: 0 | H22: 0 | I22: 0 | J22: 0 | K22: 0 | L22: 0 | M22: 0 | N22: 0 | O22: 0 | P22: 0 | Q22: 0 | R22: 0 | S22: 0 | T22: 0 | U22: 0 | V22: 0 | W22: 0 | X22: 0 | Y22: 0 | Z22: 0 | AA22: 0 | AB22: 0 | AC22: 0 | AD22: 0 | AE22: 0 | AF22: 0 | AG22: 0 | AH22: 0 | AI22: 0 | AJ22: 0 | AK22: 0 | AL22: 0 | AM22: 0 | AN22: 0 | AO22: 0 | AP22: 0 | AQ22: 0 | AR22: 0 | AS22: 0 | AT22: 0 | AU22: 0 | AV22: 0 | AW22: 0 | AX22: 0 | AY22: 0 | AZ22: 0 | BA22: 0 | BB22: 0 | BC22: 0 | BD22: 0 | BE22: 0 | BF22: 0 | BG22: 0 | BH22: 0 | BI22: 0 | BJ22: 0 | BK22: 0 | BL22: 0 | BM22: 0 | BN22: 0 | BO22: 0 | BP22: 0 | BQ22: 0 | BR22: 0 | BS22: 0 | BT22: 0 | BU22: 0 | BV22: 0 | BW22: 0 | BX22: 0 | BY22: 0 | BZ22: 0 | CA22: 0 | CB22: 0 | CC22: 0
C23: 合计 | E23: =SUM(E8:E22) -> 84200 | F23: 1576000 | G23: 47061.46 | H23: 53300 | I23: =SUM(I8:I22) -> 100361.46 | J23: 0 | K23: 0 | L23: 0 | M23: 0 | N23: 0 | O23: 0 | P23: 0 | Q23: 0 | R23: 0 | S23: 0 | T23: 0 | U23: 0 | V23: 0 | W23: 0 | X23: 0 | Y23: 0 | Z23: 0 | AA23: 0 | AB23: 0 | AC23: 0 | AD23: 0 | AE23: 0 | AF23: 0 | AG23: 0 | AH23: 0 | AI23: 0 | AJ23: 0 | AK23: 0 | AL23: 0 | AM23: 0 | AN23: 0 | AO23: 0 | AP23: 0 | AQ23: 0 | AR23: 0 | AS23: 0 | AT23: 0 | AU23: 0 | AV23: 0 | AW23: 0 | AX23: 0 | AY23: 0 | AZ23: 0 | BA23: 0 | BB23: 0 | BC23: 0 | BD23: 0 | BE23: 0 | BF23: 0 | BG23: 0 | BH23: 0 | BI23: 0 | BJ23: 0 | BK23: 0 | BL23: 0 | BM23: 0 | BN23: 0 | BO23: 0 | BP23: 0 | BQ23: 0 | BR23: 0 | BS23: 0 | BT23: 0 | BU23: =SUM(BU8:BU22) -> 0 | BV23: 0 | BW23: 0 | BX23: 0 | BY23: 0 | BZ23: 0 | CA23: 0 | CB23: 0 | CC23: 0

Sheet 厦门 (hidden)
C1: 1组 | D1: 新
C2: 2组 | D2: 旧
C3: 3组
C4: 4组
C5: 5组
A6: 2016侨益股份有限公司货代事业部到货量统计表
A7: 客服组 | B7: 业务类型 | C7: 客户 | D7: 货名 | E7: 2016预算（集）吨 | F7: 2016预算（散）吨 | G7: 预计集装箱货量1月 | H7: 预计散船货量1月 | I7: 预计货量合计1月 | J7: 实际集装箱货量1月 | K7: 实际散船货量1月 | L7: 实际货量合计1月 | M7: 预计集装箱货量2月 | N7: 预计散船货量2月 | O7: 预计货量合计2月 | P7: 实际集装箱货量2月 | Q7: 实际散船货量2月 | R7: 实际货量合计2月 | S7: 预计集装箱货量3月 | T7: 预计散船货量3月 | U7: 预计货量合计3月 | V7: 实际集装箱货量3月 | W7: 实际散船货量3月 | X7: 实际货量合计3月 | Y7: 预计集装箱货量4月 | Z7: 预计散船货量4月 | AA7: 预计货量合计4月 | AB7: 实际集装箱货量4月 | AC7: 实际散船货量4月 | AD7: 实际货量合计4月 | AE7: 预计集装箱货量5月 | AF7: 预计散船货量5月 | AG7: 预计货量合计5月 | AH7: 实际集装箱货量5月 | AI7: 实际散船货量5月 | AJ7: 实际货量合计5月 | AK7: 预计集装箱货量6月 | AL7: 预计散船货量6月 | AM7: 预计货量合计6月 | AN7: 实际集装箱货量6月 | AO7: 实际散船货量6月 | AP7: 实际货量合计6月 | AQ7: 预计集装箱货量7月 | AR7: 预计散船货量7月 | AS7: 预计货量合计7月 | AT7: 实际集装箱货量7月 | AU7: 实际散船货量7月 | AV7: 实际货量合计7月 | AW7: 预计集装箱货量8月 | AX7: 预计散船货量8月 | AY7: 预计货量合计8月 | AZ7: 实际集装箱货量8月 | BA7: 实际散船货量8月 | BB7: 实际货量合计8月 | BC7: 预计集装箱货量9月 | BD7: 预计散船货量9月 | BE7: 预计货量合计9月 | BF7: 实际集装箱货量9月 | BG7: 实际散船货量9月 | BH7: 实际货量合计9月 | BI7: 预计集装箱货量10月 | BJ7: 预计散船货量10月 | BK7: 预计货量合计10月 | BL7: 实际集装箱货量10月 | BM7: 实际散船货量10月 | BN7: 实际货量合计10月 | BO7: 预计集装箱货量11月 | BP7: 预计散船货量11月 | BQ7: 预计货量合计11月 | BR7: 实际集装箱货量11月 | BS7: 实际散船货量11月 | BT7: 实际货量合计11月 | BU7: 预计集装箱货量12月 | BV7: 预计散船货量12月 | BW7: 预计货量合计12月 | BX7: 实际集装箱货量12月 | BY7: 实际散船货量12月 | BZ7: 实际货量合计12月 | CA7: 实际集装箱货量全年 | CB7: 实际散船货量全年 | CC7: 实际货量合计全年
B8: 旧 | C8: 建发农产品 | D8: DDGS | E8: 0 | F8: 0 | G8: 1000 | H8: 0 | I8: =SUM(G8:H8) -> 1000 | J8: 0 | K8: 0 | L8: =SUM(J8:K8) -> 0 | M8: 0 | N8: 0 | O8: =SUM(M8:N8) -> 0 | P8: 0 | Q8: 0 | R8: =SUM(P8:Q8) -> 0 | S8: 0 | T8: 0 | U8: =SUM(S8:T8) -> 0 | V8: 0 | W8: 0 | X8: =SUM(V8:W8) -> 0 | Y8: 0 | Z8: 0 | AA8: =SUM(Y8:Z8) -> 0 | AB8: 0 | AC8: 0 | AD8: =SUM(AB8:AC8) -> 0 | AE8: 0 | AF8: 0 | AG8: =SUM(AE8:AF8) -> 0 | AH8: 0 | AI8: 0 | AJ8: =SUM(AH8:AI8) -> 0 | AK8: 0 | AL8: 0 | AM8: =SUM(AK8:AL8) -> 0 | AN8: 0 | AO8: 0 | AP8: =SUM(AN8:AO8) -> 0 | AQ8: 0 | AR8: 0 | AS8: =SUM(AQ8:AR8) -> 0 | AT8: 0 | AU8: 0 | AV8: =SUM(AT8:AU8) -> 0 | AW8: 0 | AX8: 0 | AY8: =SUM(AW8:AX8) -> 0 | AZ8: 0 | BA8: 0 | BB8: =SUM(AZ8:BA8) -> 0 | BC8: 0 | BD8: 0 | BE8: =SUM(BC8:BD8) -> 0 | BF8: 0 | BG8: 0 | BH8: =SUM(BF8:BG8) -> 0 | BI8: 0 | BJ8: 0 | BK8: =SUM(BI8:BJ8) -> 0 | BL8: 0 | BM8: 0 | BN8: =SUM(BL8:BM8) -> 0 | BO8: 0 | BP8: 0 | BQ8: =SUM(BO8:BP8) -> 0 | BR8: 0 | BS8: 0 | BT8: =SUM(BR8:BS8) -> 0 | BU8: 0 | BV8: 0 | BW8: =SUM(BU8:BV8) -> 0 | BX8: 0 | BY8: 0 | BZ8: =SUM(BX8:BY8) -> 0 | CA8: =J8+P8+V8+AB8+AH8+AN8+AT8+AZ8+BF8+BL8+BR8+BX8 -> 0 | CB8: 0 | CC8: =SUM(CA8:CB8) -> 0
B9: 旧 | C9: 建发农产品 | D9: 大豆 | E9: 0 | F9: 0 | G9: 2000 | H9: 0 | I9: 2000 | J9: 0 | K9: 0 | L9: 0 | M9: 0 | N9: 0 | O9: 0 | P9: 0 | Q9: 0 | R9: 0 | S9: 0 | T9: 0 | U9: 0 | V9: 0 | W9: 0 | X9: 0 | Y9: 0 | Z9: 0 | AA9: 0 | AB9: 0 | AC9: 0 | AD9: 0 | AE9: 0 | AF9: 0 | AG9: 0 | AH9: 0 | AI9: 0 | AJ9: 0 | AK9: 0 | AL9: 0 | AM9: 0 | AN9: 0 | AO9: 0 | AP9: 0 | AQ9: 0 | AR9: 0 | AS9: 0 | AT9: 0 | AU9: 0 | AV9: 0 | AW9: 0 | AX9: 0 | AY9: 0 | AZ9: 0 | BA9: 0 | BB9: 0 | BC9: 0 | BD9: 0 | BE9: 0 | BF9: 0 | BG9: 0 | BH9: 0 | BI9: 0 | BJ9: 0 | BK9: 0 | BL9: 0 | BM9: 0 | BN9: 0 | BO9: 0 | BP9: 0 | BQ9: 0 | BR9: 0 | BS9: 0 | BT9: 0 | BU9: 0 | BV9: 0 | BW9: 0 | BX9: 0 | BY9: 0 | BZ9: 0 | CA9: 0 | CB9: 0 | CC9: 0
B10: 旧 | C10: 建发原材料 | D10: DDGS | E10: 0 | F10: 0 | G10: 1000 | H10: 0 | I10: 1000 | J10: 0 | K10: 0 | L10: 0 | M10: 0 | N10: 0 | O10: 0 | P10: 0 | Q10: 0 | R10: 0 | S10: 0 | T10: 0 | U10: 0 | V10: 0 | W10: 0 | X10: 0 | Y10: 0 | Z10: 0 | AA10: 0 | AB10: 0 | AC10: 0 | AD10: 0 | AE10: 0 | AF10: 0 | AG10: 0 | AH10: 0 | AI10: 0 | AJ10: 0 | AK10: 0 | AL10: 0 | AM10: 0 | AN10: 0 | AO10: 0 | AP10: 0 | AQ10: 0 | AR10: 0 | AS10: 0 | AT10: 0 | AU10: 0 | AV10: 0 | AW10: 0 | AX10: 0 | AY10: 0 | AZ10: 0 | BA10: 0 | BB10: 0 | BC10: 0 | BD10: 0 | BE10: 0 | BF10: 0 | BG10: 0 | BH10: 0 | BI10: 0 | BJ10: 0 | BK10: 0 | BL10: 0 | BM10: 0 | BN10: 0 | BO10: 0 | BP10: 0 | BQ10: 0 | BR10: 0 | BS10: 0 | BT10: 0 | BU10: 0 | BV10: 0 | BW10: 0 | BX10: 0 | BY10: 0 | BZ10: 0 | CA10: 0 | CB10: 0 | CC10: 0
B11: 旧 | C11: 建发原材料 | D11: 大豆 | E11: 0 | F11: 0 | G11: 0 | H11: 0 | I11: 0 | J11: 0 | K11: 0 | L11: 0 | M11: 0 | N11: 0 | O11: 0 | P11: 0 | Q11: 0 | R11: 0 | S11: 0 | T11: 0 | U11: 0 | V11: 0 | W11: 0 | X11: 0 | Y11: 0 | Z11: 0 | AA11: 0 | AB11: 0 | AC11: 0 | AD11: 0 | AE11: 0 | AF11: 0 | AG11: 0 | AH11: 0 | AI11: 0 | AJ11: 0 | AK11: 0 | AL11: 0 | AM11: 0 | AN11: 0 | AO11: 0 | AP11: 0 | AQ11: 0 | AR11: 0 | AS11: 0 | AT11: 0 | AU11: 0 | AV11: 0 | AW11: 0 | AX11: 0 | AY11: 0 | AZ11: 0 | BA11: 0 | BB11: 0 | BC11: 0 | BD11: 0 | BE11: 0 | BF11: 0 | BG11: 0 | BH11: 0 | BI11: 0 | BJ11: 0 | BK11: 0 | BL11: 0 | BM11: 0 | BN11: 0 | BO11: 0 | BP11: 0 | BQ11: 0 | BR11: 0 | BS11: 0 | BT11: 0 | BU11: 0 | BV11: 0 | BW11: 0 | BX11: 0 | BY11: 0 | BZ11: 0 | CA11: 0 | CB11: 0 | CC11: 0
B12: 旧 | C12: 国贸纸业 | D12: DDGS | E12: 0 | F12: 0 | G12: 3000 | H12: 0 | I12: 3000 | J12: 0 | K12: 0 | L12: 0 | M12: 0 | N12: 0 | O12: 0 | P12: 0 | Q12: 0 | R12: 0 | S12: 0 | T12: 0 | U12: 0 | V12: 0 | W12: 0 | X12: 0 | Y12: 0 | Z12: 0 | AA12: 0 | AB12: 0 | AC12: 0 | AD12: 0 | AE12: 0 | AF12: 0 | AG12: 0 | AH12: 0 | AI12: 0 | AJ12: 0 | AK12: 0 | AL12: 0 | AM12: 0 | AN12: 0 | AO12: 0 | AP12: 0 | AQ12: 0 | AR12: 0 | AS12: 0 | AT12: 0 | AU12: 0 | AV12: 0 | AW12: 0 | AX12: 0 | AY12: 0 | AZ12: 0 | BA12: 0 | BB12: 0 | BC12: 0 | BD12: 0 | BE12: 0 | BF12: 0 | BG12: 0 | BH12: 0 | BI12: 0 | BJ12: 0 | BK12: 0 | BL12: 0 | BM12: 0 | BN12: 0 | BO12: 0 | BP12: 0 | BQ12: 0 | BR12: 0 | BS12: 0 | BT12: 0 | BU12: 0 | BV12: 0 | BW12: 0 | BX12: 0 | BY12: 0 | BZ12: 0 | CA12: 0 | CB12: 0 | CC12: 0
B13: 新 | C13: 山东西王 | D13: 高粱 | E13: 0 | F13: 0 | G13: 0 | H13: 20000 | I13: 20000 | J13: 0 | K13: 0 | L13: 0 | M13: 0 | N13: 0 | O13: 0 | P13: 0 | Q13: 0 | R13: 0 | S13: 0 | T13: 0 | U13: 0 | V13: 0 | W13: 0 | X13: 0 | Y13: 0 | Z13: 0 | AA13: 0 | AB13: 0 | AC13: 0 | AD13: 0 | AE13: 0 | AF13: 0 | AG13: 0 | AH13: 0 | AI13: 0 | AJ13: 0 | AK13: 0 | AL13: 0 | AM13: 0 | AN13: 0 | AO13: 0 | AP13: 0 | AQ13: 0 | AR13: 0 | AS13: 0 | AT13: 0 | AU13: 0 | AV13: 0 | AW13: 0 | AX13: 0 | AY13: 0 | AZ13: 0 | BA13: 0 | BB13: 0 | BC13: 0 | BD13: 0 | BE13: 0 | BF13: 0 | BG13: 0 | BH13: 0 | BI13: 0 | BJ13: 0 | BK13: 0 | BL13: 0 | BM13: 0 | BN13: 0 | BO13: 0 | BP13: 0 | BQ13: 0 | BR13: 0 | BS13: 0 | BT13: 0 | BU13: 0 | BV13: 0 | BW13: 0 | BX13: 0 | BY13: 0 | BZ13: 0 | CA13: 0 | CB13: 0 | CC13: 0
C14: 合计 | E14: =SUM(E8:E13) -> 0 | F14: 0 | G14: 7000 | H14: 20000 | I14: 27000 | J14: =SUM(J8:J13) -> 0 | K14: 0 | L14: 0 | M14: 0 | N14: 0 | O14: 0 | P14: =SUM(P8:P13) -> 0 | Q14: 0 | R14: 0 | S14: 0 | T14: 0 | U14: 0 | V14: =SUM(V8:V13) -> 0 | W14: 0 | X14: 0 | Y14: 0 | Z14: 0 | AA14: 0 | AB14: =SUM(AB8:AB13) -> 0 | AC14: 0 | AD14: 0 | AE14: 0 | AF14: 0 | AG14: 0 | AH14: =SUM(AH8:AH13) -> 0 | AI14: 0 | AJ14: 0 | AK14: 0 | AL14: 0 | AM14: 0 | AN14: =SUM(AN8:AN13) -> 0 | AO14: 0 | AP14: 0 | AQ14: 0 | AR14: 0 | AS14: 0 | AT14: =SUM(AT8:AT13) -> 0 | AU14: 0 | AV14: 0 | AW14: 0 | AX14: 0 | AY14: 0 | AZ14: =SUM(AZ8:AZ13) -> 0 | BA14: 0 | BB14: 0 | BC14: 0 | BD14: 0 | BE14: 0 | BF14: =SUM(BF8:BF13) -> 0 | BG14: 0 | BH14: 0 | BI14: 0 | BJ14: 0 | BK14: 0 | BL14: =SUM(BL8:BL13) -> 0 | BM14: 0 | BN14: 0 | BO14: 0 | BP14: 0 | BQ14: 0 | BR14: =SUM(BR8:BR13) -> 0 | BS14: 0 | BT14: 0 | BU14: 0 | BV14: 0 | BW14: 0 | BX14: =SUM(BX8:BX13) -> 0 | BY14: 0 | BZ14: 0 | CA14: 0 | CB14: 0 | CC14: 0

Sheet 预算原表 (hidden)
C1: 1组 | D1: 新
C2: 2组 | D2: 旧
C3: 3组
C4: 4组
C5: 5组
A6: 2017侨益股份有限公司货代事业部到货量统计表
A7: 客服组 | B7: 业务类型 | C7: 客户 | D7: 货名 | E7: 2017预算（集）吨 | F7: 2017预算（散）吨 | G7: 预计集装箱货量1月 | H7: 预计散船货量1月 | I7: 预计货量合计1月 | J7: 实际集装箱货量1月 | K7: 实际散船货量1月 | L7: 实际货量合计1月 | M7: 预计集装箱货量2月 | N7: 预计散船货量2月 | O7: 预计货量合计2月 | P7: 实际集装箱货量2月 | Q7: 实际散船货量2月 | R7: 实际货量合计2月 | S7: 预计集装箱货量3月 | T7: 预计散船货量3月 | U7: 预计货量合计3月 | V7: 实际集装箱货量3月 | W7: 实际散船货量3月 | X7: 实际货量合计3月 | Y7: 预计集装箱货量4月 | Z7: 预计散船货量4月 | AA7: 预计货量合计4月 | AB7: 实际集装箱货量4月 | AC7: 实际散船货量4月 | AD7: 实际货量合计4月 | AE7: 预计集装箱货量5月 | AF7: 预计散船货量5月 | AG7: 预计货量合计5月 | AH7: 实际集装箱货量5月 | AI7: 实际散船货量5月 | AJ7: 实际货量合计5月 | AK7: 预计集装箱货量6月 | AL7: 预计散船货量6月 | AM7: 预计货量合计6月 | AN7: 实际集装箱货量6月 | AO7: 实际散船货量6月 | AP7: 实际货量合计6月 | AQ7: 预计集装箱货量7月 | AR7: 预计散船货量7月 | AS7: 预计货量合计7月 | AT7: 实际集装箱货量7月 | AU7: 实际散船货量7月 | AV7: 实际货量合计7月 | AW7: 预计集装箱货量8月 | AX7: 预计散船货量8月 | AY7: 预计货量合计8月 | AZ7: 实际集装箱货量8月 | BA7: 实际散船货量8月 | BB7: 实际货量合计8月 | BC7: 预计集装箱货量9月 | BD7: 预计散船货量9月 | BE7: 预计货量合计9月 | BF7: 实际集装箱货量9月 | BG7: 实际散船货量9月 | BH7: 实际货量合计9月 | BI7: 预计集装箱货量10月 | BJ7: 预计散船货量10月 | BK7: 预计货量合计10月 | BL7: 实际集装箱货量10月 | BM7: 实际散船货量10月 | BN7: 实际货量合计10月 | BO7: 预计集装箱货量11月 | BP7: 预计散船货量11月 | BQ7: 预计货量合计11月 | BR7: 实际集装箱货量11月 | BS7: 实际散船货量11月 | BT7: 实际货量合计11月 | BU7: 预计集装箱货量12月 | BV7: 预计散船货量12月 | BW7: 预计货量合计12月 | BX7: 实际集装箱货量12月 | BY7: 实际散船货量12月 | BZ7: 实际货量合计12月 | CA7: 实际集装箱货量全年 | CB7: 实际散船货量全年 | CC7: 实际货量合计全年
A8: 1组 | B8: 旧 | C8: 中国国投国际贸易有限公司 | D8: 鱼粉 | E8: 2000 | F8: 0 | G8: 0 | H8: 0 | I8: =SUM(G8:H8) -> 0 | J8: 0 | K8: 0 | L8: =SUM(J8:K8) -> 0 | M8: 0 | N8: 0 | O8: =SUM(M8:N8) -> 0 | P8: 0 | Q8: 0 | R8: =SUM(P8:Q8) -> 0 | S8: 0 | T8: 0 | U8: =SUM(S8:T8) -> 0 | V8: 0 | W8: 0 | X8: =SUM(V8:W8) -> 0 | Y8: 0 | Z8: 0 | AA8: =SUM(Y8:Z8) -> 0 | AB8: 0 | AC8: 0 | AD8: =SUM(AB8:AC8) -> 0 | AE8: 0 | AF8: 0 | AG8: =SUM(AE8:AF8) -> 0 | AH8: 0 | AI8: 0 | AJ8: =SUM(AH8:AI8) -> 0 | AK8: 0 | AL8: 0 | AM8: =SUM(AK8:AL8) -> 0 | AN8: 0 | AO8: 0 | AP8: =SUM(AN8:AO8) -> 0 | AQ8: 0 | AR8: 0 | AS8: =SUM(AQ8:AR8) -> 0 | AT8: 0 | AU8: 0 | AV8: =SUM(AT8:AU8) -> 0 | AW8: 0 | AX8: 0 | AY8: =SUM(AW8:AX8) -> 0 | AZ8: 0 | BA8: 0 | BB8: =SUM(AZ8:BA8) -> 0 | BC8: 0 | BD8: 0 | BE8: =SUM(BC8:BD8) -> 0 | BF8: 0 | BG8: 0 | BH8: =SUM(BF8:BG8) -> 0 | BI8: 0 | BJ8: 0 | BK8: =SUM(BI8:BJ8) -> 0 | BL8: 0 | BM8: 0 | BN8: =SUM(BL8:BM8) -> 0 | BO8: 0 | BP8: 0 | BQ8: =SUM(BO8:BP8) -> 0 | BR8: 0 | BS8: 0 | BT8: =SUM(BR8:BS8) -> 0 | BU8: 0 | BV8: 0 | BW8: =SUM(BU8:BV8) -> 0 | BX8: 0 | BY8: 0 | BZ8: =SUM(BX8:BY8) -> 0 | CA8: =J8+P8+V8+AB8+AH8+AN8+AT8+AZ8+BF8+BL8+BR8+BX8 -> 0 | CB8: =K8+Q8+W8+AC8+AI8+AO8+AU8+BA8+BG8+BM8+BS8+BY8 -> 0 | CC8: =SUM(CA8:CB8) -> 0
A9: 1组 | B9: 旧 | C9: 新谷(上海)贸易有限公司（鑫粮） | D9: 高粱 | E9: 0 | F9: 600000 | G9: 0 | H9: 0 | I9: 0 | J9: 0 | K9: 0 | L9: =SUM(J9:K9) -> 0 | M9: 0 | N9: 0 | O9: =SUM(M9:N9) -> 0 | P9: 0 | Q9: 0 | R9: =SUM(P9:Q9) -> 0 | S9: 0 | T9: 0 | U9: =SUM(S9:T9) -> 0 | V9: 0 | W9: 0 | X9: =SUM(V9:W9) -> 0 | Y9: 0 | Z9: 0 | AA9: =SUM(Y9:Z9) -> 0 | AB9: 0 | AC9: 0 | AD9: =SUM(AB9:AC9) -> 0 | AE9: 0 | AF9: 0 | AG9: =SUM(AE9:AF9) -> 0 | AH9: 0 | AI9: 0 | AJ9: =SUM(AH9:AI9) -> 0 | AK9: 0 | AL9: 0 | AM9: =SUM(AK9:AL9) -> 0 | AN9: 0 | AO9: 0 | AP9: =SUM(AN9:AO9) -> 0 | AQ9: 0 | AR9: 0 | AS9: =SUM(AQ9:AR9) -> 0 | AT9: 0 | AU9: 0 | AV9: =SUM(AT9:AU9) -> 0 | AW9: 0 | AX9: 0 | AY9: =SUM(AW9:AX9) -> 0 | AZ9: 0 | BA9: 0 | BB9: =SUM(AZ9:BA9) -> 0 | BC9: 0 | BD9: 0 | BE9: =SUM(BC9:BD9) -> 0 | BF9: 0 | BG9: 0 | BH9: =SUM(BF9:BG9) -> 0 | BI9: 0 | BJ9: 0 | BK9: =SUM(BI9:BJ9) -> 0 | BL9: 0 | BM9: 0 | BN9: =SUM(BL9:BM9) -> 0 | BO9: 0 | BP9: 0 | BQ9: =SUM(BO9:BP9) -> 0 | BR9: 0 | BS9: 0 | BT9: =SUM(BR9:BS9) -> 0 | BU9: 0 | BV9: 0 | BW9: =SUM(BU9:BV9) -> 0 | BX9: 0 | BY9: 0 | BZ9: =SUM(BX9:BY9) -> 0 | CA9: =J9+P9+V9+AB9+AH9+AN9+AT9+AZ9+BF9+BL9+BR9+BX9 -> 0 | CB9: =K9+Q9+W9+AC9+AI9+AO9+AU9+BA9+BG9+BM9+BS9+BY9 -> 0 | CC9: =SUM(CA9:CB9) -> 0
A10: 1组 | B10: 旧 | C10: 大连农垦北大荒国际贸易有限公司 | D10: 高粱 | E10: 0 | F10: 200000 | G10: 0 | H10: 0 | I10: 0 | J10: 0 | K10: 0 | L10: 0 | M10: 0 | N10: 0 | O10: 0 | P10: 0 | Q10: 0 | R10: 0 | S10: 0 | T10: 0 | U10: 0 | V10: 0 | W10: 0 | X10: 0 | Y10: 0 | Z10: 0 | AA10: 0 | AB10: 0 | AC10: 0 | AD10: 0 | AE10: 0 | AF10: 0 | AG10: 0 | AH10: 0 | AI10: 0 | AJ10: 0 | AK10: 0 | AL10: 0 | AM10: 0 | AN10: 0 | AO10: 0 | AP10: 0 | AQ10: 0 | AR10: 0 | AS10: 0 | AT10: 0 | AU10: 0 | AV10: 0 | AW10: 0 | AX10: 0 | AY10: 0 | AZ10: 0 | BA10: 0 | BB10: 0 | BC10: 0 | BD10: 0 | BE10: 0 | BF10: 0 | BG10: 0 | BH10: 0 | BI10: 0 | BJ10: 0 | BK10: 0 | BL10: 0 | BM10: 0 | BN10: 0 | BO10: 0 | BP10: 0 | BQ10: 0 | BR10: 0 | BS10: 0 | BT10: 0 | BU10: 0 | BV10: 0 | BW10: 0 | BX10: 0 | BY10: 0 | BZ10: 0 | CA10: 0 | CB10: 0 | CC10: 0
A11: 1组 | B11: 旧 | C11: 双胞胎(集团)股份有限公司 | D11: 鱼粉 | E11: 30000 | F11: 0 | G11: 0 | H11: 0 | I11: 0 | J11: 0 | K11: 0 | L11: 0 | M11: 0 | N11: 0 | O11: 0 | P11: 0 | Q11: 0 | R11: 0 | S11: 0 | T11: 0 | U11: 0 | V11: 0 | W11: 0 | X11: 0 | Y11: 0 | Z11: 0 | AA11: 0 | AB11: 0 | AC11: 0 | AD11: 0 | AE11: 0 | AF11: 0 | AG11: 0 | AH11: 0 | AI11: 0 | AJ11: 0 | AK11: 0 | AL11: 0 | AM11: 0 | AN11: 0 | AO11: 0 | AP11: 0 | AQ11: 0 | AR11: 0 | AS11: 0 | AT11: 0 | AU11: 0 | AV11: 0 | AW11: 0 | AX11: 0 | AY11: 0 | AZ11: 0 | BA11: 0 | BB11: 0 | BC11: 0 | BD11: 0 | BE11: 0 | BF11: 0 | BG11: 0 | BH11: 0 | BI11: 0 | BJ11: 0 | BK11: 0 | BL11: 0 | BM11: 0 | BN11: 0 | BO11: 0 | BP11: 0 | BQ11: 0 | BR11: 0 | BS11: 0 | BT11: 0 | BU11: 0 | BV11: 0 | BW11: 0 | BX11: 0 | BY11: 0 | BZ11: 0 | CA11: 0 | CB11: 0 | CC11: 0
A12: 1组 | B12: 新 | C12: 安徽安粮国际发展有限公司 | D12: 乳清粉 | E12: 5500 | F12: 0 | G12: 0 | H12: 0 | I12: 0 | J12: 0 | K12: 0 | L12: 0 | M12: 0 | N12: 0 | O12: 0 | P12: 0 | Q12: 0 | R12: 0 | S12: 0 | T12: 0 | U12: 0 | V12: 0 | W12: 0 | X12: 0 | Y12: 0 | Z12: 0 | AA12: 0 | AB12: 0 | AC12: 0 | AD12: 0 | AE12: 0 | AF12: 0 | AG12: 0 | AH12: 0 | AI12: 0 | AJ12: 0 | AK12: 0 | AL12: 0 | AM12: 0 | AN12: 0 | AO12: 0 | AP12: 0 | AQ12: 0 | AR12: 0 | AS12: 0 | AT12: 0 | AU12: 0 | AV12: 0 | AW12: 0 | AX12: 0 | AY12: 0 | AZ12: 0 | BA12: 0 | BB12: 0 | BC12: 0 | BD12: 0 | BE12: 0 | BF12: 0 | BG12: 0 | BH12: 0 | BI12: 0 | BJ12: 0 | BK12: 0 | BL12: 0 | BM12: 0 | BN12: 0 | BO12: 0 | BP12: 0 | BQ12: 0 | BR12: 0 | BS12: 0 | BT12: 0 | BU12: 0 | BV12: 0 | BW12: 0 | BX12: 0 | BY12: 0 | BZ12: 0 | CA12: 0 | CB12: 0 | CC12: 0
A13: 1组 | B13: 旧 | C13: 新兴县佳裕贸易有限公司 | D13: 苜蓿草 | E13: 15000 | F13: 0 | G13: 0 | H13: 0 | I13: 0 | J13: 0 | K13: 0 | L13: 0 | M13: 0 | N13: 0 | O13: 0 | P13: 0 | Q13: 0 | R13: 0 | S13: 0 | T13: 0 | U13: 0 | V13: 0 | W13: 0 | X13: 0 | Y13: 0 | Z13: 0 | AA13: 0 | AB13: 0 | AC13: 0 | AD13: 0 | AE13: 0 | AF13: 0 | AG13: 0 | AH13: 0 | AI13: 0 | AJ13: 0 | AK13: 0 | AL13: 0 | AM13: 0 | AN13: 0 | AO13: 0 | AP13: 0 | AQ13: 0 | AR13: 0 | AS13: 0 | AT13: 0 | AU13: 0 | AV13: 0 | AW13: 0 | AX13: 0 | AY13: 0 | AZ13: 0 | BA13: 0 | BB13: 0 | BC13: 0 | BD13: 0 | BE13: 0 | BF13: 0 | BG13: 0 | BH13: 0 | BI13: 0 | BJ13: 0 | BK13: 0 | BL13: 0 | BM13: 0 | BN13: 0 | BO13: 0 | BP13: 0 | BQ13: 0 | BR13: 0 | BS13: 0 | BT13: 0 | BU13: 0 | BV13: 0 | BW13: 0 | BX13: 0 | BY13: 0 | BZ13: 0 | CA13: 0 | CB13: 0 | CC13: 0
A14: 1组 | B14: 新 | C14: 中航国际粮油贸易有限公司 | D14: 乳清粉 | E14: 5000 | F14: 0 | G14: 0 | H14: 0 | I14: 0 | J14: 0 | K14: 0 | L14: 0 | M14: 0 | N14: 0 | O14: 0 | P14: 0 | Q14: 0 | R14: 0 | S14: 0 | T14: 0 | U14: 0 | V14: 0 | W14: 0 | X14: 0 | Y14: 0 | Z14: 0 | AA14: 0 | AB14: 0 | AC14: 0 | AD14: 0 | AE14: 0 | AF14: 0 | AG14: 0 | AH14: 0 | AI14: 0 | AJ14: 0 | AK14: 0 | AL14: 0 | AM14: 0 | AN14: 0 | AO14: 0 | AP14: 0 | AQ14: 0 | AR14: 0 | AS14: 0 | AT14: 0 | AU14: 0 | AV14: 0 | AW14: 0 | AX14: 0 | AY14: 0 | AZ14: 0 | BA14: 0 | BB14: 0 | BC14: 0 | BD14: 0 | BE14: 0 | BF14: 0 | BG14: 0 | BH14: 0 | BI14: 0 | BJ14: 0 | BK14: 0 | BL14: 0 | BM14: 0 | BN14: 0 | BO14: 0 | BP14: 0 | BQ14: 0 | BR14: 0 | BS14: 0 | BT14: 0 | BU14: 0 | BV14: 0 | BW14: 0 | BX14: 0 | BY14: 0 | BZ14: 0 | CA14: 0 | CB14: 0 | CC14: 0
A15: 1组 | B15: 新 | C15: 中航国际粮油贸易有限公司 | D15: 米糠 | E15: 10000 | F15: 0 | G15: 0 | H15: 0 | I15: 0 | J15: 0 | K15: 0 | L15: 0 | M15: 0 | N15: 0 | O15: 0 | P15: 0 | Q15: 0 | R15: 0 | S15: 0 | T15: 0 | U15: 0 | V15: 0 | W15: 0 | X15: 0 | Y15: 0 | Z15: 0 | AA15: 0 | AB15: 0 | AC15: 0 | AD15: 0 | AE15: 0 | AF15: 0 | AG15: 0 | AH15: 0 | AI15: 0 | AJ15: 0 | AK15: 0 | AL15: 0 | AM15: 0 | AN15: 0 | AO15: 0 | AP15: 0 | AQ15: 0 | AR15: 0 | AS15: 0 | AT15: 0 | AU15: 0 | AV15: 0 | AW15: 0 | AX15: 0 | AY15: 0 | AZ15: 0 | BA15: 0 | BB15: 0 | BC15: 0 | BD15: 0 | BE15: 0 | BF15: 0 | BG15: 0 | BH15: 0 | BI15: 0 | BJ15: 0 | BK15: 0 | BL15: 0 | BM15: 0 | BN15: 0 | BO15: 0 | BP15: 0 | BQ15: 0 | BR15: 0 | BS15: 0 | BT15: 0 | BU15: 0 | BV15: 0 | BW15: 0 | BX15: 0 | BY15: 0 | BZ15: 0 | CA15: 0 | CB15: 0 | CC15: 0
A16: 2组 | B16: 旧 | C16: 北京嘉粮益谷饲料有限公司 | D16: 高粱/大麦 | E16: 30000 | F16: 0 | G16: 0 | H16: 0 | I16: 0 | J16: 0 | K16: 0 | L16: 0 | M16: 0 | N16: 0 | O16: 0 | P16: 0 | Q16: 0 | R16: 0 | S16: 0 | T16: 0 | U16: 0 | V16: 0 | W16: 0 | X16: 0 | Y16: 0 | Z16: 0 | AA16: 0 | AB16: 0 | AC16: 0 | AD16: 0 | AE16: 0 | AF16: 0 | AG16: 0 | AH16: 0 | AI16: 0 | AJ16: 0 | AK16: 0 | AL16: 0 | AM16: 0 | AN16: 0 | AO16: 0 | AP16: 0 | AQ16: 0 | AR16: 0 | AS16: 0 | AT16: 0 | AU16: 0 | AV16: 0 | AW16: 0 | AX16: 0 | AY16: 0 | AZ16: 0 | BA16: 0 | BB16: 0 | BC16: 0 | BD16: 0 | BE16: 0 | BF16: 0 | BG16: 0 | BH16: 0 | BI16: 0 | BJ16: 0 | BK16: 0 | BL16: 0 | BM16: 0 | BN16: 0 | BO16: 0 | BP16: 0 | BQ16: 0 | BR16: 0 | BS16: 0 | BT16: 0 | BU16: 0 | BV16: 0 | BW16: 0 | BX16: 0 | BY16: 0 | BZ16: 0 | CA16: 0 | CB16: 0 | CC16: 0
A17: 2组 | B17: 旧 | C17: 中牧实业股份有限公司 | D17: 鱼粉 | E17: 15000 | F17: 0 | G17: 0 | H17: 0 | I17: 0 | J17: 0 | K17: 0 | L17: 0 | M17: 0 | N17: 0 | O17: 0 | P17: 0 | Q17: 0 | R17: 0 | S17: 0 | T17: 0 | U17: 0 | V17: 0 | W17: 0 | X17: 0 | Y17: 0 | Z17: 0 | AA17: 0 | AB17: 0 | AC17: 0 | AD17: 0 | AE17: 0 | AF17: 0 | AG17: 0 | AH17: 0 | AI17: 0 | AJ17: 0 | AK17: 0 | AL17: 0 | AM17: 0 | AN17: 0 | AO17: 0 | AP17: 0 | AQ17: 0 | AR17: 0 | AS17: 0 | AT17: 0 | AU17: 0 | AV17: 0 | AW17: 0 | AX17: 0 | AY17: 0 | AZ17: 0 | BA17: 0 | BB17: 0 | BC17: 0 | BD17: 0 | BE17: 0 | BF17: 0 | BG17: 0 | BH17: 0 | BI17: 0 | BJ17: 0 | BK17: 0 | BL17: 0 | BM17: 0 | BN17: 0 | BO17: 0 | BP17: 0 | BQ17: 0 | BR17: 0 | BS17: 0 | BT17: 0 | BU17: 0 | BV17: 0 | BW17: 0 | BX17: 0 | BY17: 0 | BZ17: 0 | CA17: 0 | CB17: 0 | CC17: 0
A18: 2组 | B18: 旧 | C18: 安徽丰原国际贸易有限公司 | D18: DDGS | E18: 30000 | F18: 0 | G18: 0 | H18: 0 | I18: 0 | J18: 0 | K18: 0 | L18: 0 | M18: 0 | N18: 0 | O18: 0 | P18: 0 | Q18: 0 | R18: 0 | S18: 0 | T18: 0 | U18: 0 | V18: 0 | W18: 0 | X18: 0 | Y18: 0 | Z18: 0 | AA18: 0 | AB18: 0 | AC18: 0 | AD18: 0 | AE18: 0 | AF18: 0 | AG18: 0 | AH18: 0 | AI18: 0 | AJ18: 0 | AK18: 0 | AL18: 0 | AM18: 0 | AN18: 0 | AO18: 0 | AP18: 0 | AQ18: 0 | AR18: 0 | AS18: 0 | AT18: 0 | AU18: 0 | AV18: 0 | AW18: 0 | AX18: 0 | AY18: 0 | AZ18: 0 | BA18: 0 | BB18: 0 | BC18: 0 | BD18: 0 | BE18: 0 | BF18: 0 | BG18: 0 | BH18: 0 | BI18: 0 | BJ18: 0 | BK18: 0 | BL18: 0 | BM18: 0 | BN18: 0 | BO18: 0 | BP18: 0 | BQ18: 0 | BR18: 0 | BS18: 0 | BT18: 0 | BU18: 0 | BV18: 0 | BW18: 0 | BX18: 0 | BY18: 0 | BZ18: 0 | CA18: 0 | CB18: 0 | CC18: 0
A19: 2组 | B19: 旧 | C19: 中国牧工商（集团）总公司 | D19: DDGS | E19: 20000 | F19: 0 | G19: 0 | H19: 0 | I19: 0 | J19: 0 | K19: 0 | L19: 0 | M19: 0 | N19: 0 | O19: 0 | P19: 0 | Q19: 0 | R19: 0 | S19: 0 | T19: 0 | U19: 0 | V19: 0 | W19: 0 | X19: 0 | Y19: 0 | Z19: 0 | AA19: 0 | AB19: 0 | AC19: 0 | AD19: 0 | AE19: 0 | AF19: 0 | AG19: 0 | AH19: 0 | AI19: 0 | AJ19: 0 | AK19: 0 | AL19: 0 | AM19: 0 | AN19: 0 | AO19: 0 | AP19: 0 | AQ19: 0 | AR19: 0 | AS19: 0 | AT19: 0 | AU19: 0 | AV19: 0 | AW19: 0 | AX19: 0 | AY19: 0 | AZ19: 0 | BA19: 0 | BB19: 0 | BC19: 0 | BD19: 0 | BE19: 0 | BF19: 0 | BG19: 0 | BH19: 0 | BI19: 0 | BJ19: 0 | BK19: 0 | BL19: 0 | BM19: 0 | BN19: 0 | BO19: 0 | BP19: 0 | BQ19: 0 | BR19: 0 | BS19: 0 | BT19: 0 | BU19: 0 | BV19: 0 | BW19: 0 | BX19: 0 | BY19: 0 | BZ19: 0 | CA19: 0 | CB19: 0 | CC19: 0
A20: 2组 | B20: 旧 | C20: 肇庆市福加德面粉有限公司 | D20: 小麦 | E20: 0 | F20: 120000 | G20: 0 | H20: 0 | I20: 0 | J20: 0 | K20: 0 | L20: 0 | M20: 0 | N20: 0 | O20: 0 | P20: 0 | Q20: 0 | R20: 0 | S20: 0 | T20: 0 | U20: 0 | V20: 0 | W20: 0 | X20: 0 | Y20: 0 | Z20: 0 | AA20: 0 | AB20: 0 | AC20: 0 | AD20: 0 | AE20: 0 | AF20: 0 | AG20: 0 | AH20: 0 | AI20: 0 | AJ20: 0 | AK20: 0 | AL20: 0 | AM20: 0 | AN20: 0 | AO20: 0 | AP20: 0 | AQ20: 0 | AR20: 0 | AS20: 0 | AT20: 0 | AU20: 0 | AV20: 0 | AW20: 0 | AX20: 0 | AY20: 0 | AZ20: 0 | BA20: 0 | BB20: 0 | BC20: 0 | BD20: 0 | BE20: 0 | BF20: 0 | BG20: 0 | BH20: 0 | BI20: 0 | BJ20: 0 | BK20: 0 | BL20: 0 | BM20: 0 | BN20: 0 | BO20: 0 | BP20: 0 | BQ20: 0 | BR20: 0 | BS20: 0 | BT20: 0 | BU20: 0 | BV20: 0 | BW20: 0 | BX20: 0 | BY20: 0 | BZ20: 0 | CA20: 0 | CB20: 0 | CC20: 0
A21: 2组 | B21: 旧 | C21: 肇庆市福加德面粉有限公司 | D21: 高粱 | E21: 0 | F21: 150000 | G21: 0 | H21: 0 | I21: 0 | J21: 0 | K21: 0 | L21: 0 | M21: 0 | N21: 0 | O21: 0 | P21: 0 | Q21: 0 | R21: 0 | S21: 0 | T21: 0 | U21: 0 | V21: 0 | W21: 0 | X21: 0 | Y21: 0 | Z21: 0 | AA21: 0 | AB21: 0 | AC21: 0 | AD21: 0 | AE21: 0 | AF21: 0 | AG21: 0 | AH21: 0 | AI21: 0 | AJ21: 0 | AK21: 0 | AL21: 0 | AM21: 0 | AN21: 0 | AO21: 0 | AP21: 0 | AQ21: 0 | AR21: 0 | AS21: 0 | AT21: 0 | AU21: 0 | AV21: 0 | AW21: 0 | AX21: 0 | AY21: 0 | AZ21: 0 | BA21: 0 | BB21: 0 | BC21: 0 | BD21: 0 | BE21: 0 | BF21: 0 | BG21: 0 | BH21: 0 | BI21: 0 | BJ21: 0 | BK21: 0 | BL21: 0 | BM21: 0 | BN21: 0 | BO21: 0 | BP21: 0 | BQ21: 0 | BR21: 0 | BS21: 0 | BT21: 0 | BU21: 0 | BV21: 0 | BW21: 0 | BX21: 0 | BY21: 0 | BZ21: 0 | CA21: 0 | CB21: 0 | CC21: 0
A22: 2组 | B22: 旧 | C22: 广州市华壬谷物贸易有限公司 | D22: 高粱 | E22: 0 | F22: 200000 | G22: 0 | H22: 0 | I22: =SUM(G22,H22) -> 0 | J22: 0 | K22: 0 | L22: 0 | M22: 0 | N22: 0 | O22: 0 | P22: 0 | Q22: 0 | R22: 0 | S22: 0 | T22: 0 | U22: 0 | V22: 0 | W22: 0 | X22: 0 | Y22: 0 | Z22: 0 | AA22: 0 | AB22: 0 | AC22: 0 | AD22: 0 | AE22: 0 | AF22: 0 | AG22: 0 | AH22: 0 | AI22: 0 | AJ22: 0 | AK22: 0 | AL22: 0 | AM22: 0 | AN22: 0 | AO22: 0 | AP22: 0 | AQ22: 0 | AR22: 0 | AS22: 0 | AT22: 0 | AU22: 0 | AV22: 0 | AW22: 0 | AX22: 0 | AY22: 0 | AZ22: 0 | BA22: 0 | BB22: 0 | BC22: 0 | BD22: 0 | BE22: 0 | BF22: 0 | BG22: 0 | BH22: 0 | BI22: 0 | BJ22: 0 | BK22: 0 | BL22: 0 | BM22: 0 | BN22: 0 | BO22: 0 | BP22: 0 | BQ22: 0 | BR22: 0 | BS22: 0 | BT22: 0 | BU22: 0 | BV22: 0 | BW22: 0 | BX22: 0 | BY22: 0 | BZ22: 0 | CA22: 0 | CB22: 0 | CC22: 0
A23: 2组 | B23: 新 | C23: 广州市华壬谷物贸易有限公司 | D23: 大米 | E23: 50000 | F23: 0 | G23: 0 | H23: 0 | I23: =SUM(G23:H23) -> 0 | J23: 0 | K23: 0 | L23: 0 | M23: 0 | N23: 0 | O23: 0 | P23: 0 | Q23: 0 | R23: 0 | S23: 0 | T23: 0 | U23: 0 | V23: 0 | W23: 0 | X23: 0 | Y23: 0 | Z23: 0 | AA23: 0 | AB23: 0 | AC23: 0 | AD23: 0 | AE23: 0 | AF23: 0 | AG23: 0 | AH23: 0 | AI23: 0 | AJ23: 0 | AK23: 0 | AL23: 0 | AM23: 0 | AN23: 0 | AO23: 0 | AP23: 0 | AQ23: 0 | AR23: 0 | AS23: 0 | AT23: 0 | AU23: 0 | AV23: 0 | AW23: 0 | AX23: 0 | AY23: 0 | AZ23: 0 | BA23: 0 | BB23: 0 | BC23: 0 | BD23: 0 | BE23: 0 | BF23: 0 | BG23: 0 | BH23: 0 | BI23: 0 | BJ23: 0 | BK23: 0 | BL23: 0 | BM23: 0 | BN23: 0 | BO23: 0 | BP23: 0 | BQ23: 0 | BR23: 0 | BS23: 0 | BT23: 0 | BU23: 0 | BV23: 0 | BW23: 0 | BX23: 0 | BY23: 0 | BZ23: 0 | CA23: 0 | CB23: 0 | CC23: 0
A24: 2组 | B24: 旧 | C24: 重庆禾瑞康油脂有限公司 | D24: 米糠 | E24: 100000 | F24: 0 | G24: 0 | H24: 0 | I24: 0 | J24: 0 | K24: 0 | L24: 0 | M24: 0 | N24: 0 | O24: 0 | P24: 0 | Q24: 0 | R24: 0 | S24: 0 | T24: 0 | U24: 0 | V24: 0 | W24: 0 | X24: 0 | Y24: 0 | Z24: 0 | AA24: 0 | AB24: 0 | AC24: 0 | AD24: 0 | AE24: 0 | AF24: 0 | AG24: 0 | AH24: 0 | AI24: 0 | AJ24: 0 | AK24: 0 | AL24: 0 | AM24: 0 | AN24: 0 | AO24: 0 | AP24: 0 | AQ24: 0 | AR24: 0 | AS24: 0 | AT24: 0 | AU24: 0 | AV24: 0 | AW24: 0 | AX24: 0 | AY24: 0 | AZ24: 0 | BA24: 0 | BB24: 0 | BC24: 0 | BD24: 0 | BE24: 0 | BF24: 0 | BG24: 0 | BH24: 0 | BI24: 0 | BJ24: 0 | BK24: 0 | BL24: 0 | BM24: 0 | BN24: 0 | BO24: 0 | BP24: 0 | BQ24: 0 | BR24: 0 | BS24: 0 | BT24: 0 | BU24: 0 | BV24: 0 | BW24: 0 | BX24: 0 | BY24: 0 | BZ24: 0 | CA24: 0 | CB24: 0 | CC24: 0
A25: 2组 | B25: 旧 | C25: 湖南宇腾有色金属股份有限公司 | D25: 精矿 | E25: 50000 | F25: 50000 | G25: 0 | H25: 0 | I25: 0 | J25: 0 | K25: 0 | L25: 0 | M25: 0 | N25: 0 | O25: 0 | P25: 0 | Q25: 0 | R25: 0 | S25: 0 | T25: 0 | U25: 0 | V25: 0 | W25: 0 | X25: 0 | Y25: 0 | Z25: 0 | AA25: 0 | AB25: 0 | AC25: 0 | AD25: 0 | AE25: 0 | AF25: 0 | AG25: 0 | AH25: 0 | AI25: 0 | AJ25: 0 | AK25: 0 | AL25: 0 | AM25: 0 | AN25: 0 | AO25: 0 | AP25: 0 | AQ25: 0 | AR25: 0 | AS25: 0 | AT25: 0 | AU25: 0 | AV25: 0 | AW25: 0 | AX25: 0 | AY25: 0 | AZ25: 0 | BA25: 0 | BB25: 0 | BC25: 0 | BD25: 0 | BE25: 0 | BF25: 0 | BG25: 0 | BH25: 0 | BI25: 0 | BJ25: 0 | BK25: 0 | BL25: 0 | BM25: 0 | BN25: 0 | BO25: 0 | BP25: 0 | BQ25: 0 | BR25: 0 | BS25: 0 | BT25: 0 | BU25: 0 | BV25: 0 | BW25: 0 | BX25: 0 | BY25: 0 | BZ25: 0 | CA25: 0 | CB25: 0 | CC25: 0
A26: 2组 | B26: 旧 | C26: 深圳市中金岭南有色金属股份有限公司 | D26: 精矿 | E26: 0 | F26: 60000 | G26: 0 | H26: 0 | I26: 0 | J26: 0 | K26: 0 | L26: 0 | M26: 0 | N26: 0 | O26: 0 | P26: 0 | Q26: 0 | R26: 0 | S26: 0 | T26: 0 | U26: 0 | V26: 0 | W26: 0 | X26: 0 | Y26: 0 | Z26: 0 | AA26: 0 | AB26: 0 | AC26: 0 | AD26: 0 | AE26: 0 | AF26: 0 | AG26: 0 | AH26: 0 | AI26: 0 | AJ26: 0 | AK26: 0 | AL26: 0 | AM26: 0 | AN26: 0 | AO26: 0 | AP26: 0 | AQ26: 0 | AR26: 0 | AS26: 0 | AT26: 0 | AU26: 0 | AV26: 0 | AW26: 0 | AX26: 0 | AY26: 0 | AZ26: 0 | BA26: 0 | BB26: 0 | BC26: 0 | BD26: 0 | BE26: 0 | BF26: 0 | BG26: 0 | BH26: 0 | BI26: 0 | BJ26: 0 | BK26: 0 | BL26: 0 | BM26: 0 | BN26: 0 | BO26: 0 | BP26: 0 | BQ26: 0 | BR26: 0 | BS26: 0 | BT26: 0 | BU26: 0 | BV26: 0 | BW26: 0 | BX26: 0 | BY26: 0 | BZ26: 0 | CA26: =J26+P26+V26+AB26+AH26+AN26+AT26+AZ26+BF26+BL26+BR26+BX26 -> 0 | CB26: 0 | CC26: 0
A27: 2组 | B27: 旧 | C27: 东莞嘉吉粮油有限公司 | D27: 棕榈油 | E27: 0 | F27: 30000 | G27: 0 | H27: 0 | I27: 0 | J27: 0 | K27: 0 | L27: 0 | M27: 0 | N27: 0 | O27: 0 | P27: 0 | Q27: 0 | R27: 0 | S27: 0 | T27: 0 | U27: 0 | V27: 0 | W27: 0 | X27: 0 | Y27: 0 | Z27: 0 | AA27: 0 | AB27: 0 | AC27: 0 | AD27: 0 | AE27: 0 | AF27: 0 | AG27: 0 | AH27: 0 | AI27: 0 | AJ27: 0 | AK27: 0 | AL27: 0 | AM27: 0 | AN27: 0 | AO27: 0 | AP27: 0 | AQ27: 0 | AR27: 0 | AS27: 0 | AT27: 0 | AU27: 0 | AV27: 0 | AW27: 0 | AX27: 0 | AY27: 0 | AZ27: 0 | BA27: 0 | BB27: 0 | BC27: 0 | BD27: 0 | BE27: 0 | BF27: 0 | BG27: 0 | BH27: 0 | BI27: 0 | BJ27: 0 | BK27: 0 | BL27: 0 | BM27: 0 | BN27: 0 | BO27: 0 | BP27: 0 | BQ27: 0 | BR27: 0 | BS27: 0 | BT27: 0 | BU27: 0 | BV27: 0 | BW27: 0 | BX27: 0 | BY27: 0 | BZ27: 0 | CA27: 0 | CB27: 0 | CC27: 0
A28: 2组 | B28: 旧 | C28: 东莞嘉吉粮油有限公司 | D28: 菜粕 | E28: 0 | F28: 80000 | G28: 0 | H28: 0 | I28: 0 | J28: 0 | K28: 0 | L28: 0 | M28: 0 | N28: 0 | O28: 0 | P28: 0 | Q28: 0 | R28: 0 | S28: 0 | T28: 0 | U28: 0 | V28: 0 | W28: 0 | X28: 0 | Y28: 0 | Z28: 0 | AA28: 0 | AB28: 0 | AC28: 0 | AD28: 0 | AE28: 0 | AF28: 0 | AG28: 0 | AH28: 0 | AI28: 0 | AJ28: 0 | AK28: 0 | AL28: 0 | AM28: 0 | AN28: 0 | AO28: 0 | AP28: 0 | AQ28: 0 | AR28: 0 | AS28: 0 | AT28: 0 | AU28: 0 | AV28: 0 | AW28: 0 | AX28: 0 | AY28: 0 | AZ28: 0 | BA28: 0 | BB28: 0 | BC28: 0 | BD28: 0 | BE28: 0 | BF28: 0 | BG28: 0 | BH28: 0 | BI28: 0 | BJ28: 0 | BK28: 0 | BL28: 0 | BM28: 0 | BN28: 0 | BO28: 0 | BP28: 0 | BQ28: 0 | BR28: 0 | BS28: 0 | BT28: 0 | BU28: 0 | BV28: 0 | BW28: 0 | BX28: 0 | BY28: 0 | BZ28: 0 | CA28: 0 | CB28: 0 | CC28: 0
A29: 2组 | B29: 旧 | C29: 广州市粮食集团 | D29: 大米 | E29: 20000 | F29: 0 | G29: 0 | H29: 0 | I29: =SUM(G29:H29) -> 0 | J29: 0 | K29: 0 | L29: =SUM(J29:K29) -> 0 | M29: 0 | N29: 0 | O29: =SUM(M29:N29) -> 0 | P29: 0 | Q29: 0 | R29: =SUM(P29:Q29) -> 0 | S29: 0 | T29: 0 | U29: =SUM(S29:T29) -> 0 | V29: 0 | W29: 0 | X29: =SUM(V29:W29) -> 0 | Y29: 0 | Z29: 0 | AA29: =SUM(Y29:Z29) -> 0 | AB29: 0 | AC29: 0 | AD29: =SUM(AB29:AC29) -> 0 | AE29: 0 | AF29: 0 | AG29: =SUM(AE29:AF29) -> 0 | AH29: 0 | AI29: 0 | AJ29: =SUM(AH29:AI29) -> 0 | AK29: 0 | AL29: 0 | AM29: =SUM(AK29:AL29) -> 0 | AN29: 0 | AO29: 0 | AP29: =SUM(AN29:AO29) -> 0 | AQ29: 0 | AR29: 0 | AS29: =SUM(AQ29:AR29) -> 0 | AT29: 0 | AU29: 0 | AV29: =SUM(AT29:AU29) -> 0 | AW29: 0 | AX29: 0 | AY29: =SUM(AW29:AX29) -> 0 | AZ29: 0 | BA29: 0 | BB29: =SUM(AZ29:BA29) -> 0 | BC29: 0 | BD29: 0 | BE29: =SUM(BC29:BD29) -> 0 | BF29: 0 | BG29: 0 | BH29: =SUM(BF29:BG29) -> 0 | BI29: 0 | BJ29: 0 | BK29: =SUM(BI29:BJ29) -> 0 | BL29: 0 | BM29: 0 | BN29: =SUM(BL29:BM29) -> 0 | BO29: 0 | BP29: 0 | BQ29: =SUM(BO29:BP29) -> 0 | BR29: 0 | BS29: 0 | BT29: =SUM(BR29:BS29) -> 0 | BU29: 0 | BV29: 0 | BW29: =SUM(BU29:BV29) -> 0 | BX29: 0 | BY29: 0 | BZ29: =SUM(BX29:BY29) -> 0 | CA29: =J29+P29+V29+AB29+AH29+AN29+AT29+AZ29+BF29+BL29+BR29+BX29 -> 0 | CB29: 0 | CC29: =SUM(CA29:CB29) -> 0
A30: 3组 | B30: 旧 | C30: 湛江嘉冠禾贸易有限公司 | D30: DDGS | E30: 3000 | F30: 0 | G30: 0 | H30: 0 | I30: 0 | J30: 0 | K30: 0 | L30: 0 | M30: 0 | N30: 0 | O30: 0 | P30: 0 | Q30: 0 | R30: 0 | S30: 0 | T30: 0 | U30: 0 | V30: 0 | W30: 0 | X30: 0 | Y30: 0 | Z30: 0 | AA30: 0 | AB30: 0 | AC30: 0 | AD30: 0 | AE30: 0 | AF30: 0 | AG30: 0 | AH30: 0 | AI30: 0 | AJ30: 0 | AK30: 0 | AL30: 0 | AM30: 0 | AN30: 0 | AO30: 0 | AP30: 0 | AQ30: 0 | AR30: 0 | AS30: 0 | AT30: 0 | AU30: 0 | AV30: 0 | AW30: 0 | AX30: 0 | AY30: 0 | AZ30: 0 | BA30: 0 | BB30: 0 | BC30: 0 | BD30: 0 | BE30: 0 | BF30: 0 | BG30: 0 | BH30: 0 | BI30: 0 | BJ30: 0 | BK30: 0 | BL30: 0 | BM30: 0 | BN30: 0 | BO30: 0 | BP30: 0 | BQ30: 0 | BR30: 0 | BS30: 0 | BT30: 0 | BU30: 0 | BV30: 0 | BW30: 0 | BX30: 0 | BY30: 0 | BZ30: 0 | CA30: 0 | CB30: 0 | CC30: 0
A31: 3组 | B31: 旧 | C31: 湛江嘉冠禾贸易有限公司 | D31: 鱼粉 | E31: 5000 | F31: 0 | G31: 0 | H31: 0 | I31: 0 | J31: 0 | K31: 0 | L31: 0 | M31: 0 | N31: 0 | O31: 0 | P31: 0 | Q31: 0 | R31: 0 | S31: 0 | T31: 0 | U31: 0 | V31: 0 | W31: 0 | X31: 0 | Y31: 0 | Z31: 0 | AA31: 0 | AB31: 0 | AC31: 0 | AD31: 0 | AE31: 0 | AF31: 0 | AG31: 0 | AH31: 0 | AI31: 0 | AJ31: 0 | AK31: 0 | AL31: 0 | AM31: 0 | AN31: 0 | AO31: 0 | AP31: 0 | AQ31: 0 | AR31: 0 | AS31: 0 | AT31: 0 | AU31: 0 | AV31: 0 | AW31: 0 | AX31: 0 | AY31: 0 | AZ31: 0 | BA31: 0 | BB31: 0 | BC31: 0 | BD31: 0 | BE31: 0 | BF31: 0 | BG31: 0 | BH31: 0 | BI31: 0 | BJ31: 0 | BK31: 0 | BL31: 0 | BM31: 0 | BN31: 0 | BO31: 0 | BP31: 0 | BQ31: 0 | BR31: 0 | BS31: 0 | BT31: 0 | BU31: 0 | BV31: 0 | BW31: 0 | BX31: 0 | BY31: 0 | BZ31: 0 | CA31: 0 | CB31: 0 | CC31: 0
A32: 3组 | B32: 旧 | C32: 深圳市福加德谷物有限公司 | D32: 高粱 | E32: 0 | F32: 300000 | G32: 0 | H32: 0 | I32: 0 | J32: 0 | K32: 0 | L32: 0 | M32: 0 | N32: 0 | O32: 0 | P32: 0 | Q32: 0 | R32: 0 | S32: 0 | T32: 0 | U32: 0 | V32: 0 | W32: 0 | X32: 0 | Y32: 0 | Z32: 0 | AA32: 0 | AB32: 0 | AC32: 0 | AD32: 0 | AE32: 0 | AF32: 0 | AG32: 0 | AH32: 0 | AI32: 0 | AJ32: 0 | AK32: 0 | AL32: 0 | AM32: 0 | AN32: 0 | AO32: 0 | AP32: 0 | AQ32: 0 | AR32: 0 | AS32: 0 | AT32: 0 | AU32: 0 | AV32: 0 | AW32: 0 | AX32: 0 | AY32: 0 | AZ32: 0 | BA32: 0 | BB32: 0 | BC32: 0 | BD32: 0 | BE32: 0 | BF32: 0 | BG32: 0 | BH32: 0 | BI32: 0 | BJ32: 0 | BK32: 0 | BL32: 0 | BM32: 0 | BN32: 0 | BO32: 0 | BP32: 0 | BQ32: 0 | BR32: 0 | BS32: 0 | BT32: 0 | BU32: 0 | BV32: 0 | BW32: 0 | BX32: 0 | BY32: 0 | BZ32: 0 | CA32: 0 | CB32: 0 | CC32: 0
A33: 3组 | B33: 旧 | C33: 广州东凌贸易有限公司 | D33: 高粱 | E33: 0 | F33: 110000 | G33: 0 | H33: 0 | I33: 0 | J33: 0 | K33: 0 | L33: 0 | M33: 0 | N33: 0 | O33: 0 | P33: 0 | Q33: 0 | R33: 0 | S33: 0 | T33: 0 | U33: 0 | V33: 0 | W33: 0 | X33: 0 | Y33: 0 | Z33: 0 | AA33: 0 | AB33: 0 | AC33: 0 | AD33: 0 | AE33: 0 | AF33: 0 | AG33: 0 | AH33: 0 | AI33: 0 | AJ33: 0 | AK33: 0 | AL33: 0 | AM33: 0 | AN33: 0 | AO33: 0 | AP33: 0 | AQ33: 0 | AR33: 0 | AS33: 0 | AT33: 0 | AU33: 0 | AV33: 0 | AW33: 0 | AX33: 0 | AY33: 0 | AZ33: 0 | BA33: 0 | BB33: 0 | BC33: 0 | BD33: 0 | BE33: 0 | BF33: 0 | BG33: 0 | BH33: 0 | BI33: 0 | BJ33: 0 | BK33: 0 | BL33: 0 | BM33: 0 | BN33: 0 | BO33: 0 | BP33: 0 | BQ33: 0 | BR33: 0 | BS33: 0 | BT33: 0 | BU33: 0 | BV33: 0 | BW33: 0 | BX33: 0 | BY33: 0 | BZ33: 0 | CA33: 0 | CB33: 0 | CC33: 0
A34: 3组 | B34: 旧 | C34: 广州东凌贸易有限公司 | D34: 大麦 | E34: 0 | F34: 120000 | G34: 0 | H34: 0 | I34: 0 | J34: 0 | K34: 0 | L34: 0 | M34: 0 | N34: 0 | O34: 0 | P34: 0 | Q34: 0 | R34: 0 | S34: 0 | T34: 0 | U34: 0 | V34: 0 | W34: 0 | X34: 0 | Y34: 0 | Z34: 0 | AA34: 0 | AB34: 0 | AC34: 0 | AD34: 0 | AE34: 0 | AF34: 0 | AG34: 0 | AH34: 0 | AI34: 0 | AJ34: 0 | AK34: 0 | AL34: 0 | AM34: 0 | AN34: 0 | AO34: 0 | AP34: 0 | AQ34: 0 | AR34: 0 | AS34: 0 | AT34: 0 | AU34: 0 | AV34: 0 | AW34: 0 | AX34: 0 | AY34: 0 | AZ34: 0 | BA34: 0 | BB34: 0 | BC34: 0 | BD34: 0 | BE34: 0 | BF34: 0 | BG34: 0 | BH34: 0 | BI34: 0 | BJ34: 0 | BK34: 0 | BL34: 0 | BM34: 0 | BN34: 0 | BO34: 0 | BP34: 0 | BQ34: 0 | BR34: 0 | BS34: 0 | BT34: 0 | BU34: 0 | BV34: 0 | BW34: 0 | BX34: 0 | BY34: 0 | BZ34: 0 | CA34: 0 | CB34: 0 | CC34: 0
A35: 3组 | B35: 旧 | C35: 广州东凌贸易有限公司 | D35: 玉米 | E35: 0 | F35: 20000 | G35: 0 | H35: 0 | I35: 0 | J35: 0 | K35: 0 | L35: 0 | M35: 0 | N35: 0 | O35: 0 | P35: 0 | Q35: 0 | R35: 0 | S35: 0 | T35: 0 | U35: 0 | V35: 0 | W35: 0 | X35: 0 | Y35: 0 | Z35: 0 | AA35: 0 | AB35: 0 | AC35: 0 | AD35: 0 | AE35: 0 | AF35: 0 | AG35: 0 | AH35: 0 | AI35: 0 | AJ35: 0 | AK35: 0 | AL35: 0 | AM35: 0 | AN35: 0 | AO35: 0 | AP35: 0 | AQ35: 0 | AR35: 0 | AS35: 0 | AT35: 0 | AU35: 0 | AV35: 0 | AW35: 0 | AX35: 0 | AY35: 0 | AZ35: 0 | BA35: 0 | BB35: 0 | BC35: 0 | BD35: 0 | BE35: 0 | BF35: 0 | BG35: 0 | BH35: 0 | BI35: 0 | BJ35: 0 | BK35: 0 | BL35: 0 | BM35: 0 | BN35: 0 | BO35: 0 | BP35: 0 | BQ35: 0 | BR35: 0 | BS35: 0 | BT35: 0 | BU35: 0 | BV35: 0 | BW35: 0 | BX35: 0 | BY35: 0 | BZ35: 0 | CA35: 0 | CB35: 0 | CC35: 0
A36: 3组 | B36: 旧 | C36: 广州东凌贸易有限公司 | D36: DDGS | E36: 20000 | F36: 0 | G36: 0 | H36: 0 | I36: 0 | J36: 0 | K36: 0 | L36: 0 | M36: 0 | N36: 0 | O36: 0 | P36: 0 | Q36: 0 | R36: 0 | S36: 0 | T36: 0 | U36: 0 | V36: 0 | W36: 0 | X36: 0 | Y36: 0 | Z36: 0 | AA36: 0 | AB36: 0 | AC36: 0 | AD36: 0 | AE36: 0 | AF36: 0 | AG36: 0 | AH36: 0 | AI36: 0 | AJ36: 0 | AK36: 0 | AL36: 0 | AM36: 0 | AN36: 0 | AO36: 0 | AP36: 0 | AQ36: 0 | AR36: 0 | AS36: 0 | AT36: 0 | AU36: 0 | AV36: 0 | AW36: 0 | AX36: 0 | AY36: 0 | AZ36: 0 | BA36: 0 | BB36: 0 | BC36: 0 | BD36: 0 | BE36: 0 | BF36: 0 | BG36: 0 | BH36: 0 | BI36: 0 | BJ36: 0 | BK36: 0 | BL36: 0 | BM36: 0 | BN36: 0 | BO36: 0 | BP36: 0 | BQ36: 0 | BR36: 0 | BS36: 0 | BT36: 0 | BU36: 0 | BV36: 0 | BW36: 0 | BX36: 0 | BY36: 0 | BZ36: 0 | CA36: 0 | CB36: 0 | CC36: 0
A37: 3组 | B37: 旧 | C37: 广州东凌贸易有限公司 | D37: 菜粕 | E37: 24000 | F37: 0 | G37: 0 | H37: 0 | I37: 0 | J37: 0 | K37: 0 | L37: 0 | M37: 0 | N37: 0 | O37: 0 | P37: 0 | Q37: 0 | R37: 0 | S37: 0 | T37: 0 | U37: 0 | V37: 0 | W37: 0 | X37: 0 | Y37: 0 | Z37: 0 | AA37: 0 | AB37: 0 | AC37: 0 | AD37: 0 | AE37: 0 | AF37: 0 | AG37: 0 | AH37: 0 | AI37: 0 | AJ37: 0 | AK37: 0 | AL37: 0 | AM37: 0 | AN37: 0 | AO37: 0 | AP37: 0 | AQ37: 0 | AR37: 0 | AS37: 0 | AT37: 0 | AU37: 0 | AV37: 0 | AW37: 0 | AX37: 0 | AY37: 0 | AZ37: 0 | BA37: 0 | BB37: 0 | BC37: 0 | BD37: 0 | BE37: 0 | BF37: 0 | BG37: 0 | BH37: 0 | BI37: 0 | BJ37: 0 | BK37: 0 | BL37: 0 | BM37: 0 | BN37: 0 | BO37: 0 | BP37: 0 | BQ37: 0 | BR37: 0 | BS37: 0 | BT37: 0 | BU37: 0 | BV37: 0 | BW37: 0 | BX37: 0 | BY37: 0 | BZ37: 0 | CA37: 0 | CB37: 0 | CC37: 0
A38: 3组 | B38: 旧 | C38: 广东福百盛股份有限公司 | D38: 木薯渣粉/颗粒 | E38: 0 | F38: 60000 | G38: 0 | H38: 0 | I38: 0 | J38: 0 | K38: 0 | L38: 0 | M38: 0 | N38: 0 | O38: 0 | P38: 0 | Q38: 0 | R38: 0 | S38: 0 | T38: 0 | U38: 0 | V38: 0 | W38: 0 | X38: 0 | Y38: 0 | Z38: 0 | AA38: 0 | AB38: 0 | AC38: 0 | AD38: 0 | AE38: 0 | AF38: 0 | AG38: 0 | AH38: 0 | AI38: 0 | AJ38: 0 | AK38: 0 | AL38: 0 | AM38: 0 | AN38: 0 | AO38: 0 | AP38: 0 | AQ38: 0 | AR38: 0 | AS38: 0 | AT38: 0 | AU38: 0 | AV38: 0 | AW38: 0 | AX38: 0 | AY38: 0 | AZ38: 0 | BA38: 0 | BB38: 0 | BC38: 0 | BD38: 0 | BE38: 0 | BF38: 0 | BG38: 0 | BH38: 0 | BI38: 0 | BJ38: 0 | BK38: 0 | BL38: 0 | BM38: 0 | BN38: 0 | BO38: 0 | BP38: 0 | BQ38: 0 | BR38: 0 | BS38: 0 | BT38: 0 | BU38: 0 | BV38: 0 | BW38: 0 | BX38: 0 | BY38: 0 | BZ38: 0 | CA38: 0 | CB38: 0 | CC38: 0
A39: 3组 | B39: 旧 | C39: 广东福百盛股份有限公司 | D39: DDGS | E39: 5000 | F39: 0 | G39: 0 | H39: 0 | I39: 0 | J39: 0 | K39: 0 | L39: 0 | M39: 0 | N39: 0 | O39: 0 | P39: 0 | Q39: 0 | R39: 0 | S39: 0 | T39: 0 | U39: 0 | V39: 0 | W39: 0 | X39: 0 | Y39: 0 | Z39: 0 | AA39: 0 | AB39: 0 | AC39: 0 | AD39: 0 | AE39: 0 | AF39: 0 | AG39: 0 | AH39: 0 | AI39: 0 | AJ39: 0 | AK39: 0 | AL39: 0 | AM39: 0 | AN39: 0 | AO39: 0 | AP39: 0 | AQ39: 0 | AR39: 0 | AS39: 0 | AT39: 0 | AU39: 0 | AV39: 0 | AW39: 0 | AX39: 0 | AY39: 0 | AZ39: 0 | BA39: 0 | BB39: 0 | BC39: 0 | BD39: 0 | BE39: 0 | BF39: 0 | BG39: 0 | BH39: 0 | BI39: 0 | BJ39: 0 | BK39: 0 | BL39: 0 | BM39: 0 | BN39: 0 | BO39: 0 | BP39: 0 | BQ39: 0 | BR39: 0 | BS39: 0 | BT39: 0 | BU39: 0 | BV39: 0 | BW39: 0 | BX39: 0 | BY39: 0 | BZ39: 0 | CA39: 0 | CB39: 0 | CC39: 0
A40: 3组 | B40: 旧 | C40: 厦门市明穗粮油贸易有限公司 | D40: 小麦 | E40: 0 | F40: 60000 | G40: 0 | H40: 0 | I40: 0 | J40: 0 | K40: 0 | L40: 0 | M40: 0 | N40: 0 | O40: 0 | P40: 0 | Q40: 0 | R40: 0 | S40: 0 | T40: 0 | U40: 0 | V40: 0 | W40: 0 | X40: 0 | Y40: 0 | Z40: 0 | AA40: 0 | AB40: 0 | AC40: 0 | AD40: 0 | AE40: 0 | AF40: 0 | AG40: 0 | AH40: 0 | AI40: 0 | AJ40: 0 | AK40: 0 | AL40: 0 | AM40: 0 | AN40: 0 | AO40: 0 | AP40: 0 | AQ40: 0 | AR40: 0 | AS40: 0 | AT40: 0 | AU40: 0 | AV40: 0 | AW40: 0 | AX40: 0 | AY40: 0 | AZ40: 0 | BA40: 0 | BB40: 0 | BC40: 0 | BD40: 0 | BE40: 0 | BF40: 0 | BG40: 0 | BH40: 0 | BI40: 0 | BJ40: 0 | BK40: 0 | BL40: 0 | BM40: 0 | BN40: 0 | BO40: 0 | BP40: 0 | BQ40: 0 | BR40: 0 | BS40: 0 | BT40: 0 | BU40: 0 | BV40: 0 | BW40: 0 | BX40: 0 | BY40: 0 | BZ40: 0 | CA40: 0 | CB40: 0 | CC40: 0
A41: 3组 | B41: 旧 | C41: 厦门市明穗粮油贸易有限公司 | D41: 豌豆 | E41: 0 | F41: 10000 | G41: 0 | H41: 0 | I41: 0 | J41: 0 | K41: 0 | L41: 0 | M41: 0 | N41: 0 | O41: 0 | P41: 0 | Q41: 0 | R41: 0 | S41: 0 | T41: 0 | U41: 0 | V41: 0 | W41: 0 | X41: 0 | Y41: 0 | Z41: 0 | AA41: 0 | AB41: 0 | AC41: 0 | AD41: 0 | AE41: 0 | AF41: 0 | AG41: 0 | AH41: 0 | AI41: 0 | AJ41: 0 | AK41: 0 | AL41: 0 | AM41: 0 | AN41: 0 | AO41: 0 | AP41: 0 | AQ41: 0 | AR41: 0 | AS41: 0 | AT41: 0 | AU41: 0 | AV41: 0 | AW41: 0 | AX41: 0 | AY41: 0 | AZ41: 0 | BA41: 0 | BB41: 0 | BC41: 0 | BD41: 0 | BE41: 0 | BF41: 0 | BG41: 0 | BH41: 0 | BI41: 0 | BJ41: 0 | BK41: 0 | BL41: 0 | BM41: 0 | BN41: 0 | BO41: 0 | BP41: 0 | BQ41: 0 | BR41: 0 | BS41: 0 | BT41: 0 | BU41: 0 | BV41: 0 | BW41: 0 | BX41: 0 | BY41: 0 | BZ41: 0 | CA41: =J41+P41+V41+AB41+AH41+AN41+AT41+AZ41+BF41+BL41+BR41+BX41 -> 0 | CB41: =K41+Q41+W41+AC41+AI41+AO41+AU41+BA41+BG41+BM41+BS41+BY41 -> 0 | CC41: 0
A42: 3组 | B42: 旧 | C42: 厦门市明穗粮油贸易有限公司 | D42: 大麦 | E42: 0 | F42: 40000 | G42: 0 | H42: 0 | I42: 0 | J42: 0 | K42: 0 | L42: 0 | M42: 0 | N42: 0 | O42: 0 | P42: 0 | Q42: 0 | R42: 0 | S42: 0 | T42: 0 | U42: 0 | V42: 0 | W42: 0 | X42: 0 | Y42: 0 | Z42: 0 | AA42: 0 | AB42: 0 | AC42: 0 | AD42: 0 | AE42: 0 | AF42: 0 | AG42: 0 | AH42: 0 | AI42: 0 | AJ42: 0 | AK42: 0 | AL42: 0 | AM42: 0 | AN42: 0 | AO42: 0 | AP42: 0 | AQ42: 0 | AR42: 0 | AS42: 0 | AT42: 0 | AU42: 0 | AV42: 0 | AW42: 0 | AX42: 0 | AY42: 0 | AZ42: 0 | BA42: 0 | BB42: 0 | BC42: 0 | BD42: 0 | BE42: 0 | BF42: 0 | BG42: 0 | BH42: 0 | BI42: 0 | BJ42: 0 | BK42: 0 | BL42: 0 | BM42: 0 | BN42: 0 | BO42: 0 | BP42: 0 | BQ42: 0 | BR42: 0 | BS42: 0 | BT42: 0 | BU42: 0 | BV42: 0 | BW42: 0 | BX42: 0 | BY42: 0 | BZ42: 0 | CA42: 0 | CB42: 0 | CC42: 0
A43: 3组 | B43: 旧 | C43: 厦门市明穗粮油贸易有限公司 | D43: 高粱 | E43: 0 | F43: 200000 | G43: 0 | H43: 0 | I43: 0 | J43: 0 | K43: 0 | L43: 0 | M43: 0 | N43: 0 | O43: 0 | P43: 0 | Q43: 0 | R43: 0 | S43: 0 | T43: 0 | U43: 0 | V43: 0 | W43: 0 | X43: 0 | Y43: 0 | Z43: 0 | AA43: 0 | AB43: 0 | AC43: 0 | AD43: 0 | AE43: 0 | AF43: 0 | AG43: 0 | AH43: 0 | AI43: 0 | AJ43: 0 | AK43: 0 | AL43: 0 | AM43: 0 | AN43: 0 | AO43: 0 | AP43: 0 | AQ43: 0 | AR43: 0 | AS43: 0 | AT43: 0 | AU43: 0 | AV43: 0 | AW43: 0 | AX43: 0 | AY43: 0 | AZ43: 0 | BA43: 0 | BB43: 0 | BC43: 0 | BD43: 0 | BE43: 0 | BF43: 0 | BG43: 0 | BH43: 0 | BI43: 0 | BJ43: 0 | BK43: 0 | BL43: 0 | BM43: 0 | BN43: 0 | BO43: 0 | BP43: 0 | BQ43: 0 | BR43: 0 | BS43: 0 | BT43: 0 | BU43: 0 | BV43: 0 | BW43: 0 | BX43: 0 | BY43: 0 | BZ43: 0 | CA43: 0 | CB43: 0 | CC43: 0
A44: 3组 | B44: 旧 | C44: 厦门市明穗粮油贸易有限公司 | D44: 菜粕 | E44: 10000 | F44: 0 | G44: 0 | H44: 0 | I44: 0 | J44: 0 | K44: 0 | L44: 0 | M44: 0 | N44: 0 | O44: 0 | P44: 0 | Q44: 0 | R44: 0 | S44: 0 | T44: 0 | U44: 0 | V44: 0 | W44: 0 | X44: 0 | Y44: 0 | Z44: 0 | AA44: 0 | AB44: 0 | AC44: 0 | AD44: 0 | AE44: 0 | AF44: 0 | AG44: 0 | AH44: 0 | AI44: 0 | AJ44: 0 | AK44: 0 | AL44: 0 | AM44: 0 | AN44: 0 | AO44: 0 | AP44: 0 | AQ44: 0 | AR44: 0 | AS44: 0 | AT44: 0 | AU44: 0 | AV44: 0 | AW44: 0 | AX44: 0 | AY44: 0 | AZ44: 0 | BA44: 0 | BB44: 0 | BC44: 0 | BD44: 0 | BE44: 0 | BF44: 0 | BG44: 0 | BH44: 0 | BI44: 0 | BJ44: 0 | BK44: 0 | BL44: 0 | BM44: 0 | BN44: 0 | BO44: 0 | BP44: 0 | BQ44: 0 | BR44: 0 | BS44: 0 | BT44: 0 | BU44: 0 | BV44: 0 | BW44: 0 | BX44: 0 | BY44: 0 | BZ44: 0 | CA44: 0 | CB44: 0 | CC44: 0
A45: 3组 | B45: 旧 | C45: 招远市宝发食品有限公司 | D45: 豌豆 | E45: 0 | F45: 80000 | G45: 0 | H45: 0 | I45: 0 | J45: 0 | K45: 0 | L45: 0 | M45: 0 | N45: 0 | O45: 0 | P45: 0 | Q45: 0 | R45: 0 | S45: 0 | T45: 0 | U45: 0 | V45: 0 | W45: 0 | X45: 0 | Y45: 0 | Z45: 0 | AA45: 0 | AB45: 0 | AC45: 0 | AD45: 0 | AE45: 0 | AF45: 0 | AG45: 0 | AH45: 0 | AI45: 0 | AJ45: 0 | AK45: 0 | AL45: 0 | AM45: 0 | AN45: 0 | AO45: 0 | AP45: 0 | AQ45: 0 | AR45: 0 | AS45: 0 | AT45: 0 | AU45: 0 | AV45: 0 | AW45: 0 | AX45: 0 | AY45: 0 | AZ45: 0 | BA45: 0 | BB45: 0 | BC45: 0 | BD45: 0 | BE45: 0 | BF45: 0 | BG45: 0 | BH45: 0 | BI45: 0 | BJ45: 0 | BK45: 0 | BL45: 0 | BM45: 0 | BN45: 0 | BO45: 0 | BP45: 0 | BQ45: 0 | BR45: 0 | BS45: 0 | BT45: 0 | BU45: 0 | BV45: 0 | BW45: 0 | BX45: 0 | BY45: 0 | BZ45: 0 | CA45: 0 | CB45: 0 | CC45: 0
A46: 3组 | B46: 旧 | C46: 东莞市东糖集团有限公司 | D46: 原糖 | E46: 0 | F46: 250000 | G46: 0 | H46: 0 | I46: 0 | J46: 0 | K46: 0 | L46: 0 | M46: 0 | N46: 0 | O46: 0 | P46: 0 | Q46: 0 | R46: 0 | S46: 0 | T46: 0 | U46: 0 | V46: 0 | W46: 0 | X46: 0 | Y46: 0 | Z46: 0 | AA46: 0 | AB46: 0 | AC46: 0 | AD46: 0 | AE46: 0 | AF46: 0 | AG46: 0 | AH46: 0 | AI46: 0 | AJ46: 0 | AK46: 0 | AL46: 0 | AM46: 0 | AN46: 0 | AO46: 0 | AP46: 0 | AQ46: 0 | AR46: 0 | AS46: 0 | AT46: 0 | AU46: 0 | AV46: 0 | AW46: 0 | AX46: 0 | AY46: 0 | AZ46: 0 | BA46: 0 | BB46: 0 | BC46: 0 | BD46: 0 | BE46: 0 | BF46: 0 | BG46: 0 | BH46: 0 | BI46: 0 | BJ46: 0 | BK46: 0 | BL46: 0 | BM46: 0 | BN46: 0 | BO46: 0 | BP46: 0 | BQ46: 0 | BR46: 0 | BS46: 0 | BT46: 0 | BU46: 0 | BV46: 0 | BW46: 0 | BX46: 0 | BY46: 0 | BZ46: 0 | CA46: 0 | CB46: 0 | CC46: 0
A47: 3组 | B47: 新 | C47: 傲谷国际有限公司 | D47: DDGS | E47: 5000 | F47: 0 | G47: 0 | H47: 0 | I47: 0 | J47: 0 | K47: 0 | L47: 0 | M47: 0 | N47: 0 | O47: 0 | P47: 0 | Q47: 0 | R47: 0 | S47: 0 | T47: 0 | U47: 0 | V47: 0 | W47: 0 | X47: 0 | Y47: 0 | Z47: 0 | AA47: 0 | AB47: 0 | AC47: 0 | AD47: 0 | AE47: 0 | AF47: 0 | AG47: 0 | AH47: 0 | AI47: 0 | AJ47: 0 | AK47: 0 | AL47: 0 | AM47: 0 | AN47: 0 | AO47: 0 | AP47: 0 | AQ47: 0 | AR47: 0 | AS47: 0 | AT47: 0 | AU47: 0 | AV47: 0 | AW47: 0 | AX47: 0 | AY47: 0 | AZ47: 0 | BA47: 0 | BB47: 0 | BC47: 0 | BD47: 0 | BE47: 0 | BF47: 0 | BG47: 0 | BH47: 0 | BI47: 0 | BJ47: 0 | BK47: 0 | BL47: 0 | BM47: 0 | BN47: 0 | BO47: 0 | BP47: 0 | BQ47: 0 | BR47: 0 | BS47: 0 | BT47: 0 | BU47: 0 | BV47: 0 | BW47: 0 | BX47: 0 | BY47: 0 | BZ47: 0 | CA47: =J47+P47+V47+AB47+AH47+AN47+AT47+AZ47+BF47+BL47+BR47+BX47 -> 0 | CB47: 0 | CC47: 0
A48: 4组 | B48: 旧 | C48: 厦门国贸集团股份有限公司 | D48: 大麦 | E48: 0 | F48: 100000 | G48: 0 | H48: 0 | I48: 0 | J48: 0 | K48: 0 | L48: 0 | M48: 0 | N48: 0 | O48: 0 | P48: 0 | Q48: 0 | R48: 0 | S48: 0 | T48: 0 | U48: 0 | V48: 0 | W48: 0 | X48: 0 | Y48: 0 | Z48: 0 | AA48: 0 | AB48: 0 | AC48: 0 | AD48: 0 | AE48: 0 | AF48: 0 | AG48: 0 | AH48: 0 | AI48: 0 | AJ48: 0 | AK48: 0 | AL48: 0 | AM48: 0 | AN48: 0 | AO48: 0 | AP48: 0 | AQ48: 0 | AR48: 0 | AS48: 0 | AT48: 0 | AU48: 0 | AV48: 0 | AW48: 0 | AX48: 0 | AY48: 0 | AZ48: 0 | BA48: 0 | BB48: 0 | BC48: 0 | BD48: 0 | BE48: 0 | BF48: 0 | BG48: 0 | BH48: 0 | BI48: 0 | BJ48: 0 | BK48: 0 | BL48: 0 | BM48: 0 | BN48: 0 | BO48: 0 | BP48: 0 | BQ48: 0 | BR48: 0 | BS48: 0 | BT48: 0 | BU48: 0 | BV48: 0 | BW48: 0 | BX48: 0 | BY48: 0 | BZ48: 0 | CA48: 0 | CB48: 0 | CC48: 0
A49: 4组 | B49: 旧 | C49: 厦门国贸集团股份有限公司 | D49: DDGS | E49: 20000 | F49: 0 | G49: 0 | H49: 0 | I49: =SUM(G49:H49) -> 0 | J49: 0 | K49: 0 | L49: =SUM(J49:K49) -> 0 | M49: 0 | N49: 0 | O49: =SUM(M49:N49) -> 0 | P49: 0 | Q49: 0 | R49: =SUM(P49:Q49) -> 0 | S49: 0 | T49: 0 | U49: =SUM(S49:T49) -> 0 | V49: 0 | W49: 0 | X49: =SUM(V49:W49) -> 0 | Y49: 0 | Z49: 0 | AA49: =SUM(Y49:Z49) -> 0 | AB49: 0 | AC49: 0 | AD49: =SUM(AB49:AC49) -> 0 | AE49: 0 | AF49: 0 | AG49: =SUM(AE49:AF49) -> 0 | AH49: 0 | AI49: 0 | AJ49: =SUM(AH49:AI49) -> 0 | AK49: 0 | AL49: 0 | AM49: =SUM(AK49:AL49) -> 0 | AN49: 0 | AO49: 0 | AP49: =SUM(AN49:AO49) -> 0 | AQ49: 0 | AR49: 0 | AS49: =SUM(AQ49:AR49) -> 0 | AT49: 0 | AU49: 0 | AV49: =SUM(AT49:AU49) -> 0 | AW49: 0 | AX49: 0 | AY49: =SUM(AW49:AX49) -> 0 | AZ49: 0 | BA49: 0 | BB49: =SUM(AZ49:BA49) -> 0 | BC49: 0 | BD49: 0 | BE49: =SUM(BC49:BD49) -> 0 | BF49: 0 | BG49: 0 | BH49: =SUM(BF49:BG49) -> 0 | BI49: 0 | BJ49: 0 | BK49: =SUM(BI49:BJ49) -> 0 | BL49: 0 | BM49: 0 | BN49: =SUM(BL49:BM49) -> 0 | BO49: 0 | BP49: 0 | BQ49: =SUM(BO49:BP49) -> 0 | BR49: 0 | BS49: 0 | BT49: =SUM(BR49:BS49) -> 0 | BU49: 0 | BV49: 0 | BW49: =SUM(BU49:BV49) -> 0 | BX49: 0 | BY49: 0 | BZ49: =SUM(BX49:BY49) -> 0 | CA49: 0 | CB49: 0 | CC49: =SUM(CA49:CB49) -> 0
A50: 4组 | B50: 旧 | C50: 广东海大集团股份有限公司 | D50: DDGS | E50: 30000 | F50: 0 | G50: 0 | H50: 0 | I50: 0 | J50: 0 | K50: 0 | L50: 0 | M50: 0 | N50: 0 | O50: 0 | P50: 0 | Q50: 0 | R50: 0 | S50: 0 | T50: 0 | U50: 0 | V50: 0 | W50: 0 | X50: 0 | Y50: 0 | Z50: 0 | AA50: 0 | AB50: 0 | AC50: 0 | AD50: 0 | AE50: 0 | AF50: 0 | AG50: 0 | AH50: 0 | AI50: 0 | AJ50: 0 | AK50: 0 | AL50: 0 | AM50: 0 | AN50: 0 | AO50: 0 | AP50: 0 | AQ50: 0 | AR50: 0 | AS50: 0 | AT50: 0 | AU50: 0 | AV50: 0 | AW50: 0 | AX50: 0 | AY50: 0 | AZ50: 0 | BA50: 0 | BB50: 0 | BC50: 0 | BD50: 0 | BE50: 0 | BF50: 0 | BG50: 0 | BH50: 0 | BI50: 0 | BJ50: 0 | BK50: 0 | BL50: 0 | BM50: 0 | BN50: 0 | BO50: 0 | BP50: 0 | BQ50: 0 | BR50: 0 | BS50: 0 | BT50: 0 | BU50: 0 | BV50: 0 | BW50: 0 | BX50: 0 | BY50: 0 | BZ50: 0 | CA50: =J50+P50+V50+AB50+AH50+AN50+AT50+AZ50+BF50+BL50+BR50+BX50 -> 0 | CB50: 0 | CC50: 0
A51: 4组 | B51: 旧 | C51: 广东恒兴饲料实业股份有限公司 | D51: 高粱 | E51: 0 | F51: 80000 | G51: 0 | H51: 0 | I51: 0 | J51: 0 | K51: 0 | L51: 0 | M51: 0 | N51: 0 | O51: 0 | P51: 0 | Q51: 0 | R51: 0 | S51: 0 | T51: 0 | U51: 0 | V51: 0 | W51: 0 | X51: 0 | Y51: 0 | Z51: 0 | AA51: 0 | AB51: 0 | AC51: 0 | AD51: 0 | AE51: 0 | AF51: 0 | AG51: 0 | AH51: 0 | AI51: 0 | AJ51: 0 | AK51: 0 | AL51: 0 | AM51: 0 | AN51: 0 | AO51: 0 | AP51: 0 | AQ51: 0 | AR51: 0 | AS51: 0 | AT51: 0 | AU51: 0 | AV51: 0 | AW51: 0 | AX51: 0 | AY51: 0 | AZ51: 0 | BA51: 0 | BB51: 0 | BC51: 0 | BD51: 0 | BE51: 0 | BF51: 0 | BG51: 0 | BH51: 0 | BI51: 0 | BJ51: 0 | BK51: 0 | BL51: 0 | BM51: 0 | BN51: 0 | BO51: 0 | BP51: 0 | BQ51: 0 | BR51: 0 | BS51: 0 | BT51: 0 | BU51: 0 | BV51: 0 | BW51: 0 | BX51: 0 | BY51: 0 | BZ51: 0 | CA51: 0 | CB51: 0 | CC51: 0
A52: 4组 | B52: 旧 | C52: 广东恒兴饲料实业股份有限公司 | D52: DDGS | E52: 15000 | F52: 0 | G52: 0 | H52: 0 | I52: 0 | J52: 0 | K52: 0 | L52: 0 | M52: 0 | N52: 0 | O52: 0 | P52: 0 | Q52: 0 | R52: 0 | S52: 0 | T52: 0 | U52: 0 | V52: 0 | W52: 0 | X52: 0 | Y52: 0 | Z52: 0 | AA52: 0 | AB52: 0 | AC52: 0 | AD52: 0 | AE52: 0 | AF52: 0 | AG52: 0 | AH52: 0 | AI52: 0 | AJ52: 0 | AK52: 0 | AL52: 0 | AM52: 0 | AN52: 0 | AO52: 0 | AP52: 0 | AQ52: 0 | AR52: 0 | AS52: 0 | AT52: 0 | AU52: 0 | AV52: 0 | AW52: 0 | AX52: 0 | AY52: 0 | AZ52: 0 | BA52: 0 | BB52: 0 | BC52: 0 | BD52: 0 | BE52: 0 | BF52: 0 | BG52: 0 | BH52: 0 | BI52: 0 | BJ52: 0 | BK52: 0 | BL52: 0 | BM52: 0 | BN52: 0 | BO52: 0 | BP52: 0 | BQ52: 0 | BR52: 0 | BS52: 0 | BT52: 0 | BU52: 0 | BV52: 0 | BW52: 0 | BX52: 0 | BY52: 0 | BZ52: 0 | CA52: 0 | CB52: 0 | CC52: 0
A53: 4组 | B53: 新 | C53: 广东恒兴饲料实业股份有限公司 | D53: 鱼粉 | E53: 25000 | F53: 0 | G53: 0 | H53: 0 | I53: 0 | J53: 0 | K53: 0 | L53: 0 | M53: 0 | N53: 0 | O53: 0 | P53: 0 | Q53: 0 | R53: 0 | S53: 0 | T53: 0 | U53: 0 | V53: 0 | W53: 0 | X53: 0 | Y53: 0 | Z53: 0 | AA53: 0 | AB53: 0 | AC53: 0 | AD53: 0 | AE53: 0 | AF53: 0 | AG53: 0 | AH53: 0 | AI53: 0 | AJ53: 0 | AK53: 0 | AL53: 0 | AM53: 0 | AN53: 0 | AO53: 0 | AP53: 0 | AQ53: 0 | AR53: 0 | AS53: 0 | AT53: 0 | AU53: 0 | AV53: 0 | AW53: 0 | AX53: 0 | AY53: 0 | AZ53: 0 | BA53: 0 | BB53: 0 | BC53: 0 | BD53: 0 | BE53: 0 | BF53: 0 | BG53: 0 | BH53: 0 | BI53: 0 | BJ53: 0 | BK53: 0 | BL53: 0 | BM53: 0 | BN53: 0 | BO53: 0 | BP53: 0 | BQ53: 0 | BR53: 0 | BS53: 0 | BT53: 0 | BU53: 0 | BV53: 0 | BW53: 0 | BX53: 0 | BY53: 0 | BZ53: 0 | CA53: 0 | CB53: 0 | CC53: 0
A54: 4组 | B54: 旧 | C54: 北大荒粮食集团广州仁亿贸易有限公司 | D54: 高粱 | E54: 0 | F54: 100000 | G54: 0 | H54: 0 | I54: 0 | J54: 0 | K54: 0 | L54: 0 | M54: 0 | N54: 0 | O54: 0 | P54: 0 | Q54: 0 | R54: 0 | S54: 0 | T54: 0 | U54: 0 | V54: 0 | W54: 0 | X54: 0 | Y54: 0 | Z54: 0 | AA54: 0 | AB54: 0 | AC54: 0 | AD54: 0 | AE54: 0 | AF54: 0 | AG54: 0 | AH54: 0 | AI54: 0 | AJ54: 0 | AK54: 0 | AL54: 0 | AM54: 0 | AN54: 0 | AO54: 0 | AP54: 0 | AQ54: 0 | AR54: 0 | AS54: 0 | AT54: 0 | AU54: 0 | AV54: 0 | AW54: 0 | AX54: 0 | AY54: 0 | AZ54: 0 | BA54: 0 | BB54: 0 | BC54: 0 | BD54: 0 | BE54: 0 | BF54: 0 | BG54: 0 | BH54: 0 | BI54: 0 | BJ54: 0 | BK54: 0 | BL54: 0 | BM54: 0 | BN54: 0 | BO54: 0 | BP54: 0 | BQ54: 0 | BR54: 0 | BS54: 0 | BT54: 0 | BU54: 0 | BV54: 0 | BW54: 0 | BX54: 0 | BY54: 0 | BZ54: 0 | CA54: =J54+P54+V54+AB54+AH54+AN54+AT54+AZ54+BF54+BL54+BR54+BX54 -> 0 | CB54: =K54+Q54+W54+AC54+AI54+AO54+AU54+BA54+BG54+BM54+BS54+BY54 -> 0 | CC54: 0
A55: 4组 | B55: 旧 | C55: 北大荒粮食集团广州仁亿贸易有限公司 | D55: DDGS | E55: 30000 | F55: 0 | G55: 0 | H55: 0 | I55: =SUM(G55:H55) -> 0 | J55: 0 | K55: 0 | L55: =SUM(J55:K55) -> 0 | M55: 0 | N55: 0 | O55: =SUM(M55:N55) -> 0 | P55: 0 | Q55: 0 | R55: =SUM(P55:Q55) -> 0 | S55: 0 | T55: 0 | U55: =SUM(S55:T55) -> 0 | V55: 0 | W55: 0 | X55: =SUM(V55:W55) -> 0 | Y55: 0 | Z55: 0 | AA55: =SUM(Y55:Z55) -> 0 | AB55: 0 | AC55: 0 | AD55: =SUM(AB55:AC55) -> 0 | AE55: 0 | AF55: 0 | AG55: =SUM(AE55:AF55) -> 0 | AH55: 0 | AI55: 0 | AJ55: =SUM(AH55:AI55) -> 0 | AK55: 0 | AL55: 0 | AM55: =SUM(AK55:AL55) -> 0 | AN55: 0 | AO55: 0 | AP55: =SUM(AN55:AO55) -> 0 | AQ55: 0 | AR55: 0 | AS55: =SUM(AQ55:AR55) -> 0 | AT55: 0 | AU55: 0 | AV55: =SUM(AT55:AU55) -> 0 | AW55: 0 | AX55: 0 | AY55: =SUM(AW55:AX55) -> 0 | AZ55: 0 | BA55: 0 | BB55: =SUM(AZ55:BA55) -> 0 | BC55: 0 | BD55: 0 | BE55: =SUM(BC55:BD55) -> 0 | BF55: 0 | BG55: 0 | BH55: =SUM(BF55:BG55) -> 0 | BI55: 0 | BJ55: 0 | BK55: =SUM(BI55:BJ55) -> 0 | BL55: 0 | BM55: 0 | BN55: =SUM(BL55:BM55) -> 0 | BO55: 0 | BP55: 0 | BQ55: =SUM(BO55:BP55) -> 0 | BR55: 0 | BS55: 0 | BT55: =SUM(BR55:BS55) -> 0 | BU55: 0 | BV55: 0 | BW55: =SUM(BU55:BV55) -> 0 | BX55: 0 | BY55: 0 | BZ55: =SUM(BX55:BY55) -> 0 | CA55: =J55+P55+V55+AB55+AH55+AN55+AT55+AZ55+BF55+BL55+BR55+BX55 -> 0 | CB55: 0 | CC55: =SUM(CA55:CB55) -> 0
A56: 4组 | B56: 旧 | C56: 青岛柏尊贸易有限公司 | D56: 米糠 | E56: 20000 | F56: 0 | G56: 0 | H56: 0 | I56: 0 | J56: 0 | K56: 0 | L56: 0 | M56: 0 | N56: 0 | O56: 0 | P56: 0 | Q56: 0 | R56: 0 | S56: 0 | T56: 0 | U56: 0 | V56: 0 | W56: 0 | X56: 0 | Y56: 0 | Z56: 0 | AA56: 0 | AB56: 0 | AC56: 0 | AD56: 0 | AE56: 0 | AF56: 0 | AG56: 0 | AH56: 0 | AI56: 0 | AJ56: 0 | AK56: 0 | AL56: 0 | AM56: 0 | AN56: 0 | AO56: 0 | AP56: 0 | AQ56: 0 | AR56: 0 | AS56: 0 | AT56: 0 | AU56: 0 | AV56: 0 | AW56: 0 | AX56: 0 | AY56: 0 | AZ56: 0 | BA56: 0 | BB56: 0 | BC56: 0 | BD56: 0 | BE56: 0 | BF56: 0 | BG56: 0 | BH56: 0 | BI56: 0 | BJ56: 0 | BK56: 0 | BL56: 0 | BM56: 0 | BN56: 0 | BO56: 0 | BP56: 0 | BQ56: 0 | BR56: 0 | BS56: 0 | BT56: 0 | BU56: 0 | BV56: 0 | BW56: 0 | BX56: 0 | BY56: 0 | BZ56: 0 | CA56: 0 | CB56: 0 | CC56: 0
A57: 4组 | B57: 旧 | C57: 厦门明萱饲料有限公司（启润） | D57: 米糠 | E57: 10000 | F57: 0 | G57: 0 | H57: 0 | I57: 0 | J57: 0 | K57: 0 | L57: 0 | M57: 0 | N57: 0 | O57: 0 | P57: 0 | Q57: 0 | R57: 0 | S57: 0 | T57: 0 | U57: 0 | V57: 0 | W57: 0 | X57: 0 | Y57: 0 | Z57: 0 | AA57: 0 | AB57: 0 | AC57: 0 | AD57: 0 | AE57: 0 | AF57: 0 | AG57: 0 | AH57: 0 | AI57: 0 | AJ57: 0 | AK57: 0 | AL57: 0 | AM57: 0 | AN57: 0 | AO57: 0 | AP57: 0 | AQ57: 0 | AR57: 0 | AS57: 0 | AT57: 0 | AU57: 0 | AV57: 0 | AW57: 0 | AX57: 0 | AY57: 0 | AZ57: 0 | BA57: 0 | BB57: 0 | BC57: 0 | BD57: 0 | BE57: 0 | BF57: 0 | BG57: 0 | BH57: 0 | BI57: 0 | BJ57: 0 | BK57: 0 | BL57: 0 | BM57: 0 | BN57: 0 | BO57: 0 | BP57: 0 | BQ57: 0 | BR57: 0 | BS57: 0 | BT57: 0 | BU57: 0 | BV57: 0 | BW57: 0 | BX57: 0 | BY57: 0 | BZ57: 0 | CA57: 0 | CB57: 0 | CC57: 0
A58: 4组 | B58: 旧 | C58: 厦门明萱饲料有限公司（启润） | D58: 木薯渣粉/颗粒 | E58: 10000 | F58: 0 | G58: 0 | H58: 0 | I58: 0 | J58: 0 | K58: 0 | L58: 0 | M58: 0 | N58: 0 | O58: 0 | P58: 0 | Q58: 0 | R58: 0 | S58: 0 | T58: 0 | U58: 0 | V58: 0 | W58: 0 | X58: 0 | Y58: 0 | Z58: 0 | AA58: 0 | AB58: 0 | AC58: 0 | AD58: 0 | AE58: 0 | AF58: 0 | AG58: 0 | AH58: 0 | AI58: 0 | AJ58: 0 | AK58: 0 | AL58: 0 | AM58: 0 | AN58: 0 | AO58: 0 | AP58: 0 | AQ58: 0 | AR58: 0 | AS58: 0 | AT58: 0 | AU58: 0 | AV58: 0 | AW58: 0 | AX58: 0 | AY58: 0 | AZ58: 0 | BA58: 0 | BB58: 0 | BC58: 0 | BD58: 0 | BE58: 0 | BF58: 0 | BG58: 0 | BH58: 0 | BI58: 0 | BJ58: 0 | BK58: 0 | BL58: 0 | BM58: 0 | BN58: 0 | BO58: 0 | BP58: 0 | BQ58: 0 | BR58: 0 | BS58: 0 | BT58: 0 | BU58: 0 | BV58: 0 | BW58: 0 | BX58: 0 | BY58: 0 | BZ58: 0 | CA58: 0 | CB58: 0 | CC58: 0
A59: 4组 | B59: 旧 | C59: 东莞顶志食品有限公司 | D59: 芝麻/芝麻油 | E59: 6000 | F59: 0 | G59: 0 | H59: 0 | I59: 0 | J59: 0 | K59: 0 | L59: 0 | M59: 0 | N59: 0 | O59: 0 | P59: 0 | Q59: 0 | R59: 0 | S59: 0 | T59: 0 | U59: 0 | V59: 0 | W59: 0 | X59: 0 | Y59: 0 | Z59: 0 | AA59: 0 | AB59: 0 | AC59: 0 | AD59: 0 | AE59: 0 | AF59: 0 | AG59: 0 | AH59: 0 | AI59: 0 | AJ59: 0 | AK59: 0 | AL59: 0 | AM59: 0 | AN59: 0 | AO59: 0 | AP59: 0 | AQ59: 0 | AR59: 0 | AS59: 0 | AT59: 0 | AU59: 0 | AV59: 0 | AW59: 0 | AX59: 0 | AY59: 0 | AZ59: 0 | BA59: 0 | BB59: 0 | BC59: 0 | BD59: 0 | BE59: 0 | BF59: 0 | BG59: 0 | BH59: 0 | BI59: 0 | BJ59: 0 | BK59: 0 | BL59: 0 | BM59: 0 | BN59: 0 | BO59: 0 | BP59: 0 | BQ59: 0 | BR59: 0 | BS59: 0 | BT59: 0 | BU59: 0 | BV59: 0 | BW59: 0 | BX59: 0 | BY59: 0 | BZ59: 0 | CA59: 0 | CB59: 0 | CC59: 0
A60: 4组 | B60: 旧 | C60: 中粮新沙粮油工业（东莞）有限公司 | D60: 大豆 | E60: 0 | F60: 400000 | G60: 0 | H60: 0 | I60: 0 | J60: 0 | K60: 0 | L60: 0 | M60: 0 | N60: 0 | O60: 0 | P60: 0 | Q60: 0 | R60: 0 | S60: 0 | T60: 0 | U60: 0 | V60: 0 | W60: 0 | X60: 0 | Y60: 0 | Z60: 0 | AA60: 0 | AB60: 0 | AC60: 0 | AD60: 0 | AE60: 0 | AF60: 0 | AG60: 0 | AH60: 0 | AI60: 0 | AJ60: 0 | AK60: 0 | AL60: 0 | AM60: 0 | AN60: 0 | AO60: 0 | AP60: 0 | AQ60: 0 | AR60: 0 | AS60: 0 | AT60: 0 | AU60: 0 | AV60: 0 | AW60: 0 | AX60: 0 | AY60: 0 | AZ60: 0 | BA60: 0 | BB60: 0 | BC60: 0 | BD60: 0 | BE60: 0 | BF60: 0 | BG60: 0 | BH60: 0 | BI60: 0 | BJ60: 0 | BK60: 0 | BL60: 0 | BM60: 0 | BN60: 0 | BO60: 0 | BP60: 0 | BQ60: 0 | BR60: 0 | BS60: 0 | BT60: 0 | BU60: 0 | BV60: 0 | BW60: 0 | BX60: 0 | BY60: 0 | BZ60: 0 | CA60: 0 | CB60: 0 | CC60: 0
A61: 4组 | B61: 新 | C61: 广州市骏宝饲料有限公司 | D61: DDGS | E61: 5000 | F61: 0 | G61: 0 | H61: 0 | I61: 0 | J61: 0 | K61: 0 | L61: 0 | M61: 0 | N61: 0 | O61: 0 | P61: 0 | Q61: 0 | R61: 0 | S61: 0 | T61: 0 | U61: 0 | V61: 0 | W61: 0 | X61: 0 | Y61: 0 | Z61: 0 | AA61: 0 | AB61: 0 | AC61: 0 | AD61: 0 | AE61: 0 | AF61: 0 | AG61: 0 | AH61: 0 | AI61: 0 | AJ61: 0 | AK61: 0 | AL61: 0 | AM61: 0 | AN61: 0 | AO61: 0 | AP61: 0 | AQ61: 0 | AR61: 0 | AS61: 0 | AT61: 0 | AU61: 0 | AV61: 0 | AW61: 0 | AX61: 0 | AY61: 0 | AZ61: 0 | BA61: 0 | BB61: 0 | BC61: 0 | BD61: 0 | BE61: 0 | BF61: 0 | BG61: 0 | BH61: 0 | BI61: 0 | BJ61: 0 | BK61: 0 | BL61: 0 | BM61: 0 | BN61: 0 | BO61: 0 | BP61: 0 | BQ61: 0 | BR61: 0 | BS61: 0 | BT61: 0 | BU61: 0 | BV61: 0 | BW61: 0 | BX61: 0 | BY61: 0 | BZ61: 0 | CA61: =J61+P61+V61+AB61+AH61+AN61+AT61+AZ61+BF61+BL61+BR61+BX61 -> 0 | CB61: =K61+Q61+W61+AC61+AI61+AO61+AU61+BA61+BG61+BM61+BS61+BY61 -> 0 | CC61: 0
A62: 5组 | B62: 旧 | C62: 厦门建发原材料贸易有限公司 | D62: 高粱 | E62: 0 | F62: 800000 | G62: 0 | H62: 0 | I62: 0 | J62: 0 | K62: 0 | L62: =SUM(J62:K62) -> 0 | M62: 0 | N62: 0 | O62: =SUM(M62:N62) -> 0 | P62: 0 | Q62: 0 | R62: =SUM(P62:Q62) -> 0 | S62: 0 | T62: 0 | U62: =SUM(S62:T62) -> 0 | V62: 0 | W62: 0 | X62: =SUM(V62:W62) -> 0 | Y62: 0 | Z62: 0 | AA62: =SUM(Y62:Z62) -> 0 | AB62: 0 | AC62: 0 | AD62: =SUM(AB62:AC62) -> 0 | AE62: 0 | AF62: 0 | AG62: =SUM(AE62:AF62) -> 0 | AH62: 0 | AI62: 0 | AJ62: =SUM(AH62:AI62) -> 0 | AK62: 0 | AL62: 0 | AM62: =SUM(AK62:AL62) -> 0 | AN62: 0 | AO62: 0 | AP62: =SUM(AN62:AO62) -> 0 | AQ62: 0 | AR62: 0 | AS62: =SUM(AQ62:AR62) -> 0 | AT62: 0 | AU62: 0 | AV62: =SUM(AT62:AU62) -> 0 | AW62: 0 | AX62: 0 | AY62: =SUM(AW62:AX62) -> 0 | AZ62: 0 | BA62: 0 | BB62: =SUM(AZ62:BA62) -> 0 | BC62: 0 | BD62: 0 | BE62: =SUM(BC62:BD62) -> 0 | BF62: 0 | BG62: 0 | BH62: =SUM(BF62:BG62) -> 0 | BI62: 0 | BJ62: 0 | BK62: =SUM(BI62:BJ62) -> 0 | BL62: 0 | BM62: 0 | BN62: =SUM(BL62:BM62) -> 0 | BO62: 0 | BP62: 0 | BQ62: =SUM(BO62:BP62) -> 0 | BR62: 0 | BS62: 0 | BT62: =SUM(BR62:BS62) -> 0 | BU62: 0 | BV62: 0 | BW62: =SUM(BU62:BV62) -> 0 | BX62: 0 | BY62: 0 | BZ62: =SUM(BX62:BY62) -> 0 | CA62: =J62+P62+V62+AB62+AH62+AN62+AT62+AZ62+BF62+BL62+BR62+BX62 -> 0 | CB62: =K62+Q62+W62+AC62+AI62+AO62+AU62+BA62+BG62+BM62+BS62+BY62 -> 0 | CC62: =SUM(CA62:CB62) -> 0
A63: 5组 | B63: 旧 | C63: 厦门建发原材料贸易有限公司 | D63: 菜粕 | E63: 0 | F63: 100000 | G63: 0 | H63: 0 | I63: 0 | J63: 0 | K63: 0 | L63: 0 | M63: 0 | N63: 0 | O63: 0 | P63: 0 | Q63: 0 | R63: 0 | S63: 0 | T63: 0 | U63: 0 | V63: 0 | W63: 0 | X63: 0 | Y63: 0 | Z63: 0 | AA63: 0 | AB63: 0 | AC63: 0 | AD63: 0 | AE63: 0 | AF63: 0 | AG63: 0 | AH63: 0 | AI63: 0 | AJ63: 0 | AK63: 0 | AL63: 0 | AM63: 0 | AN63: 0 | AO63: 0 | AP63: 0 | AQ63: 0 | AR63: 0 | AS63: 0 | AT63: 0 | AU63: 0 | AV63: 0 | AW63: 0 | AX63: 0 | AY63: 0 | AZ63: 0 | BA63: 0 | BB63: 0 | BC63: 0 | BD63: 0 | BE63: 0 | BF63: 0 | BG63: 0 | BH63: 0 | BI63: 0 | BJ63: 0 | BK63: 0 | BL63: 0 | BM63: 0 | BN63: 0 | BO63: 0 | BP63: 0 | BQ63: 0 | BR63: 0 | BS63: 0 | BT63: 0 | BU63: 0 | BV63: 0 | BW63: 0 | BX63: 0 | BY63: 0 | BZ63: 0 | CA63: 0 | CB63: 0 | CC63: 0
A64: 5组 | B64: 旧 | C64: 厦门建发原材料贸易有限公司 | D64: DDGS | E64: 10000 | F64: 0 | G64: 0 | H64: 0 | I64: 0 | J64: 0 | K64: 0 | L64: 0 | M64: 0 | N64: 0 | O64: 0 | P64: 0 | Q64: 0 | R64: 0 | S64: 0 | T64: 0 | U64: 0 | V64: 0 | W64: 0 | X64: 0 | Y64: 0 | Z64: 0 | AA64: 0 | AB64: 0 | AC64: 0 | AD64: 0 | AE64: 0 | AF64: 0 | AG64: 0 | AH64: 0 | AI64: 0 | AJ64: 0 | AK64: 0 | AL64: 0 | AM64: 0 | AN64: 0 | AO64: 0 | AP64: 0 | AQ64: 0 | AR64: 0 | AS64: 0 | AT64: 0 | AU64: 0 | AV64: 0 | AW64: 0 | AX64: 0 | AY64: 0 | AZ64: 0 | BA64: 0 | BB64: 0 | BC64: 0 | BD64: 0 | BE64: 0 | BF64: 0 | BG64: 0 | BH64: 0 | BI64: 0 | BJ64: 0 | BK64: 0 | BL64: 0 | BM64: 0 | BN64: 0 | BO64: 0 | BP64: 0 | BQ64: 0 | BR64: 0 | BS64: 0 | BT64: 0 | BU64: 0 | BV64: 0 | BW64: 0 | BX64: 0 | BY64: 0 | BZ64: 0 | CA64: 0 | CB64: 0 | CC64: 0
A65: 5组 | B65: 旧 | C65: 厦门建发原材料贸易有限公司 | D65: 玉米 | E65: 0 | F65: 100000 | G65: 0 | H65: 0 | I65: 0 | J65: 0 | K65: 0 | L65: 0 | M65: 0 | N65: 0 | O65: 0 | P65: 0 | Q65: 0 | R65: 0 | S65: 0 | T65: 0 | U65: 0 | V65: 0 | W65: 0 | X65: 0 | Y65: 0 | Z65: 0 | AA65: 0 | AB65: 0 | AC65: 0 | AD65: 0 | AE65: 0 | AF65: 0 | AG65: 0 | AH65: 0 | AI65: 0 | AJ65: 0 | AK65: 0 | AL65: 0 | AM65: 0 | AN65: 0 | AO65: 0 | AP65: 0 | AQ65: 0 | AR65: 0 | AS65: 0 | AT65: 0 | AU65: 0 | AV65: 0 | AW65: 0 | AX65: 0 | AY65: 0 | AZ65: 0 | BA65: 0 | BB65: 0 | BC65: 0 | BD65: 0 | BE65: 0 | BF65: 0 | BG65: 0 | BH65: 0 | BI65: 0 | BJ65: 0 | BK65: 0 | BL65: 0 | BM65: 0 | BN65: 0 | BO65: 0 | BP65: 0 | BQ65: 0 | BR65: 0 | BS65: 0 | BT65: 0 | BU65: 0 | BV65: 0 | BW65: 0 | BX65: 0 | BY65: 0 | BZ65: 0 | CA65: 0 | CB65: 0 | CC65: 0
A66: 5组 | B66: 旧 | C66: 厦门建发原材料贸易有限公司 | D66: 鱼粉 | E66: 20000 | F66: 0 | G66: 0 | H66: 0 | I66: 0 | J66: 0 | K66: 0 | L66: 0 | M66: 0 | N66: 0 | O66: 0 | P66: 0 | Q66: 0 | R66: 0 | S66: 0 | T66: 0 | U66: 0 | V66: 0 | W66: 0 | X66: 0 | Y66: 0 | Z66: 0 | AA66: 0 | AB66: 0 | AC66: 0 | AD66: 0 | AE66: 0 | AF66: 0 | AG66: 0 | AH66: 0 | AI66: 0 | AJ66: 0 | AK66: 0 | AL66: 0 | AM66: 0 | AN66: 0 | AO66: 0 | AP66: 0 | AQ66: 0 | AR66: 0 | AS66: 0 | AT66: 0 | AU66: 0 | AV66: 0 | AW66: 0 | AX66: 0 | AY66: 0 | AZ66: 0 | BA66: 0 | BB66: 0 | BC66: 0 | BD66: 0 | BE66: 0 | BF66: 0 | BG66: 0 | BH66: 0 | BI66: 0 | BJ66: 0 | BK66: 0 | BL66: 0 | BM66: 0 | BN66: 0 | BO66: 0 | BP66: 0 | BQ66: 0 | BR66: 0 | BS66: 0 | BT66: 0 | BU66: 0 | BV66: 0 | BW66: 0 | BX66: 0 | BY66: 0 | BZ66: 0 | CA66: 0 | CB66: 0 | CC66: 0
A67: 5组 | B67: 旧 | C67: 厦门建发农产品有限公司 | D67: 高粱 | E67: 0 | F67: 300000 | G67: 0 | H67: 0 | I67: 0 | J67: 0 | K67: 0 | L67: 0 | M67: 0 | N67: 0 | O67: 0 | P67: 0 | Q67: 0 | R67: 0 | S67: 0 | T67: 0 | U67: 0 | V67: 0 | W67: 0 | X67: 0 | Y67: 0 | Z67: 0 | AA67: 0 | AB67: 0 | AC67: 0 | AD67: 0 | AE67: 0 | AF67: 0 | AG67: 0 | AH67: 0 | AI67: 0 | AJ67: 0 | AK67: 0 | AL67: 0 | AM67: 0 | AN67: 0 | AO67: 0 | AP67: 0 | AQ67: 0 | AR67: 0 | AS67: 0 | AT67: 0 | AU67: 0 | AV67: 0 | AW67: 0 | AX67: 0 | AY67: 0 | AZ67: 0 | BA67: 0 | BB67: 0 | BC67: 0 | BD67: 0 | BE67: 0 | BF67: 0 | BG67: 0 | BH67: 0 | BI67: 0 | BJ67: 0 | BK67: 0 | BL67: 0 | BM67: 0 | BN67: 0 | BO67: 0 | BP67: 0 | BQ67: 0 | BR67: 0 | BS67: 0 | BT67: 0 | BU67: 0 | BV67: 0 | BW67: 0 | BX67: 0 | BY67: 0 | BZ67: 0 | CA67: 0 | CB67: 0 | CC67: 0
A68: 5组 | B68: 新 | C68: 上海延华生物科技股份有限公司 | D68: 苜蓿草 | E68: 15000 | F68: 0 | G68: 0 | H68: 0 | I68: 0 | J68: 0 | K68: 0 | L68: 0 | M68: 0 | N68: 0 | O68: 0 | P68: 0 | Q68: 0 | R68: 0 | S68: 0 | T68: 0 | U68: 0 | V68: 0 | W68: 0 | X68: 0 | Y68: 0 | Z68: 0 | AA68: 0 | AB68: 0 | AC68: 0 | AD68: 0 | AE68: 0 | AF68: 0 | AG68: 0 | AH68: 0 | AI68: 0 | AJ68: 0 | AK68: 0 | AL68: 0 | AM68: 0 | AN68: 0 | AO68: 0 | AP68: 0 | AQ68: 0 | AR68: 0 | AS68: 0 | AT68: 0 | AU68: 0 | AV68: 0 | AW68: 0 | AX68: 0 | AY68: 0 | AZ68: 0 | BA68: 0 | BB68: 0 | BC68: 0 | BD68: 0 | BE68: 0 | BF68: 0 | BG68: 0 | BH68: 0 | BI68: 0 | BJ68: 0 | BK68: 0 | BL68: 0 | BM68: 0 | BN68: 0 | BO68: 0 | BP68: 0 | BQ68: 0 | BR68: 0 | BS68: 0 | BT68: 0 | BU68: 0 | BV68: 0 | BW68: 0 | BX68: 0 | BY68: 0 | BZ68: 0 | CA68: 0 | CB68: 0 | CC68: 0
A69: 5组 | B69: 新 | C69: 山东天普阳光饲料科技有限公司 | D69: DDGS | E69: 10000 | F69: 0 | G69: 0 | H69: 0 | I69: 0 | J69: 0 | K69: 0 | L69: 0 | M69: 0 | N69: 0 | O69: 0 | P69: 0 | Q69: 0 | R69: 0 | S69: 0 | T69: 0 | U69: 0 | V69: 0 | W69: 0 | X69: 0 | Y69: 0 | Z69: 0 | AA69: 0 | AB69: 0 | AC69: 0 | AD69: 0 | AE69: 0 | AF69: 0 | AG69: 0 | AH69: 0 | AI69: 0 | AJ69: 0 | AK69: 0 | AL69: 0 | AM69: 0 | AN69: 0 | AO69: 0 | AP69: 0 | AQ69: 0 | AR69: 0 | AS69: 0 | AT69: 0 | AU69: 0 | AV69: 0 | AW69: 0 | AX69: 0 | AY69: 0 | AZ69: 0 | BA69: 0 | BB69: 0 | BC69: 0 | BD69: 0 | BE69: 0 | BF69: 0 | BG69: 0 | BH69: 0 | BI69: 0 | BJ69: 0 | BK69: 0 | BL69: 0 | BM69: 0 | BN69: 0 | BO69: 0 | BP69: 0 | BQ69: 0 | BR69: 0 | BS69: 0 | BT69: 0 | BU69: 0 | BV69: 0 | BW69: 0 | BX69: 0 | BY69: 0 | BZ69: 0 | CA69: 0 | CB69: 0 | CC69: 0
A70: 5组 | B70: 新 | C70: 兴安奶牛 | D70: 苜蓿草 | E70: 12000 | F70: 0 | G70: 0 | H70: 0 | I70: 0 | J70: 0 | K70: 0 | L70: 0 | M70: 0 | N70: 0 | O70: 0 | P70: 0 | Q70: 0 | R70: 0 | S70: 0 | T70: 0 | U70: 0 | V70: 0 | W70: 0 | X70: 0 | Y70: 0 | Z70: 0 | AA70: 0 | AB70: 0 | AC70: 0 | AD70: 0 | AE70: 0 | AF70: 0 | AG70: 0 | AH70: 0 | AI70: 0 | AJ70: 0 | AK70: 0 | AL70: 0 | AM70: 0 | AN70: 0 | AO70: 0 | AP70: 0 | AQ70: 0 | AR70: 0 | AS70: 0 | AT70: 0 | AU70: 0 | AV70: 0 | AW70: 0 | AX70: 0 | AY70: 0 | AZ70: 0 | BA70: 0 | BB70: 0 | BC70: 0 | BD70: 0 | BE70: 0 | BF70: 0 | BG70: 0 | BH70: 0 | BI70: 0 | BJ70: 0 | BK70: 0 | BL70: 0 | BM70: 0 | BN70: 0 | BO70: 0 | BP70: 0 | BQ70: 0 | BR70: 0 | BS70: 0 | BT70: 0 | BU70: 0 | BV70: 0 | BW70: 0 | BX70: 0 | BY70: 0 | BZ70: 0 | CA70: 0 | CB70: 0 | CC70: 0
B71: 新 | C71: 上海光明米业有限公司 | D71: 大米 | E71: 30000 | F71: 0 | G71: 0 | H71: 0 | I71: 0 | J71: 0 | K71: 0 | L71: 0 | M71: 0 | N71: 0 | O71: 0 | P71: 0 | Q71: 0 | R71: 0 | S71: 0 | T71: 0 | U71: 0 | V71: 0 | W71: 0 | X71: 0 | Y71: 0 | Z71: 0 | AA71: 0 | AB71: 0 | AC71: 0 | AD71: 0 | AE71: 0 | AF71: 0 | AG71: 0 | AH71: 0 | AI71: 0 | AJ71: 0 | AK71: 0 | AL71: 0 | AM71: 0 | AN71: 0 | AO71: 0 | AP71: 0 | AQ71: 0 | AR71: 0 | AS71: 0 | AT71: 0 | AU71: 0 | AV71: 0 | AW71: 0 | AX71: 0 | AY71: 0 | AZ71: 0 | BA71: 0 | BB71: 0 | BC71: 0 | BD71: 0 | BE71: 0 | BF71: 0 | BG71: 0 | BH71: 0 | BI71: 0 | BJ71: 0 | BK71: 0 | BL71: 0 | BM71: 0 | BN71: 0 | BO71: 0 | BP71: 0 | BQ71: 0 | BR71: 0 | BS71: 0 | BT71: 0 | BU71: 0 | BV71: 0 | BW71: 0 | BX71: 0 | BY71: 0 | BZ71: 0 | CA71: 0 | CB71: 0 | CC71: 0
B72: 新 | C72: 广东粤海集团 | D72: 鱼粉 | E72: 10000 | F72: 0 | G72: 0 | H72: 0 | I72: 0 | J72: 0 | K72: 0 | L72: 0 | M72: 0 | N72: 0 | O72: 0 | P72: 0 | Q72: 0 | R72: 0 | S72: 0 | T72: 0 | U72: 0 | V72: 0 | W72: 0 | X72: 0 | Y72: 0 | Z72: 0 | AA72: 0 | AB72: 0 | AC72: 0 | AD72: 0 | AE72: 0 | AF72: 0 | AG72: 0 | AH72: 0 | AI72: 0 | AJ72: 0 | AK72: 0 | AL72: 0 | AM72: 0 | AN72: 0 | AO72: 0 | AP72: 0 | AQ72: 0 | AR72: 0 | AS72: 0 | AT72: 0 | AU72: 0 | AV72: 0 | AW72: 0 | AX72: 0 | AY72: 0 | AZ72: 0 | BA72: 0 | BB72: 0 | BC72: 0 | BD72: 0 | BE72: 0 | BF72: 0 | BG72: 0 | BH72: 0 | BI72: 0 | BJ72: 0 | BK72: 0 | BL72: 0 | BM72: 0 | BN72: 0 | BO72: 0 | BP72: 0 | BQ72: 0 | BR72: 0 | BS72: 0 | BT72: 0 | BU72: 0 | BV72: 0 | BW72: 0 | BX72: 0 | BY72: 0 | BZ72: 0 | CA72: 0 | CB72: 0 | CC72: 0
B73: 新 | C73: 广州美豆 | D73: 大豆 | E73: 50000 | F73: 0 | G73: 0 | H73: 0 | I73: 0 | J73: 0 | K73: 0 | L73: 0 | M73: 0 | N73: 0 | O73: 0 | P73: 0 | Q73: 0 | R73: 0 | S73: 0 | T73: 0 | U73: 0 | V73: 0 | W73: 0 | X73: 0 | Y73: 0 | Z73: 0 | AA73: 0 | AB73: 0 | AC73: 0 | AD73: 0 | AE73: 0 | AF73: 0 | AG73: 0 | AH73: 0 | AI73: 0 | AJ73: 0 | AK73: 0 | AL73: 0 | AM73: 0 | AN73: 0 | AO73: 0 | AP73: 0 | AQ73: 0 | AR73: 0 | AS73: 0 | AT73: 0 | AU73: 0 | AV73: 0 | AW73: 0 | AX73: 0 | AY73: 0 | AZ73: 0 | BA73: 0 | BB73: 0 | BC73: 0 | BD73: 0 | BE73: 0 | BF73: 0 | BG73: 0 | BH73: 0 | BI73: 0 | BJ73: 0 | BK73: 0 | BL73: 0 | BM73: 0 | BN73: 0 | BO73: 0 | BP73: 0 | BQ73: 0 | BR73: 0 | BS73: 0 | BT73: 0 | BU73: 0 | BV73: 0 | BW73: 0 | BX73: 0 | BY73: 0 | BZ73: 0 | CA73: 0 | CB73: 0 | CC73: 0
E74: 0 | F74: 0 | G74: 0 | H74: 0 | I74: 0 | J74: 0 | K74: 0 | L74: 0 | M74: 0 | N74: 0 | O74: 0 | P74: 0 | Q74: 0 | R74: 0 | S74: 0 | T74: 0 | U74: 0 | V74: 0 | W74: 0 | X74: 0 | Y74: 0 | Z74: 0 | AA74: 0 | AB74: 0 | AC74: 0 | AD74: 0 | AE74: 0 | AF74: 0 | AG74: 0 | AH74: 0 | AI74: 0 | AJ74: 0 | AK74: 0 | AL74: 0 | AM74: 0 | AN74: 0 | AO74: 0 | AP74: 0 | AQ74: 0 | AR74: 0 | AS74: 0 | AT74: 0 | AU74: 0 | AV74: 0 | AW74: 0 | AX74: 0 | AY74: 0 | AZ74: 0 | BA74: 0 | BB74: 0 | BC74: 0 | BD74: 0 | BE74: 0 | BF74: 0 | BG74: 0 | BH74: 0 | BI74: 0 | BJ74: 0 | BK74: 0 | BL74: 0 | BM74: 0 | BN74: 0 | BO74: 0 | BP74: 0 | BQ74: 0 | BR74: 0 | BS74: 0 | BT74: 0 | BU74: 0 | BV74: 0 | BW74: 0 | BX74: 0 | BY74: 0 | BZ74: 0 | CA74: 0 | CB74: 0 | CC74: 0
E75: 0 | F75: 0 | G75: 0 | H75: 0 | I75: =SUM(G75:H75) -> 0 | J75: 0 | K75: 0 | L75: =SUM(J75:K75) -> 0 | M75: 0 | N75: 0 | O75: =SUM(M75:N75) -> 0 | P75: 0 | Q75: 0 | R75: =SUM(P75:Q75) -> 0 | S75: 0 | T75: 0 | U75: =SUM(S75:T75) -> 0 | V75: 0 | W75: 0 | X75: =SUM(V75:W75) -> 0 | Y75: 0 | Z75: 0 | AA75: =SUM(Y75:Z75) -> 0 | AB75: 0 | AC75: 0 | AD75: =SUM(AB75:AC75) -> 0 | AE75: 0 | AF75: 0 | AG75: =SUM(AE75:AF75) -> 0 | AH75: 0 | AI75: 0 | AJ75: =SUM(AH75:AI75) -> 0 | AK75: 0 | AL75: 0 | AM75: =SUM(AK75:AL75) -> 0 | AN75: 0 | AO75: 0 | AP75: =SUM(AN75:AO75) -> 0 | AQ75: 0 | AR75: 0 | AS75: =SUM(AQ75:AR75) -> 0 | AT75: 0 | AU75: 0 | AV75: =SUM(AT75:AU75) -> 0 | AW75: 0 | AX75: 0 | AY75: =SUM(AW75:AX75) -> 0 | AZ75: 0 | BA75: 0 | BB75: =SUM(AZ75:BA75) -> 0 | BC75: 0 | BD75: 0 | BE75: =SUM(BC75:BD75) -> 0 | BF75: 0 | BG75: 0 | BH75: =SUM(BF75:BG75) -> 0 | BI75: 0 | BJ75: 0 | BK75: =SUM(BI75:BJ75) -> 0 | BL75: 0 | BM75: 0 | BN75: =SUM(BL75:BM75) -> 0 | BO75: 0 | BP75: 0 | BQ75: =SUM(BO75:BP75) -> 0 | BR75: 0 | BS75: 0 | BT75: =SUM(BR75:BS75) -> 0 | BU75: 0 | BV75: 0 | BW75: =SUM(BU75:BV75) -> 0 | BX75: 0 | BY75: 0 | BZ75: =SUM(BX75:BY75) -> 0 | CA75: =J75+P75+V75+AB75+AH75+AN75+AT75+AZ75+BF75+BL75+BR75+BX75 -> 0 | CB75: 0 | CC75: =SUM(CA75:CB75) -> 0
E76: 0 | F76: 0 | G76: 0 | H76: 0 | I76: 0 | J76: 0 | K76: 0 | L76: 0 | M76: 0 | N76: 0 | O76: 0 | P76: 0 | Q76: 0 | R76: 0 | S76: 0 | T76: 0 | U76: 0 | V76: 0 | W76: 0 | X76: 0 | Y76: 0 | Z76: 0 | AA76: 0 | AB76: 0 | AC76: 0 | AD76: 0 | AE76: 0 | AF76: 0 | AG76: 0 | AH76: 0 | AI76: 0 | AJ76: 0 | AK76: 0 | AL76: 0 | AM76: 0 | AN76: 0 | AO76: 0 | AP76: 0 | AQ76: 0 | AR76: 0 | AS76: 0 | AT76: 0 | AU76: 0 | AV76: 0 | AW76: 0 | AX76: 0 | AY76: 0 | AZ76: 0 | BA76: 0 | BB76: 0 | BC76: 0 | BD76: 0 | BE76: 0 | BF76: 0 | BG76: 0 | BH76: 0 | BI76: 0 | BJ76: 0 | BK76: 0 | BL76: 0 | BM76: 0 | BN76: 0 | BO76: 0 | BP76: 0 | BQ76: 0 | BR76: 0 | BS76: 0 | BT76: 0 | BU76: 0 | BV76: 0 | BW76: 0 | BX76: 0 | BY76: 0 | BZ76: 0 | CA76: =J76+P76+V76+AB76+AH76+AN76+AT76+AZ76+BF76+BL76+BR76+BX76 -> 0 | CB76: =K76+Q76+W76+AC76+AI76+AO76+AU76+BA76+BG76+BM76+BS76+BY76 -> 0 | CC76: 0
E77: 0 | F77: 0 | G77: 0 | H77: 0 | I77: 0 | J77: 0 | K77: 0 | L77: 0 | M77: 0 | N77: 0 | O77: 0 | P77: 0 | Q77: 0 | R77: 0 | S77: 0 | T77: 0 | U77: 0 | V77: 0 | W77: 0 | X77: 0 | Y77: 0 | Z77: 0 | AA77: 0 | AB77: 0 | AC77: 0 | AD77: 0 | AE77: 0 | AF77: 0 | AG77: 0 | AH77: 0 | AI77: 0 | AJ77: 0 | AK77: 0 | AL77: 0 | AM77: 0 | AN77: 0 | AO77: 0 | AP77: 0 | AQ77: 0 | AR77: 0 | AS77: 0 | AT77: 0 | AU77: 0 | AV77: 0 | AW77: 0 | AX77: 0 | AY77: 0 | AZ77: 0 | BA77: 0 | BB77: 0 | BC77: 0 | BD77: 0 | BE77: 0 | BF77: 0 | BG77: 0 | BH77: 0 | BI77: 0 | BJ77: 0 | BK77: 0 | BL77: 0 | BM77: 0 | BN77: 0 | BO77: 0 | BP77: 0 | BQ77: 0 | BR77: 0 | BS77: 0 | BT77: 0 | BU77: 0 | BV77: 0 | BW77: 0 | BX77: 0 | BY77: 0 | BZ77: 0 | CA77: =J77+P77+V77+AB77+AH77+AN77+AT77+AZ77+BF77+BL77+BR77+BX77 -> 0 | CB77: =K77+Q77+W77+AC77+AI77+AO77+AU77+BA77+BG77+BM77+BS77+BY77 -> 0 | CC77: 0
E78: 0 | F78: 0 | G78: 0 | H78: 0 | I78: 0 | J78: 0 | K78: 0 | L78: 0 | M78: 0 | N78: 0 | O78: 0 | P78: 0 | Q78: 0 | R78: 0 | S78: 0 | T78: 0 | U78: 0 | V78: 0 | W78: 0 | X78: 0 | Y78: 0 | Z78: 0 | AA78: 0 | AB78: 0 | AC78: 0 | AD78: 0 | AE78: 0 | AF78: 0 | AG78: 0 | AH78: 0 | AI78: 0 | AJ78: 0 | AK78: 0 | AL78: 0 | AM78: 0 | AN78: 0 | AO78: 0 | AP78: 0 | AQ78: 0 | AR78: 0 | AS78: 0 | AT78: 0 | AU78: 0 | AV78: 0 | AW78: 0 | AX78: 0 | AY78: 0 | AZ78: 0 | BA78: 0 | BB78: 0 | BC78: 0 | BD78: 0 | BE78: 0 | BF78: 0 | BG78: 0 | BH78: 0 | BI78: 0 | BJ78: 0 | BK78: 0 | BL78: 0 | BM78: 0 | BN78: 0 | BO78: 0 | BP78: 0 | BQ78: 0 | BR78: 0 | BS78: 0 | BT78: 0 | BU78: 0 | BV78: 0 | BW78: 0 | BX78: 0 | BY78: 0 | BZ78: 0 | CA78: 0 | CB78: 0 | CC78: 0
E79: 0 | F79: 0 | G79: 0 | H79: 0 | I79: 0 | J79: 0 | K79: 0 | L79: 0 | M79: 0 | N79: 0 | O79: 0 | P79: 0 | Q79: 0 | R79: 0 | S79: 0 | T79: 0 | U79: 0 | V79: 0 | W79: 0 | X79: 0 | Y79: 0 | Z79: 0 | AA79: 0 | AB79: 0 | AC79: 0 | AD79: 0 | AE79: 0 | AF79: 0 | AG79: 0 | AH79: 0 | AI79: 0 | AJ79: 0 | AK79: 0 | AL79: 0 | AM79: 0 | AN79: 0 | AO79: 0 | AP79: 0 | AQ79: 0 | AR79: 0 | AS79: 0 | AT79: 0 | AU79: 0 | AV79: 0 | AW79: 0 | AX79: 0 | AY79: 0 | AZ79: 0 | BA79: 0 | BB79: 0 | BC79: 0 | BD79: 0 | BE79: 0 | BF79: 0 | BG79: 0 | BH79: 0 | BI79: 0 | BJ79: 0 | BK79: 0 | BL79: 0 | BM79: 0 | BN79: 0 | BO79: 0 | BP79: 0 | BQ79: 0 | BR79: 0 | BS79: 0 | BT79: 0 | BU79: 0 | BV79: 0 | BW79: 0 | BX79: 0 | BY79: 0 | BZ79: 0 | CA79: 0 | CB79: 0 | CC79: 0
E80: 0 | F80: 0 | G80: 0 | H80: 0 | I80: 0 | J80: 0 | K80: 0 | L80: 0 | M80: 0 | N80: 0 | O80: 0 | P80: 0 | Q80: 0 | R80: 0 | S80: 0 | T80: 0 | U80: 0 | V80: 0 | W80: 0 | X80: 0 | Y80: 0 | Z80: 0 | AA80: 0 | AB80: 0 | AC80: 0 | AD80: 0 | AE80: 0 | AF80: 0 | AG80: 0 | AH80: 0 | AI80: 0 | AJ80: 0 | AK80: 0 | AL80: 0 | AM80: 0 | AN80: 0 | AO80: 0 | AP80: 0 | AQ80: 0 | AR80: 0 | AS80: 0 | AT80: 0 | AU80: 0 | AV80: 0 | AW80: 0 | AX80: 0 | AY80: 0 | AZ80: 0 | BA80: 0 | BB80: 0 | BC80: 0 | BD80: 0 | BE80: 0 | BF80: 0 | BG80: 0 | BH80: 0 | BI80: 0 | BJ80: 0 | BK80: 0 | BL80: 0 | BM80: 0 | BN80: 0 | BO80: 0 | BP80: 0 | BQ80: 0 | BR80: 0 | BS80: 0 | BT80: 0 | BU80: 0 | BV80: 0 | BW80: 0 | BX80: 0 | BY80: 0 | BZ80: 0 | CA80: 0 | CB80: 0 | CC80: 0
E81: 0 | F81: 0 | G81: 0 | H81: 0 | I81: 0 | J81: 0 | K81: 0 | L81: 0 | M81: 0 | N81: 0 | O81: 0 | P81: 0 | Q81: 0 | R81: 0 | S81: 0 | T81: 0 | U81: 0 | V81: 0 | W81: 0 | X81: 0 | Y81: 0 | Z81: 0 | AA81: 0 | AB81: 0 | AC81: 0 | AD81: 0 | AE81: 0 | AF81: 0 | AG81: 0 | AH81: 0 | AI81: 0 | AJ81: 0 | AK81: 0 | AL81: 0 | AM81: 0 | AN81: 0 | AO81: 0 | AP81: 0 | AQ81: 0 | AR81: 0 | AS81: 0 | AT81: 0 | AU81: 0 | AV81: 0 | AW81: 0 | AX81: 0 | AY81: 0 | AZ81: 0 | BA81: 0 | BB81: 0 | BC81: 0 | BD81: 0 | BE81: 0 | BF81: 0 | BG81: 0 | BH81: 0 | BI81: 0 | BJ81: 0 | BK81: 0 | BL81: 0 | BM81: 0 | BN81: 0 | BO81: 0 | BP81: 0 | BQ81: 0 | BR81: 0 | BS81: 0 | BT81: 0 | BU81: 0 | BV81: 0 | BW81: 0 | BX81: 0 | BY81: 0 | BZ81: 0 | CA81: 0 | CB81: 0 | CC81: 0
E82: 0 | F82: 0 | G82: 0 | H82: 0 | I82: 0 | J82: 0 | K82: 0 | L82: 0 | M82: 0 | N82: 0 | O82: 0 | P82: 0 | Q82: 0 | R82: 0 | S82: 0 | T82: 0 | U82: 0 | V82: 0 | W82: 0 | X82: 0 | Y82: 0 | Z82: 0 | AA82: 0 | AB82: 0 | AC82: 0 | AD82: 0 | AE82: 0 | AF82: 0 | AG82: 0 | AH82: 0 | AI82: 0 | AJ82: 0 | AK82: 0 | AL82: 0 | AM82: 0 | AN82: 0 | AO82: 0 | AP82: 0 | AQ82: 0 | AR82: 0 | AS82: 0 | AT82: 0 | AU82: 0 | AV82: 0 | AW82: 0 | AX82: 0 | AY82: 0 | AZ82: 0 | BA82: 0 | BB82: 0 | BC82: 0 | BD82: 0 | BE82: 0 | BF82: 0 | BG82: 0 | BH82: 0 | BI82: 0 | BJ82: 0 | BK82: 0 | BL82: 0 | BM82: 0 | BN82: 0 | BO82: 0 | BP82: 0 | BQ82: 0 | BR82: 0 | BS82: 0 | BT82: 0 | BU82: 0 | BV82: 0 | BW82: 0 | BX82: 0 | BY82: 0 | BZ82: 0 | CA82: =J82+P82+V82+AB82+AH82+AN82+AT82+AZ82+BF82+BL82+BR82+BX82 -> 0 | CB82: =K82+Q82+W82+AC82+AI82+AO82+AU82+BA82+BG82+BM82+BS82+BY82 -> 0 | CC82: 0
E83: 0 | F83: 0 | G83: 0 | H83: 0 | I83: 0 | J83: 0 | K83: 0 | L83: 0 | M83: 0 | N83: 0 | O83: 0 | P83: 0 | Q83: 0 | R83: 0 | S83: 0 | T83: 0 | U83: 0 | V83: 0 | W83: 0 | X83: 0 | Y83: 0 | Z83: 0 | AA83: 0 | AB83: 0 | AC83: 0 | AD83: 0 | AE83: 0 | AF83: 0 | AG83: 0 | AH83: 0 | AI83: 0 | AJ83: 0 | AK83: 0 | AL83: 0 | AM83: 0 | AN83: 0 | AO83: 0 | AP83: 0 | AQ83: 0 | AR83: 0 | AS83: 0 | AT83: 0 | AU83: 0 | AV83: 0 | AW83: 0 | AX83: 0 | AY83: 0 | AZ83: 0 | BA83: 0 | BB83: 0 | BC83: 0 | BD83: 0 | BE83: 0 | BF83: 0 | BG83: 0 | BH83: 0 | BI83: 0 | BJ83: 0 | BK83: 0 | BL83: 0 | BM83: 0 | BN83: 0 | BO83: 0 | BP83: 0 | BQ83: 0 | BR83: 0 | BS83: 0 | BT83: 0 | BU83: 0 | BV83: 0 | BW83: 0 | BX83: 0 | BY83: 0 | BZ83: 0 | CA83: 0 | CB83: 0 | CC83: 0
E84: 0 | F84: 0 | G84: 0 | H84: 0 | I84: 0 | J84: 0 | K84: 0 | L84: 0 | M84: 0 | N84: 0 | O84: 0 | P84: 0 | Q84: 0 | R84: 0 | S84: 0 | T84: 0 | U84: 0 | V84: 0 | W84: 0 | X84: 0 | Y84: 0 | Z84: 0 | AA84: 0 | AB84: 0 | AC84: 0 | AD84: 0 | AE84: 0 | AF84: 0 | AG84: 0 | AH84: 0 | AI84: 0 | AJ84: 0 | AK84: 0 | AL84: 0 | AM84: 0 | AN84: 0 | AO84: 0 | AP84: 0 | AQ84: 0 | AR84: 0 | AS84: 0 | AT84: 0 | AU84: 0 | AV84: 0 | AW84: 0 | AX84: 0 | AY84: 0 | AZ84: 0 | BA84: 0 | BB84: 0 | BC84: 0 | BD84: 0 | BE84: 0 | BF84: 0 | BG84: 0 | BH84: 0 | BI84: 0 | BJ84: 0 | BK84: 0 | BL84: 0 | BM84: 0 | BN84: 0 | BO84: 0 | BP84: 0 | BQ84: 0 | BR84: 0 | BS84: 0 | BT84: 0 | BU84: 0 | BV84: 0 | BW84: 0 | BX84: 0 | BY84: 0 | BZ84: 0 | CA84: 0 | CB84: 0 | CC84: 0
E85: 0 | F85: 0 | G85: 0 | H85: 0 | I85: 0 | J85: 0 | K85: 0 | L85: 0 | M85: 0 | N85: 0 | O85: 0 | P85: 0 | Q85: 0 | R85: 0 | S85: 0 | T85: 0 | U85: 0 | V85: 0 | W85: 0 | X85: 0 | Y85: 0 | Z85: 0 | AA85: 0 | AB85: 0 | AC85: 0 | AD85: 0 | AE85: 0 | AF85: 0 | AG85: 0 | AH85: 0 | AI85: 0 | AJ85: 0 | AK85: 0 | AL85: 0 | AM85: 0 | AN85: 0 | AO85: 0 | AP85: 0 | AQ85: 0 | AR85: 0 | AS85: 0 | AT85: 0 | AU85: 0 | AV85: 0 | AW85: 0 | AX85: 0 | AY85: 0 | AZ85: 0 | BA85: 0 | BB85: 0 | BC85: 0 | BD85: 0 | BE85: 0 | BF85: 0 | BG85: 0 | BH85: 0 | BI85: 0 | BJ85: 0 | BK85: 0 | BL85: 0 | BM85: 0 | BN85: 0 | BO85: 0 | BP85: 0 | BQ85: 0 | BR85: 0 | BS85: 0 | BT85: 0 | BU85: 0 | BV85: 0 | BW85: 0 | BX85: 0 | BY85: 0 | BZ85: 0 | CA85: 0 | CB85: 0 | CC85: 0
E86: 0 | F86: 0 | G86: 0 | H86: 0 | I86: 0 | J86: 0 | K86: 0 | L86: 0 | M86: 0 | N86: 0 | O86: 0 | P86: 0 | Q86: 0 | R86: 0 | S86: 0 | T86: 0 | U86: 0 | V86: 0 | W86: 0 | X86: 0 | Y86: 0 | Z86: 0 | AA86: 0 | AB86: 0 | AC86: 0 | AD86: 0 | AE86: 0 | AF86: 0 | AG86: 0 | AH86: 0 | AI86: 0 | AJ86: 0 | AK86: 0 | AL86: 0 | AM86: 0 | AN86: 0 | AO86: 0 | AP86: 0 | AQ86: 0 | AR86: 0 | AS86: 0 | AT86: 0 | AU86: 0 | AV86: 0 | AW86: 0 | AX86: 0 | AY86: 0 | AZ86: 0 | BA86: 0 | BB86: 0 | BC86: 0 | BD86: 0 | BE86: 0 | BF86: 0 | BG86: 0 | BH86: 0 | BI86: 0 | BJ86: 0 | BK86: 0 | BL86: 0 | BM86: 0 | BN86: 0 | BO86: 0 | BP86: 0 | BQ86: 0 | BR86: 0 | BS86: 0 | BT86: 0 | BU86: 0 | BV86: 0 | BW86: 0 | BX86: 0 | BY86: 0 | BZ86: 0 | CA86: 0 | CB86: 0 | CC86: 0
E87: 0 | F87: 0 | G87: 0 | H87: 0 | I87: 0 | J87: 0 | K87: 0 | L87: 0 | M87: 0 | N87: 0 | O87: 0 | P87: 0 | Q87: 0 | R87: 0 | S87: 0 | T87: 0 | U87: 0 | V87: 0 | W87: 0 | X87: 0 | Y87: 0 | Z87: 0 | AA87: 0 | AB87: 0 | AC87: 0 | AD87: 0 | AE87: 0 | AF87: 0 | AG87: 0 | AH87: 0 | AI87: 0 | AJ87: 0 | AK87: 0 | AL87: 0 | AM87: 0 | AN87: 0 | AO87: 0 | AP87: 0 | AQ87: 0 | AR87: 0 | AS87: 0 | AT87: 0 | AU87: 0 | AV87: 0 | AW87: 0 | AX87: 0 | AY87: 0 | AZ87: 0 | BA87: 0 | BB87: 0 | BC87: 0 | BD87: 0 | BE87: 0 | BF87: 0 | BG87: 0 | BH87: 0 | BI87: 0 | BJ87: 0 | BK87: 0 | BL87: 0 | BM87: 0 | BN87: 0 | BO87: 0 | BP87: 0 | BQ87: 0 | BR87: 0 | BS87: 0 | BT87: 0 | BU87: 0 | BV87: 0 | BW87: 0 | BX87: 0 | BY87: 0 | BZ87: 0 | CA87: 0 | CB87: 0 | CC87: 0
E88: 0 | F88: 0 | G88: 0 | H88: 0 | I88: 0 | J88: 0 | K88: 0 | L88: 0 | M88: 0 | N88: 0 | O88: 0 | P88: 0 | Q88: 0 | R88: 0 | S88: 0 | T88: 0 | U88: 0 | V88: 0 | W88: 0 | X88: 0 | Y88: 0 | Z88: 0 | AA88: 0 | AB88: 0 | AC88: 0 | AD88: 0 | AE88: 0 | AF88: 0 | AG88: 0 | AH88: 0 | AI88: 0 | AJ88: 0 | AK88: 0 | AL88: 0 | AM88: 0 | AN88: 0 | AO88: 0 | AP88: 0 | AQ88: 0 | AR88: 0 | AS88: 0 | AT88: 0 | AU88: 0 | AV88: 0 | AW88: 0 | AX88: 0 | AY88: 0 | AZ88: 0 | BA88: 0 | BB88: 0 | BC88: 0 | BD88: 0 | BE88: 0 | BF88: 0 | BG88: 0 | BH88: 0 | BI88: 0 | BJ88: 0 | BK88: 0 | BL88: 0 | BM88: 0 | BN88: 0 | BO88: 0 | BP88: 0 | BQ88: 0 | BR88: 0 | BS88: 0 | BT88: 0 | BU88: 0 | BV88: 0 | BW88: 0 | BX88: 0 | BY88: 0 | BZ88: 0 | CA88: 0 | CB88: 0 | CC88: 0
E89: 0 | F89: 0 | G89: 0 | H89: 0 | I89: 0 | J89: 0 | K89: 0 | L89: 0 | M89: 0 | N89: 0 | O89: 0 | P89: 0 | Q89: 0 | R89: 0 | S89: 0 | T89: 0 | U89: 0 | V89: 0 | W89: 0 | X89: 0 | Y89: 0 | Z89: 0 | AA89: 0 | AB89: 0 | AC89: 0 | AD89: 0 | AE89: 0 | AF89: 0 | AG89: 0 | AH89: 0 | AI89: 0 | AJ89: 0 | AK89: 0 | AL89: 0 | AM89: 0 | AN89: 0 | AO89: 0 | AP89: 0 | AQ89: 0 | AR89: 0 | AS89: 0 | AT89: 0 | AU89: 0 | AV89: 0 | AW89: 0 | AX89: 0 | AY89: 0 | AZ89: 0 | BA89: 0 | BB89: 0 | BC89: 0 | BD89: 0 | BE89: 0 | BF89: 0 | BG89: 0 | BH89: 0 | BI89: 0 | BJ89: 0 | BK89: 0 | BL89: 0 | BM89: 0 | BN89: 0 | BO89: 0 | BP89: 0 | BQ89: 0 | BR89: 0 | BS89: 0 | BT89: 0 | BU89: 0 | BV89: 0 | BW89: 0 | BX89: 0 | BY89: 0 | BZ89: 0 | CA89: 0 | CB89: 0 | CC89: 0
E90: 0 | F90: 0 | G90: 0 | H90: 0 | I90: 0 | J90: 0 | K90: 0 | L90: 0 | M90: 0 | N90: 0 | O90: 0 | P90: 0 | Q90: 0 | R90: 0 | S90: 0 | T90: 0 | U90: 0 | V90: 0 | W90: 0 | X90: 0 | Y90: 0 | Z90: 0 | AA90: 0 | AB90: 0 | AC90: 0 | AD90: 0 | AE90: 0 | AF90: 0 | AG90: 0 | AH90: 0 | AI90: 0 | AJ90: 0 | AK90: 0 | AL90: 0 | AM90: 0 | AN90: 0 | AO90: 0 | AP90: 0 | AQ90: 0 | AR90: 0 | AS90: 0 | AT90: 0 | AU90: 0 | AV90: 0 | AW90: 0 | AX90: 0 | AY90: 0 | AZ90: 0 | BA90: 0 | BB90: 0 | BC90: 0 | BD90: 0 | BE90: 0 | BF90: 0 | BG90: 0 | BH90: 0 | BI90: 0 | BJ90: 0 | BK90: 0 | BL90: 0 | BM90: 0 | BN90: 0 | BO90: 0 | BP90: 0 | BQ90: 0 | BR90: 0 | BS90: 0 | BT90: 0 | BU90: 0 | BV90: 0 | BW90: 0 | BX90: 0 | BY90: 0 | BZ90: 0 | CA90: 0 | CB90: 0 | CC90: 0
E91: 0 | F91: 0 | G91: 0 | H91: 0 | I91: 0 | J91: 0 | K91: 0 | L91: 0 | M91: 0 | N91: 0 | O91: 0 | P91: 0 | Q91: 0 | R91: 0 | S91: 0 | T91: 0 | U91: 0 | V91: 0 | W91: 0 | X91: 0 | Y91: 0 | Z91: 0 | AA91: 0 | AB91: 0 | AC91: 0 | AD91: 0 | AE91: 0 | AF91: 0 | AG91: 0 | AH91: 0 | AI91: 0 | AJ91: 0 | AK91: 0 | AL91: 0 | AM91: 0 | AN91: 0 | AO91: 0 | AP91: 0 | AQ91: 0 | AR91: 0 | AS91: 0 | AT91: 0 | AU91: 0 | AV91: 0 | AW91: 0 | AX91: 0 | AY91: 0 | AZ91: 0 | BA91: 0 | BB91: 0 | BC91: 0 | BD91: 0 | BE91: 0 | BF91: 0 | BG91: 0 | BH91: 0 | BI91: 0 | BJ91: 0 | BK91: 0 | BL91: 0 | BM91: 0 | BN91: 0 | BO91: 0 | BP91: 0 | BQ91: 0 | BR91: 0 | BS91: 0 | BT91: 0 | BU91: 0 | BV91: 0 | BW91: 0 | BX91: 0 | BY91: 0 | BZ91: 0 | CA91: 0 | CB91: 0 | CC91: 0
E92: 0 | F92: 0 | G92: 0 | H92: 0 | I92: 0 | J92: 0 | K92: 0 | L92: 0 | M92: 0 | N92: 0 | O92: 0 | P92: 0 | Q92: 0 | R92: 0 | S92: 0 | T92: 0 | U92: 0 | V92: 0 | W92: 0 | X92: 0 | Y92: 0 | Z92: 0 | AA92: 0 | AB92: 0 | AC92: 0 | AD92: 0 | AE92: 0 | AF92: 0 | AG92: 0 | AH92: 0 | AI92: 0 | AJ92: 0 | AK92: 0 | AL92: 0 | AM92: 0 | AN92: 0 | AO92: 0 | AP92: 0 | AQ92: 0 | AR92: 0 | AS92: 0 | AT92: 0 | AU92: 0 | AV92: 0 | AW92: 0 | AX92: 0 | AY92: 0 | AZ92: 0 | BA92: 0 | BB92: 0 | BC92: 0 | BD92: 0 | BE92: 0 | BF92: 0 | BG92: 0 | BH92: 0 | BI92: 0 | BJ92: 0 | BK92: 0 | BL92: 0 | BM92: 0 | BN92: 0 | BO92: 0 | BP92: 0 | BQ92: 0 | BR92: 0 | BS92: 0 | BT92: 0 | BU92: 0 | BV92: 0 | BW92: 0 | BX92: 0 | BY92: 0 | BZ92: 0 | CA92: 0 | CB92: 0 | CC92: 0
E93: 0 | F93: 0 | G93: 0 | H93: 0 | I93: 0 | J93: 0 | K93: 0 | L93: 0 | M93: 0 | N93: 0 | O93: 0 | P93: 0 | Q93: 0 | R93: 0 | S93: 0 | T93: 0 | U93: 0 | V93: 0 | W93: 0 | X93: 0 | Y93: 0 | Z93: 0 | AA93: 0 | AB93: 0 | AC93: 0 | AD93: 0 | AE93: 0 | AF93: 0 | AG93: 0 | AH93: 0 | AI93: 0 | AJ93: 0 | AK93: 0 | AL93: 0 | AM93: 0 | AN93: 0 | AO93: 0 | AP93: 0 | AQ93: 0 | AR93: 0 | AS93: 0 | AT93: 0 | AU93: 0 | AV93: 0 | AW93: 0 | AX93: 0 | AY93: 0 | AZ93: 0 | BA93: 0 | BB93: 0 | BC93: 0 | BD93: 0 | BE93: 0 | BF93: 0 | BG93: 0 | BH93: 0 | BI93: 0 | BJ93: 0 | BK93: 0 | BL93: 0 | BM93: 0 | BN93: 0 | BO93: 0 | BP93: 0 | BQ93: 0 | BR93: 0 | BS93: 0 | BT93: 0 | BU93: 0 | BV93: 0 | BW93: 0 | BX93: 0 | BY93: 0 | BZ93: 0 | CA93: 0 | CB93: 0 | CC93: 0
E94: 0 | F94: 0 | G94: 0 | H94: 0 | I94: 0 | J94: 0 | K94: 0 | L94: 0 | M94: 0 | N94: 0 | O94: 0 | P94: 0 | Q94: 0 | R94: 0 | S94: 0 | T94: 0 | U94: 0 | V94: 0 | W94: 0 | X94: 0 | Y94: 0 | Z94: 0 | AA94: 0 | AB94: 0 | AC94: 0 | AD94: 0 | AE94: 0 | AF94: 0 | AG94: 0 | AH94: 0 | AI94: 0 | AJ94: 0 | AK94: 0 | AL94: 0 | AM94: 0 | AN94: 0 | AO94: 0 | AP94: 0 | AQ94: 0 | AR94: 0 | AS94: 0 | AT94: 0 | AU94: 0 | AV94: 0 | AW94: 0 | AX94: 0 | AY94: 0 | AZ94: 0 | BA94: 0 | BB94: 0 | BC94: 0 | BD94: 0 | BE94: 0 | BF94: 0 | BG94: 0 | BH94: 0 | BI94: 0 | BJ94: 0 | BK94: 0 | BL94: 0 | BM94: 0 | BN94: 0 | BO94: 0 | BP94: 0 | BQ94: 0 | BR94: 0 | BS94: 0 | BT94: 0 | BU94: 0 | BV94: 0 | BW94: 0 | BX94: 0 | BY94: 0 | BZ94: 0 | CA94: 0 | CB94: 0 | CC94: 0
E95: 0 | F95: 0 | G95: 0 | H95: 0 | I95: 0 | J95: 0 | K95: 0 | L95: 0 | M95: 0 | N95: 0 | O95: 0 | P95: 0 | Q95: 0 | R95: 0 | S95: 0 | T95: 0 | U95: 0 | V95: 0 | W95: 0 | X95: 0 | Y95: 0 | Z95: 0 | AA95: 0 | AB95: 0 | AC95: 0 | AD95: 0 | AE95: 0 | AF95: 0 | AG95: 0 | AH95: 0 | AI95: 0 | AJ95: 0 | AK95: 0 | AL95: 0 | AM95: 0 | AN95: 0 | AO95: 0 | AP95: 0 | AQ95: 0 | AR95: 0 | AS95: 0 | AT95: 0 | AU95: 0 | AV95: 0 | AW95: 0 | AX95: 0 | AY95: 0 | AZ95: 0 | BA95: 0 | BB95: 0 | BC95: 0 | BD95: 0 | BE95: 0 | BF95: 0 | BG95: 0 | BH95: 0 | BI95: 0 | BJ95: 0 | BK95: 0 | BL95: 0 | BM95: 0 | BN95: 0 | BO95: 0 | BP95: 0 | BQ95: 0 | BR95: 0 | BS95: 0 | BT95: 0 | BU95: 0 | BV95: 0 | BW95: 0 | BX95: 0 | BY95: 0 | BZ95: 0 | CA95: 0 | CB95: 0 | CC95: 0
E96: 0 | F96: 0 | G96: 0 | H96: 0 | I96: 0 | J96: 0 | K96: 0 | L96: 0 | M96: 0 | N96: 0 | O96: 0 | P96: 0 | Q96: 0 | R96: 0 | S96: 0 | T96: 0 | U96: 0 | V96: 0 | W96: 0 | X96: 0 | Y96: 0 | Z96: 0 | AA96: 0 | AB96: 0 | AC96: 0 | AD96: 0 | AE96: 0 | AF96: 0 | AG96: 0 | AH96: 0 | AI96: 0 | AJ96: 0 | AK96: 0 | AL96: 0 | AM96: 0 | AN96: 0 | AO96: 0 | AP96: 0 | AQ96: 0 | AR96: 0 | AS96: 0 | AT96: 0 | AU96: 0 | AV96: 0 | AW96: 0 | AX96: 0 | AY96: 0 | AZ96: 0 | BA96: 0 | BB96: 0 | BC96: 0 | BD96: 0 | BE96: 0 | BF96: 0 | BG96: 0 | BH96: 0 | BI96: 0 | BJ96: 0 | BK96: 0 | BL96: 0 | BM96: 0 | BN96: 0 | BO96: 0 | BP96: 0 | BQ96: 0 | BR96: 0 | BS96: 0 | BT96: 0 | BU96: 0 | BV96: 0 | BW96: 0 | BX96: 0 | BY96: 0 | BZ96: 0 | CA96: =J96+P96+V96+AB96+AH96+AN96+AT96+AZ96+BF96+BL96+BR96+BX96 -> 0 | CB96: 0 | CC96: 0
E97: 0 | F97: 0 | G97: 0 | H97: 0 | I97: 0 | J97: 0 | K97: 0 | L97: 0 | M97: 0 | N97: 0 | O97: 0 | P97: 0 | Q97: 0 | R97: 0 | S97: 0 | T97: 0 | U97: 0 | V97: 0 | W97: 0 | X97: 0 | Y97: 0 | Z97: 0 | AA97: 0 | AB97: 0 | AC97: 0 | AD97: 0 | AE97: 0 | AF97: 0 | AG97: 0 | AH97: 0 | AI97: 0 | AJ97: 0 | AK97: 0 | AL97: 0 | AM97: 0 | AN97: 0 | AO97: 0 | AP97: 0 | AQ97: 0 | AR97: 0 | AS97: 0 | AT97: 0 | AU97: 0 | AV97: 0 | AW97: 0 | AX97: 0 | AY97: 0 | AZ97: 0 | BA97: 0 | BB97: 0 | BC97: 0 | BD97: 0 | BE97: 0 | BF97: 0 | BG97: 0 | BH97: 0 | BI97: 0 | BJ97: 0 | BK97: 0 | BL97: 0 | BM97: 0 | BN97: 0 | BO97: 0 | BP97: 0 | BQ97: 0 | BR97: 0 | BS97: 0 | BT97: 0 | BU97: 0 | BV97: 0 | BW97: 0 | BX97: 0 | BY97: 0 | BZ97: 0 | CA97: 0 | CB97: 0 | CC97: 0
E98: 0 | F98: 0 | G98: 0 | H98: 0 | I98: 0 | J98: 0 | K98: 0 | L98: 0 | M98: 0 | N98: 0 | O98: 0 | P98: 0 | Q98: 0 | R98: 0 | S98: 0 | T98: 0 | U98: 0 | V98: 0 | W98: 0 | X98: 0 | Y98: 0 | Z98: 0 | AA98: 0 | AB98: 0 | AC98: 0 | AD98: 0 | AE98: 0 | AF98: 0 | AG98: 0 | AH98: 0 | AI98: 0 | AJ98: 0 | AK98: 0 | AL98: 0 | AM98: 0 | AN98: 0 | AO98: 0 | AP98: 0 | AQ98: 0 | AR98: 0 | AS98: 0 | AT98: 0 | AU98: 0 | AV98: 0 | AW98: 0 | AX98: 0 | AY98: 0 | AZ98: 0 | BA98: 0 | BB98: 0 | BC98: 0 | BD98: 0 | BE98: 0 | BF98: 0 | BG98: 0 | BH98: 0 | BI98: 0 | BJ98: 0 | BK98: 0 | BL98: 0 | BM98: 0 | BN98: 0 | BO98: 0 | BP98: 0 | BQ98: 0 | BR98: 0 | BS98: 0 | BT98: 0 | BU98: 0 | BV98: 0 | BW98: 0 | BX98: 0 | BY98: 0 | BZ98: 0 | CA98: 0 | CB98: 0 | CC98: 0
E99: 0 | F99: 0 | G99: 0 | H99: 0 | I99: 0 | J99: 0 | K99: 0 | L99: 0 | M99: 0 | N99: 0 | O99: 0 | P99: 0 | Q99: 0 | R99: 0 | S99: 0 | T99: 0 | U99: 0 | V99: 0 | W99: 0 | X99: 0 | Y99: 0 | Z99: 0 | AA99: 0 | AB99: 0 | AC99: 0 | AD99: 0 | AE99: 0 | AF99: 0 | AG99: 0 | AH99: 0 | AI99: 0 | AJ99: 0 | AK99: 0 | AL99: 0 | AM99: 0 | AN99: 0 | AO99: 0 | AP99: 0 | AQ99: 0 | AR99: 0 | AS99: 0 | AT99: 0 | AU99: 0 | AV99: 0 | AW99: 0 | AX99: 0 | AY99: 0 | AZ99: 0 | BA99: 0 | BB99: 0 | BC99: 0 | BD99: 0 | BE99: 0 | BF99: 0 | BG99: 0 | BH99: 0 | BI99: 0 | BJ99: 0 | BK99: 0 | BL99: 0 | BM99: 0 | BN99: 0 | BO99: 0 | BP99: 0 | BQ99: 0 | BR99: 0 | BS99: 0 | BT99: 0 | BU99: 0 | BV99: 0 | BW99: 0 | BX99: 0 | BY99: 0 | BZ99: 0 | CA99: 0 | CB99: 0 | CC99: 0
E100: 0 | F100: 0 | G100: 0 | H100: 0 | I100: 0 | J100: 0 | K100: 0 | L100: 0 | M100: 0 | N100: 0 | O100: 0 | P100: 0 | Q100: 0 | R100: 0 | S100: 0 | T100: 0 | U100: 0 | V100: 0 | W100: 0 | X100: 0 | Y100: 0 | Z100: 0 | AA100: 0 | AB100: 0 | AC100: 0 | AD100: 0 | AE100: 0 | AF100: 0 | AG100: 0 | AH100: 0 | AI100: 0 | AJ100: 0 | AK100: 0 | AL100: 0 | AM100: 0 | AN100: 0 | AO100: 0 | AP100: 0 | AQ100: 0 | AR100: 0 | AS100: 0 | AT100: 0 | AU100: 0 | AV100: 0 | AW100: 0 | AX100: 0 | AY100: 0 | AZ100: 0 | BA100: 0 | BB100: 0 | BC100: 0 | BD100: 0 | BE100: 0 | BF100: 0 | BG100: 0 | BH100: 0 | BI100: 0 | BJ100: 0 | BK100: 0 | BL100: 0 | BM100: 0 | BN100: 0 | BO100: 0 | BP100: 0 | BQ100: 0 | BR100: 0 | BS100: 0 | BT100: 0 | BU100: 0 | BV100: 0 | BW100: 0 | BX100: 0 | BY100: 0 | BZ100: 0 | CA100: 0 | CB100: 0 | CC100: 0
E101: 0 | F101: 0 | G101: 0 | H101: 0 | I101: 0 | J101: 0 | K101: 0 | L101: 0 | M101: 0 | N101: 0 | O101: 0 | P101: 0 | Q101: 0 | R101: 0 | S101: 0 | T101: 0 | U101: 0 | V101: 0 | W101: 0 | X101: 0 | Y101: 0 | Z101: 0 | AA101: 0 | AB101: 0 | AC101: 0 | AD101: 0 | AE101: 0 | AF101: 0 | AG101: 0 | AH101: 0 | AI101: 0 | AJ101: 0 | AK101: 0 | AL101: 0 | AM101: 0 | AN101: 0 | AO101: 0 | AP101: 0 | AQ101: 0 | AR101: 0 | AS101: 0 | AT101: 0 | AU101: 0 | AV101: 0 | AW101: 0 | AX101: 0 | AY101: 0 | AZ101: 0 | BA101: 0 | BB101: 0 | BC101: 0 | BD101: 0 | BE101: 0 | BF101: 0 | BG101: 0 | BH101: 0 | BI101: 0 | BJ101: 0 | BK101: 0 | BL101: 0 | BM101: 0 | BN101: 0 | BO101: 0 | BP101: 0 | BQ101: 0 | BR101: 0 | BS101: 0 | BT101: 0 | BU101: 0 | BV101: 0 | BW101: 0 | BX101: 0 | BY101: 0 | BZ101: 0 | CA101: =J101+P101+V101+AB101+AH101+AN101+AT101+AZ101+BF101+BL101+BR101+BX101 -> 0 | CB101: =K101+Q101+W101+AC101+AI101+AO101+AU101+BA101+BG101+BM101+BS101+BY101 -> 0 | CC101: 0
E102: 0 | F102: 0 | G102: 0 | H102: 0 | I102: 0 | J102: 0 | K102: 0 | L102: 0 | M102: 0 | N102: 0 | O102: 0 | P102: 0 | Q102: 0 | R102: 0 | S102: 0 | T102: 0 | U102: 0 | V102: 0 | W102: 0 | X102: 0 | Y102: 0 | Z102: 0 | AA102: 0 | AB102: 0 | AC102: 0 | AD102: 0 | AE102: 0 | AF102: 0 | AG102: 0 | AH102: 0 | AI102: 0 | AJ102: 0 | AK102: 0 | AL102: 0 | AM102: 0 | AN102: 0 | AO102: 0 | AP102: 0 | AQ102: 0 | AR102: 0 | AS102: 0 | AT102: 0 | AU102: 0 | AV102: 0 | AW102: 0 | AX102: 0 | AY102: 0 | AZ102: 0 | BA102: 0 | BB102: 0 | BC102: 0 | BD102: 0 | BE102: 0 | BF102: 0 | BG102: 0 | BH102: 0 | BI102: 0 | BJ102: 0 | BK102: 0 | BL102: 0 | BM102: 0 | BN102: 0 | BO102: 0 | BP102: 0 | BQ102: 0 | BR102: 0 | BS102: 0 | BT102: 0 | BU102: 0 | BV102: 0 | BW102: 0 | BX102: 0 | BY102: 0 | BZ102: 0 | CA102: =J102+P102+V102+AB102+AH102+AN102+AT102+AZ102+BF102+BL102+BR102+BX102 -> 0 | CB102: =K102+Q102+W102+AC102+AI102+AO102+AU102+BA102+BG102+BM102+BS102+BY102 -> 0 | CC102: 0
E103: 0 | F103: 0 | G103: 0 | H103: 0 | I103: 0 | J103: 0 | K103: 0 | L103: 0 | M103: 0 | N103: 0 | O103: 0 | P103: 0 | Q103: 0 | R103: 0 | S103: 0 | T103: 0 | U103: 0 | V103: 0 | W103: 0 | X103: 0 | Y103: 0 | Z103: 0 | AA103: 0 | AB103: 0 | AC103: 0 | AD103: 0 | AE103: 0 | AF103: 0 | AG103: 0 | AH103: 0 | AI103: 0 | AJ103: 0 | AK103: 0 | AL103: 0 | AM103: 0 | AN103: 0 | AO103: 0 | AP103: 0 | AQ103: 0 | AR103: 0 | AS103: 0 | AT103: 0 | AU103: 0 | AV103: 0 | AW103: 0 | AX103: 0 | AY103: 0 | AZ103: 0 | BA103: 0 | BB103: 0 | BC103: 0 | BD103: 0 | BE103: 0 | BF103: 0 | BG103: 0 | BH103: 0 | BI103: 0 | BJ103: 0 | BK103: 0 | BL103: 0 | BM103: 0 | BN103: 0 | BO103: 0 | BP103: 0 | BQ103: 0 | BR103: 0 | BS103: 0 | BT103: 0 | BU103: 0 | BV103: 0 | BW103: 0 | BX103: 0 | BY103: 0 | BZ103: 0 | CA103: 0 | CB103: 0 | CC103: 0
E104: 0 | F104: 0 | G104: 0 | H104: 0 | I104: 0 | J104: 0 | K104: 0 | L104: 0 | M104: 0 | N104: 0 | O104: 0 | P104: 0 | Q104: 0 | R104: 0 | S104: 0 | T104: 0 | U104: 0 | V104: 0 | W104: 0 | X104: 0 | Y104: 0 | Z104: 0 | AA104: 0 | AB104: 0 | AC104: 0 | AD104: 0 | AE104: 0 | AF104: 0 | AG104: 0 | AH104: 0 | AI104: 0 | AJ104: 0 | AK104: 0 | AL104: 0 | AM104: 0 | AN104: 0 | AO104: 0 | AP104: 0 | AQ104: 0 | AR104: 0 | AS104: 0 | AT104: 0 | AU104: 0 | AV104: 0 | AW104: 0 | AX104: 0 | AY104: 0 | AZ104: 0 | BA104: 0 | BB104: 0 | BC104: 0 | BD104: 0 | BE104: 0 | BF104: 0 | BG104: 0 | BH104: 0 | BI104: 0 | BJ104: 0 | BK104: 0 | BL104: 0 | BM104: 0 | BN104: 0 | BO104: 0 | BP104: 0 | BQ104: 0 | BR104: 0 | BS104: 0 | BT104: 0 | BU104: 0 | BV104: 0 | BW104: 0 | BX104: 0 | BY104: 0 | BZ104: 0 | CA104: 0 | CB104: 0 | CC104: 0
E105: 0 | F105: 0 | G105: 0 | H105: 0 | I105: 0 | J105: 0 | K105: 0 | L105: 0 | M105: 0 | N105: 0 | O105: 0 | P105: 0 | Q105: 0 | R105: 0 | S105: 0 | T105: 0 | U105: 0 | V105: 0 | W105: 0 | X105: 0 | Y105: 0 | Z105: 0 | AA105: 0 | AB105: 0 | AC105: 0 | AD105: 0 | AE105: 0 | AF105: 0 | AG105: 0 | AH105: 0 | AI105: 0 | AJ105: 0 | AK105: 0 | AL105: 0 | AM105: 0 | AN105: 0 | AO105: 0 | AP105: 0 | AQ105: 0 | AR105: 0 | AS105: 0 | AT105: 0 | AU105: 0 | AV105: 0 | AW105: 0 | AX105: 0 | AY105: 0 | AZ105: 0 | BA105: 0 | BB105: 0 | BC105: 0 | BD105: 0 | BE105: 0 | BF105: 0 | BG105: 0 | BH105: 0 | BI105: 0 | BJ105: 0 | BK105: 0 | BL105: 0 | BM105: 0 | BN105: 0 | BO105: 0 | BP105: 0 | BQ105: 0 | BR105: 0 | BS105: 0 | BT105: 0 | BU105: 0 | BV105: 0 | BW105: 0 | BX105: 0 | BY105: 0 | BZ105: 0 | CA105: 0 | CB105: 0 | CC105: 0
E106: 0 | F106: 0 | G106: 0 | H106: 0 | I106: 0 | J106: 0 | K106: 0 | L106: 0 | M106: 0 | N106: 0 | O106: 0 | P106: 0 | Q106: 0 | R106: 0 | S106: 0 | T106: 0 | U106: 0 | V106: 0 | W106: 0 | X106: 0 | Y106: 0 | Z106: 0 | AA106: 0 | AB106: 0 | AC106: 0 | AD106: 0 | AE106: 0 | AF106: 0 | AG106: 0 | AH106: 0 | AI106: 0 | AJ106: 0 | AK106: 0 | AL106: 0 | AM106: 0 | AN106: 0 | AO106: 0 | AP106: 0 | AQ106: 0 | AR106: 0 | AS106: 0 | AT106: 0 | AU106: 0 | AV106: 0 | AW106: 0 | AX106: 0 | AY106: 0 | AZ106: 0 | BA106: 0 | BB106: 0 | BC106: 0 | BD106: 0 | BE106: 0 | BF106: 0 | BG106: 0 | BH106: 0 | BI106: 0 | BJ106: 0 | BK106: 0 | BL106: 0 | BM106: 0 | BN106: 0 | BO106: 0 | BP106: 0 | BQ106: 0 | BR106: 0 | BS106: 0 | BT106: 0 | BU106: 0 | BV106: 0 | BW106: 0 | BX106: 0 | BY106: 0 | BZ106: 0 | CA106: 0 | CB106: 0 | CC106: 0
C107: 合计 | E107: =SUM(E8:E106) -> 782500 | F107: 4720000 | G107: 0 | H107: 0 | I107: 0 | J107: 0 | K107: 0 | L107: 0 | M107: 0 | N107: 0 | O107: 0 | P107: 0 | Q107: 0 | R107: 0 | S107: 0 | T107: 0 | U107: 0 | V107: 0 | W107: 0 | X107: 0 | Y107: 0 | Z107: 0 | AA107: 0 | AB107: 0 | AC107: 0 | AD107: 0 | AE107: 0 | AF107: 0 | AG107: 0 | AH107: 0 | AI107: 0 | AJ107: 0 | AK107: =SUM(AK8:AK106) -> 0 | AL107: 0 | AM107: 0 | AN107: 0 | AO107: 0 | AP107: 0 | AQ107: 0 | AR107: 0 | AS107: 0 | AT107: 0 | AU107: 0 | AV107: 0 | AW107: 0 | AX107: 0 | AY107: 0 | AZ107: 0 | BA107: 0 | BB107: 0 | BC107: 0 | BD107: 0 | BE107: 0 | BF107: 0 | BG107: 0 | BH107: 0 | BI107: 0 | BJ107: 0 | BK107: 0 | BL107: 0 | BM107: 0 | BN107: 0 | BO107: 0 | BP107: 0 | BQ107: =SUM(BQ8:BQ106) -> 0 | BR107: 0 | BS107: 0 | BT107: 0 | BU107: 0 | BV107: 0 | BW107: 0 | BX107: 0 | BY107: 0 | BZ107: 0 | CA107: 0 | CB107: 0 | CC107: 0

Sheet Sheet4 (hidden)
B3: 值
A4: 行标签 | B4: 求和项:2017预算（散）吨 | C4: 求和项:实际散船货量13
A5: DDGS | B5: 0 | C5: 0
A6: 菜粕 | B6: 80000 | C6: 0
A7: 菜籽粕 | B7: 0 | C7: 52633.933
A8: 大豆 | B8: 400000 | C8: 0
A9: 大麦 | B9: 260000 | C9: 292766.22
A10: 大米 | B10: 0 | C10: 0
A11: 蛋氨酸 | B11: 0 | C11: 0
A12: 丁苯橡胶 | B12: 0 | C12: 0
A13: 豆粕 | B13: 0 | C13: 0
A14: 高粱 | B14: 3040000 | C14: 426851.76
A15: 高粱/大麦 | B15: 0 | C15: 0
A16: 黄麻纱线 | B16: 0 | C16: 0
A17: 鸡肉粉 | B17: 0 | C17: 0
A18: 精制淡水鱼油 | B18: 0 | C18: 0
A19: 离子交换树脂 | B19: 0 | C19: 0
A20: 麦麸 | B20: 0 | C20: 0
A21: 煤 | B21: 0 | C21: 48515.358
A22: 米糠 | B22: 0 | C22: 0
A23: 木薯渣粉/颗粒 | B23: 60000 | C23: 0
A24: 苜蓿草 | B24: 0 | C24: 0
A25: 苜蓿草颗粒 | B25: 0 | C25: 0
A26: 起酥油 | B26: 0 | C26: 0
A27: 铅精矿 | B27: 25000 | C27: 0
A28: 铅锌混合精矿 | B28: 0 | C28: 0
A29: 乳清粉 | B29: 0 | C29: 0
A30: 设备 | B30: 0 | C30: 0
A31: 生皮 | B31: 0 | C31: 0
A32: 水族背景板 | B32: 0 | C32: 0
A33: 钛精矿 | B33: 0 | C33: 54295.45
A34: 甜菜粕 | B34: 100000 | C34: 0
A35: 豌豆 | B35: 90000 | C35: 31092.91
A36: 香米 | B36: 0 | C36: 0
A37: 小麦 | B37: 180000 | C37: 115249.941
A38: 锌精矿 | B38: 60000 | C38: 24011
A39: 压榨葵花籽油 | B39: 0 | C39: 0
A40: 燕麦 | B40: 0 | C40: 11000
A41: 燕麦草 | B41: 0 | C41: 0
A42: 燕麦干草 | B42: 0 | C42: 0
A43: 银精矿 | B43: 25000 | C43: 0
A44: 鱼粉 | B44: 0 | C44: 0
A45: 玉米 | B45: 120000 | C45: 0
A46: 原糖 | B46: 250000 | C46: 59000
A47: 芝麻 | B47: 0 | C47: 0
A48: 芝麻油 | B48: 0 | C48: 0
A49: 紫苜蓿草 | B49: 0 | C49: 0
A50: 棕榈粕 | B50: 0 | C50: 3300
A51: 棕榈油 | B51: 30000 | C51: 0
A52: (空白) | B52: 4720000 | C52: 1118716.572
A53: 总计 | B53: 9440000 | C53: 2237433.144

Sheet 货量统计表-航运部-月度
A1: 航运部月度货量统计情况
A3: 统计周期 | B3: 2019年航运 完成量（吨） | C3: 2019年 航运航次累计 | D3: 自有船 完成量（吨） | E3: 自有船 航次累计 | F3: 自有船 完成比例（%） | G3: 外包船 完成量（吨） | H3: 外包船 航次累计 | I3: 外包船 完成比例（%）
A4: 全年累计 | B4: =D4+G4 -> 336528.091 | C4: =E4+H4 -> 244 | D4: ='货量统计表-航运部-年度累计'!E5 -> 101140.398 | E4: ='货量统计表-航运部-年度累计'!F5 -> 65 | F4: ='货量统计表-航运部-年度累计'!G5 -> 27.78582363 | G4: ='货量统计表-航运部-年度累计'!H5 -> 235387.693 | H4: ='货量统计表-航运部-年度累计'!I5 -> 179 | I4: ='货量统计表-航运部-年度累计'!J5 -> 20.72074762
A5: 1-2月份 （1月1日-3月1日） | B5: =D5+G5 -> 187502.055 | C5: =E5+H5 -> 133 | D5: ='货量统计表-航运部-年度累计'!K5 -> 60291.964 | E5: ='货量统计表-航运部-年度累计'!L5 -> 34 | F5: =D5/364000*100 -> 16.56372637 | G5: ='货量统计表-航运部-年度累计'!M5 -> 127210.091 | H5: ='货量统计表-航运部-年度累计'!N5 -> 99 | I5: =G5/1136000*100 -> 11.19807139
A6: 3月份 （3月2日-3月29日) | B6: 83611.7 | C6: 60 | D6: ='货量统计表-航运部-年度累计'!O5+'货量统计表-航运部-年度累计'!S5+'货量统计表-航运部-年度累计'!W5+'货量统计表-航运部-年度累计'!AA5 -> 24562.792 | E6: ='货量统计表-航运部-年度累计'!P5+'货量统计表-航运部-年度累计'!T5+'货量统计表-航运部-年度累计'!X5+'货量统计表-航运部-年度累计'!AB5 -> 15 | F6: 6.74801978 | G6: ='货量统计表-航运部-年度累计'!Q5+'货量统计表-航运部-年度累计'!U5+'货量统计表-航运部-年度累计'!Y5+'货量统计表-航运部-年度累计'!AC5 -> 59048.908 | H6: ='货量统计表-航运部-年度累计'!R5+'货量统计表-航运部-年度累计'!V5+'货量统计表-航运部-年度累计'!Z5+'货量统计表-航运部-年度累计'!AD5 -> 45 | I6: 5.197967254
A7: 4月份 （3月30日-4月26日) | B7: 65414.336 | C7: 45 | D7: ='货量统计表-航运部-年度累计'!AE5+'货量统计表-航运部-年度累计'!AI5+'货量统计表-航运部-年度累计'!AM5+'货量统计表-航运部-年度累计'!AQ5 -> 16285.642 | E7: ='货量统计表-航运部-年度累计'!AF5+'货量统计表-航运部-年度累计'!AJ5+'货量统计表-航运部-年度累计'!AN5+'货量统计表-航运部-年度累计'!AR5 -> 10 | F7: 4.474077473 | G7: ='货量统计表-航运部-年度累计'!AG5+'货量统计表-航运部-年度累计'!AK5+'货量统计表-航运部-年度累计'!AO5+'货量统计表-航运部-年度累计'!AS5 -> 49128.694 | H7: ='货量统计表-航运部-年度累计'!AH5+'货量统计表-航运部-年度累计'!AL5+'货量统计表-航运部-年度累计'!AP5+'货量统计表-航运部-年度累计'!AT5 -> 35 | I7: 4.324708979
A8: 5月份 （4月27日-5月31日) | B8: 0 | C8: 0 | D8: ='货量统计表-航运部-年度累计'!AU5+'货量统计表-航运部-年度累计'!AY5+'货量统计表-航运部-年度累计'!BC5+'货量统计表-航运部-年度累计'!BG5+'货量统计表-航运部-年度累计'!BK5 -> 0 | E8: ='货量统计表-航运部-年度累计'!AV5+'货量统计表-航运部-年度累计'!AZ5+'货量统计表-航运部-年度累计'!BD5+'货量统计表-航运部-年度累计'!BH5+'货量统计表-航运部-年度累计'!BL5 -> 0 | F8: 0 | G8: ='货量统计表-航运部-年度累计'!AW5+'货量统计表-航运部-年度累计'!BA5+'货量统计表-航运部-年度累计'!BE5+'货量统计表-航运部-年度累计'!BI5+'货量统计表-航运部-年度累计'!BM5 -> 0 | H8: ='货量统计表-航运部-年度累计'!AX5+'货量统计表-航运部-年度累计'!BB5+'货量统计表-航运部-年度累计'!BF5+'货量统计表-航运部-年度累计'!BJ5+'货量统计表-航运部-年度累计'!BN5 -> 0 | I8: =G8/1136000*100 -> 0
A9: 6月份 （6月1日-6月28日) | B9: 0 | C9: 0
A10: 7月份 （6月29日-7月26日) | B10: 0 | C10: 0
A11: 8月份 （7月27日-8月30日) | B11: 0 | C11: 0
A12: 9月份 （8月31日-9月27日) | B12: 0 | C12: 0
A13: 10月份 （9月28日-10月25日) | B13: 0 | C13: 0
A14: 11月份 （10月26日-11月29日) | B14: 0 | C14: 0
A15: 12月份 （11月30日-12月27日) | B15: 0 | C15: 0

Sheet 货量统计表-航运部-年度累计
A1: 2019年航运部预算完成情况（150万吨）
A2: 说明：以卸船完成时间为计算起止时间
B3: 2019年 航运 计划量（吨） | C3: 2019年 航运 完成量（吨） | D3: 2019年 航运 完成比例（%） | E3: 2019年自有船完成量（吨） | F3: 2019年自有船航次累计 | G3: 自有船 完成比例（%） | H3: 2019年外包船完成量（吨） | I3: 2019年外包船航次累计 | J3: 外包船 完成比例（%） | K3: 第1-9周 （1月1日-3月1日） | O3: 第10周 （3月2日-3月8日） | S3: 第11周 （3月9日-3月15日） | W3: 第12周 （3月16日-3月22日） | AA3: 第13周 （3月23日-3月29日） | AE3: 第14周 （3月30日-4月5日） | AI3: 第15周 （4月6日-4月12日） | AM3: 第16周 （4月13日-4月19日） | AQ3: 第17周 （4月20日-4月26日） | AU3: 第18周 （4月27日-5月3日） | AY3: 第19周 （5月4日-5月10日） | BC3: 第20周 （5月11日-5月17日） | BG3: 第21周 （5月18日-5月24日） | BK3: 第22周 （5月25日-5月31日） | BO3: 第23周 （6月1日-6月7日） | BS3: 第24周 （6月8日-6月14日） | BW3: 第25周 （6月15日-6月21日） | CA3: 第26周 （6月22日-6月28日） | CE3: 第27周 | CI3: 第28周 | CM3: 第29周 | CQ3: 第30周 | CU3: 第31周 | CY3: 第32周 | DC3: 第33周 | DG3: 第34周 | DK3: 第35周 | DO3: 第36周 | DS3: 第37周 | DW3: 第38周 | EA3: 第39周 | EE3: 第40周 | EI3: 第41周 | EM3: 第42周 | EQ3: 第43周 | EU3: 第44周 | EY3: 第45周 | FC3: 第46周 | FG3: 第47周 | FK3: 第48周 | FO3: 第49周 | FS3: 第50周 | FW3: 第51周 | GA3: 第52周
A4: 累计量 | K4: 自有船航运 完成量（吨） | L4: 自有船航次 | M4: 外包船航运 完成量（吨） | N4: 外包船航次 | O4: 自有船航运 完成量（吨） | P4: 自有船航次 | Q4: 外包船航运 完成量（吨） | R4: 外包船航次 | S4: 自有船航运 完成量（吨） | T4: 自有船航次 | U4: 外包船航运 完成量（吨） | V4: 外包船航次 | W4: 自有船航运 完成量（吨） | X4: 自有船航次 | Y4: 外包船航运 完成量（吨） | Z4: 外包船航次 | AA4: 自有船航运 完成量（吨） | AB4: 自有船航次 | AC4: 外包船航运 完成量（吨） | AD4: 外包船航次 | AE4: 自有船航运 完成量（吨） | AF4: 自有船航次 | AG4: 外包船航运 完成量（吨） | AH4: 外包船航次 | AI4: 自有船航运 完成量（吨） | AJ4: 自有船航次 | AK4: 外包船航运 完成量（吨） | AL4: 外包船航次 | AM4: 自有船航运 完成量（吨） | AN4: 自有船航次 | AO4: 外包船航运 完成量（吨） | AP4: 外包船航次 | AQ4: 自有船航运 完成量（吨） | AR4: 自有船航次 | AS4: 外包船航运 完成量（吨） | AT4: 外包船航次 | AU4: 自有船航运 完成量（吨） | AV4: 自有船航次 | AW4: 外包船航运 完成量（吨） | AX4: 外包船航次 | AY4: 自有船航运 完成量（吨） | AZ4: 自有船航次 | BA4: 外包船航运 完成量（吨） | BB4: 外包船航次 | BC4: 自有船航运 完成量（吨） | BD4: 自有船航次 | BE4: 外包船航运 完成量（吨） | BF4: 外包船航次 | BG4: 自有船航运 完成量（吨） | BH4: 自有船航次 | BI4: 外包船航运 完成量（吨） | BJ4: 外包船航次 | BK4: 自有船航运 完成量（吨） | BL4: 自有船航次 | BM4: 外包船航运 完成量（吨） | BN4: 外包船航次 | BO4: 自有船航运 完成量（吨） | BP4: 自有船航次 | BQ4: 外包船航运 完成量（吨） | BR4: 外包船航次 | BS4: 自有船航运 完成量（吨） | BT4: 自有船航次 | BU4: 外包船航运 完成量（吨） | BV4: 外包船航次 | BW4: 自有船航运 完成量（吨） | BX4: 自有船航次 | BY4: 外包船航运 完成量（吨） | BZ4: 外包船航次 | CA4: 自有船航运 完成量（吨） | CB4: 自有船航次 | CC4: 外包船航运 完成量（吨） | CD4: 外包船航次 | CE4: 自有船航运 完成量（吨） | CF4: 自有船航次 | CG4: 外包船航运 完成量（吨） | CH4: 外包船航次 | CI4: 自有船航运 完成量（吨） | CJ4: 自有船航次 | CK4: 外包船航运 完成量（吨） | CL4: 外包船航次 | CM4: 自有船航运 完成量（吨） | CN4: 自有船航次 | CO4: 外包船航运 完成量（吨） | CP4: 外包船航次 | CQ4: 自有船航运 完成量（吨） | CR4: 自有船航次 | CS4: 外包船航运 完成量（吨） | CT4: 外包船航次 | CU4: 自有船航运 完成量（吨） | CV4: 自有船航次 | CW4: 外包船航运 完成量（吨） | CX4: 外包船航次 | CY4: 自有船航运 完成量（吨） | CZ4: 自有船航次 | DA4: 外包船航运 完成量（吨） | DB4: 外包船航次 | DC4: 自有船航运 完成量（吨） | DD4: 自有船航次 | DE4: 外包船航运 完成量（吨） | DF4: 外包船航次 | DG4: 自有船航运 完成量（吨） | DH4: 自有船航次 | DI4: 外包船航运 完成量（吨） | DJ4: 外包船航次 | DK4: 自有船航运 完成量（吨） | DL4: 自有船航次 | DM4: 外包船航运 完成量（吨） | DN4: 外包船航次 | DO4: 自有船航运 完成量（吨） | DP4: 自有船航次 | DQ4: 外包船航运 完成量（吨） | DR4: 外包船航次 | DS4: 自有船航运 完成量（吨） | DT4: 自有船航次 | DU4: 外包船航运 完成量（吨） | DV4: 外包船航次 | DW4: 自有船航运 完成量（吨） | DX4: 自有船航次 | DY4: 外包船航运 完成量（吨） | DZ4: 外包船航次 | EA4: 自有船航运 完成量（吨） | EB4: 自有船航次 | EC4: 外包船航运 完成量（吨） | ED4: 外包船航次 | EE4: 自有船航运 完成量（吨） | EF4: 自有船航次 | EG4: 外包船航运 完成量（吨） | EH4: 外包船航次 | EI4: 自有船航运 完成量（吨） | EJ4: 自有船航次 | EK4: 外包船航运 完成量（吨） | EL4: 外包船航次 | EM4: 自有船航运 完成量（吨） | EN4: 自有船航次 | EO4: 外包船航运 完成量（吨） | EP4: 外包船航次 | EQ4: 自有船航运 完成量（吨） | ER4: 自有船航次 | ES4: 外包船航运 完成量（吨） | ET4: 外包船航次 | EU4: 自有船航运 完成量（吨） | EV4: 自有船航次 | EW4: 外包船航运 完成量（吨） | EX4: 外包船航次 | EY4: 自有船航运 完成量（吨） | EZ4: 自有船航次 | FA4: 外包船航运 完成量（吨） | FB4: 外包船航次 | FC4: 自有船航运 完成量（吨） | FD4: 自有船航次 | FE4: 外包船航运 完成量（吨） | FF4: 外包船航次 | FG4: 自有船航运 完成量（吨） | FH4: 自有船航次 | FI4: 外包船航运 完成量（吨） | FJ4: 外包船航次 | FK4: 自有船航运 完成量（吨） | FL4: 自有船航次 | FM4: 外包船航运 完成量（吨） | FN4: 外包船航次 | FO4: 自有船航运 完成量（吨） | FP4: 自有船航次 | FQ4: 外包船航运 完成量（吨） | FR4: 外包船航次 | FS4: 自有船航运 完成量（吨） | FT4: 自有船航次 | FU4: 外包船航运 完成量（吨） | FV4: 外包船航次 | FW4: 自有船航运 完成量（吨） | FX4: 自有船航次 | FY4: 外包船航运 完成量（吨） | FZ4: 外包船航次 | GA4: 自有船航运 完成量（吨） | GB4: 自有船航次 | GC4: 外包船航运 完成量（吨） | GD4: 外包船航次
A5: 客户 | B5: =SUM(B6:B48) -> 1500000 | C5: =E5+H5 -> 336528.091 | D5: =C5/B5*100 -> 22.43520607 | E5: =SUM(E6:E32) -> 101140.398 | F5: =SUM(F6:F30) -> 65 | G5: =E5/364000*100 -> 27.78582363 | H5: =SUM(H6:H31) -> 235387.693 | I5: =SUM(I6:I31) -> 179 | J5: =H5/1136000*100 -> 20.72074762 | K5: 60291.964 | L5: 34 | M5: =SUM(M6:M29) -> 127210.091 | N5: 99 | O5: 4141.22 | P5: 3 | Q5: 8387.654 | R5: 7 | S5: =SUM(S6:S30) -> 4500 | T5: 3 | U5: 12492.352 | V5: 9 | W5: =SUM(W6:W30) -> 10464 | X5: 6 | Y5: 13170.439 | Z5: 11 | AA5: 5457.572 | AB5: 3 | AC5: 24998.463 | AD5: 18 | AE5: 1546.474 | AF5: 1 | AG5: 8905.271 | AH5: 7 | AI5: =SUM(AI6:AI30) -> 4520.25 | AJ5: =SUM(AJ6:AJ30) -> 3 | AK5: =SUM(AK6:AK30) -> 10309.41 | AL5: =SUM(AL6:AL30) -> 7 | AM5: =SUM(AM6:AM31) -> 3000 | AN5: 2 | AO5: 8112.068 | AP5: 6 | AQ5: 7218.918 | AR5: 4 | AS5: 21801.945 | AT5: 15
A6: 能发 | B6: 200000 | C6: 2764.03 | D6: 1.382015 | E6: =K6+O6+S6+W6+AA6+AE6+AI6+AM6+AQ6+AU6+AY6+BC6+BG6+BK6+BO6+BS6+BW6+CA6+CE6+CI6+CM6+CQ6+CU6 -> 1812.39 | F6: =L6+P6+T6+X6+AB6+AF6+AJ6+AN5+AR5+AV5+AZ5+BD5+BH5+BL5+BP5+BT5+BX5+CB5+CF5+CJ5+CN5+CR5 -> 7 | H6: =M6+Q6+U6+Y6+AC6+AG6+AK6+AO6+AS6+AW6+BA6+BE6+BI6+BM6+BQ6+BU6+BY6+CC6+CG6+CK6+CO6+CS6 -> 951.64 | I6: =N6+R6+V6+Z6+AD6+AH6+AL6+AP6+AT6+AX6+BB6+BF6+BJ6+BN6+BR6+BV6+BZ6+CD6+CH6+CL6+CP6+CT6 -> 1 | K6: 1812.39 | L6: 1 | M6: 951.64 | N6: 1
A7: 双水码头 | B7: 220000 | C7: 61379.509 | D7: 27.89977682 | E7: =K7+O7+S7+W7+AA7+AE7+AI7+AM7+AQ7+AU7+AY7+BC7+BG7+BK7+BO7+BS7+BW7+CA7+CE7+CI7+CM7+CQ7+CU7 -> 43097.062 | F7: 21 | H7: 18282.447 | I7: =N7+R7+V7+Z7+AD7+AH7+AL7+AP7+AT7+AX7+BB7+BF7+BJ7+BN7+BR7+BV7+BZ7+CD7+CH7+CL7+CP7+CT7 -> 13 | K7: 17518.832 | L7: 10 | M7: 9743.066 | N7: 7 | O7: 2700 | P7: 2 | Q7: 1020 | R7: 1 | S7: 1500 | T7: 1 | U7: 2556.05 | V7: 2 | W7: 6964 | X7: 4 | Y7: 3455.42 | Z7: 2 | AA7: 3955.674 | AB7: 2 | AC7: 1507.911 | AD7: 1 | AE7: 1546.474 | AF7: 1 | AI7: 1500 | AJ7: 1 | AM7: 3000 | AN7: 2 | AQ7: 4412.082 | AR7: 2
A8: 东糖集团 | B8: 200000 | C8: 0 | D8: 0 | E8: 0 | F8: 4 | H8: 0 | I8: 0
A9: 市粮食集团 | B9: 150000 | C9: 55211.044 | D9: 36.80736267 | E9: 2598.46 | F9: 1 | H9: 52612.584 | I9: 39 | K9: 2598.46 | L9: 1 | M9: 29024.311 | N9: 20 | Q9: 5773.954 | R9: 4 | U9: 2419.922 | V9: 2 | Y9: 3295.37 | Z9: 3 | AG9: 4213.41 | AH9: 4 | AK9: 1018.16 | AL9: 1 | AO9: 853.386 | AP9: 1 | AS9: 6014.071 | AT9: 4
A10: 江苏华穗 | B10: 150000 | C10: 0 | D10: 0 | E10: 0 | F10: 0 | H10: 0 | I10: 0
A11: 肇庆福加德 | B11: 140000 | C11: 58150.424 | D11: 41.53601714 | E11: 2379.56 | F11: 1 | H11: 55770.864 | I11: 38 | K11: 2379.56 | L11: 1 | M11: 18806.918 | N11: 16 | U11: 6096.088 | V11: 3 | Y11: 4085.066 | Z11: 3 | AC11: 4917.086 | AD11: 3 | AG11: 1931.746 | AH11: 1 | AK11: 7463.56 | AL11: 4 | AO11: 2816.92 | AP11: 2 | AS11: 9653.48 | AT11: 6
A12: 常熟港顺 | B12: 100000 | C12: 35679.326 | D12: 35.679326 | E12: 30465.326 | F12: 17 | H12: 5214 | I12: 4 | K12: 20945.076 | L12: 11 | M12: 3714 | N12: 3 | S12: 3000 | T12: 2 | W12: 3500 | X12: 2 | Y12: 1500 | Z12: 1 | AI12: 3020.25 | AJ12: 2
A13: 深圳海之峰 | B13: 80000 | C13: 15966.704 | D13: 19.95838 | E13: 0 | F13: 0 | H13: 15966.704 | I13: 12 | M13: 15855.364 | N13: 11 | AS13: 111.34 | AT13: 1
A14: 泰来国际 | B14: 60000 | C14: 11394.034 | D14: 18.99005667 | E14: 7866.61 | F14: 5 | H14: 3527.424 | I14: 3 | K14: 4864.712 | L14: 4 | AA14: 1501.898 | AB14: 1 | AC14: 2515.449 | AD14: 2 | AG14: 1011.975 | AH14: 1 | AQ14: 1500 | AR14: 1
A15: 广州港新港 | B15: 30000 | C15: 7092.852 | D15: 23.64284 | E15: 0 | F15: 1 | H15: 7092.852 | I15: 5 | AC15: 7092.852 | AD15: 5
A16: 惠安仓储 | B16: 40000 | C16: 4112.74 | D16: 10.28185 | E16: 0 | F16: 0 | H16: 4112.74 | I16: 2 | M16: 4112.74 | N16: 2
A17: 深圳福加德 | B17: 30000 | C17: 4725.481 | D17: 15.75160333 | E17: 0 | F17: 0 | H17: 4725.481 | I17: 4 | M17: 4725.481 | N17: 4
A18: 金禾面粉 | B18: 20000 | C18: 0 | D18: 0 | E18: 0 | F18: 0 | H18: 0 | I18: 0
A19: 省粮油储运 | B19: 20000 | C19: 0 | D19: 0 | E19: 0 | F19: 0 | H19: 0 | I19: 0
A20: 骏宝饲料 | B20: 20000 | C20: 6168.626 | D20: 30.84313 | E20: 0 | F20: 0 | H20: 6168.626 | I20: 14 | M20: 3620.332 | N20: 8 | U20: 429.472 | V20: 1 | Y20: 834.583 | Z20: 2 | AC20: 431.169 | AD20: 1 | AK20: 429.55 | AL20: 1 | AS20: 423.52 | AT20: 1
A21: 益嘉物流 | B21: 20000 | C21: 20571.68 | D21: 102.8584 | E21: 0 | F21: 0 | H21: 20571.68 | I21: 15 | M21: 13277.57 | N21: 11 | AC21: 1842.11 | AD21: 1 | AG21: 1748.14 | AH21: 1 | AO21: 1736.69 | AP21: 1 | AS21: 1967.17 | AT21: 1
A22: 中山新纪元 | B22: 20000 | C22: 1497.674 | D22: 7.48837 | E22: 0 | F22: 0 | H22: 1497.674 | I22: 1 | M22: 1497.674 | N22: 1
A23: 广州港船务 | C23: 7812.176 | E23: 4248.056 | F23: 2 | H23: 3564.12 | I23: 2 | K23: 1500 | L23: 1 | M23: 1639.68 | N23: 1 | O23: 1441.22 | P23: 1 | AQ23: 1306.836 | AR23: 1 | AS23: 1924.44 | AT23: 1
A24: 双胞胎 | C24: 14329.558 | E24: 8672.934 | F24: 6 | H24: 5656.624 | I24: 3 | K24: 8672.934 | L24: 5 | M24: 5656.624 | N24: 3
A25: 国贸 | C25: 3817.12 | E25: 0 | F25: 0 | H25: 3817.12 | I25: 3 | M25: 3817.12 | N25: 3
A26: 华壬 | C26: 1996.06 | E26: 0 | F26: 0 | H26: 1996.06 | I26: 2 | M26: 998.44 | N26: 1 | AO26: 997.62 | AP26: 1
A27: 利远 | C27: 6024.34 | E27: 0 | F27: 0 | H27: 6024.34 | I27: 5 | M27: 6024.34 | N27: 5
A28: 良运 | C28: 10265.663 | E28: 0 | F28: 0 | H28: 10265.663 | I28: 8 | M28: 1980.077 | N28: 1 | Q28: 1593.7 | R28: 2 | AC28: 6691.886 | AD28: 5
A29: 粤裕丰 | C29: 1764.714 | E29: 0 | F29: 0 | H29: 1764.714 | I29: 1 | M29: 1764.714 | N29: 1
A30: 长晟 | C30: 2388.96 | E30: 0 | F30: 0 | H30: 2388.96 | I30: 2 | U30: 990.82 | V30: 1 | AK30: 1398.14 | AL30: 1
A31: 金苹果 | C31: =E31+H31 -> 3415.376 | E31: =K31+O31+S31+W31+AA31+AE31+AI31+AM31+AQ31+AU31+AY31+BC31+BG31+BK31+BO31+BS31+BW31+CA31+CE31+CI31+CM31+CQ31+CU31 -> 0 | F31: =L31+P31+T31+X31+AB31+AF31+AJ31+AN30+AR30+AV30+AZ30+BD30+BH30+BL30+BP30+BT30+BX30+CB30+CF30+CJ30+CN30+CR30 -> 0 | H31: =M31+Q31+U31+Y31+AC31+AG31+AK31+AO31+AS31+AW31+BA31+BE31+BI31+BM31+BQ31+BU31+BY31+CC31+CG31+CK31+CO31+CS31 -> 3415.376 | I31: =N31+R31+V31+Z31+AD31+AH31+AL31+AP31+AT31+AX31+BB31+BF31+BJ31+BN31+BR31+BV31+BZ31+CD31+CH31+CL31+CP31+CT31 -> 2 | AO31: 1707.452 | AP31: 1 | AS31: 1707.924 | AT31: 1

Sheet 货量统计表-汽运部-月度
A1: 汽运部月度货量统计情况
A3: 统计周期 | B3: 集装箱 合计箱数 | C3: 散货 合计吨数 | D3: 集装箱 | H3: 散货
D4: 侨益 完成箱量 | E4: 自接单 完成箱量 | F4: 新会 完成箱量 | G4: 完成比 （%） | H4: 钢材 完成量（吨） | I4: 粮食、饲料 完成量（吨） | J4: 其他货类 完成量（吨） | K4: 完成比 （%）
A5: 全年累计 | B5: =D5+E5+F5 -> 6855 | C5: =H5+I5+J5 -> 96522.274 | D5: ='货量统计表-汽运（含新会）'!B3 -> 4574 | E5: ='货量统计表-汽运（含新会）'!E3 -> 1287 | F5: ='货量统计表-汽运（含新会）'!H3 -> 994 | G5: ='货量统计表-汽运（含新会）'!J3 -> 0.2211290323 | H5: ='货量统计表-汽运（含新会）'!B7 -> 44657.4 | I5: ='货量统计表-汽运（含新会）'!E7 -> 46092.23 | J5: ='货量统计表-汽运（含新会）'!H7 -> 5772.644 | K5: ='货量统计表-汽运（含新会）'!J7 -> 0.1378889629
A6: 1-2月份 （1月1日-3月1日） | B6: =D6+E6+F6 -> 3535 | C6: =H6+I6+J6 -> 31403.45 | D6: ='货量统计表-汽运（含新会）'!B11 -> 2271 | E6: ='货量统计表-汽运（含新会）'!C11 -> 740 | F6: ='货量统计表-汽运（含新会）'!D11 -> 524 | G6: =SUM(D6+E6+F6)/31000*100 -> 11.40322581 | H6: ='货量统计表-汽运（含新会）'!E11 -> 24647.5 | I6: ='货量统计表-汽运（含新会）'!F11 -> 2244.75 | J6: ='货量统计表-汽运（含新会）'!G11 -> 4511.2 | K6: =SUM(H6+J6+I6)/700000*100 -> 4.486207143
A7: 3月份 （3月2日-3月29日) | B7: 1921 | C7: 34086.2 | D7: =SUM('货量统计表-汽运（含新会）'!B12:B15) -> 1344 | E7: =SUM('货量统计表-汽运（含新会）'!C12:C15) -> 347 | F7: =SUM('货量统计表-汽运（含新会）'!D12:D15) -> 230 | G7: =SUM(D7+E7+F7)/31000*100 -> 6.196774194 | H7: =SUM('货量统计表-汽运（含新会）'!E12:E15) -> 18015.9 | I7: =SUM('货量统计表-汽运（含新会）'!F12:F15) -> 15233.14 | J7: =SUM('货量统计表-汽运（含新会）'!G12:G15) -> 837.16 | K7: =SUM(H7+J7+I7)/700000*100 -> 4.869457143
A8: 4月份 （3月30日-4月26日) | B8: 1399 | C8: 31032.624 | D8: ='货量统计表-汽运（含新会）'!B16+'货量统计表-汽运（含新会）'!B17+'货量统计表-汽运（含新会）'!B18+'货量统计表-汽运（含新会）'!B19 -> 959 | E8: ='货量统计表-汽运（含新会）'!C16+'货量统计表-汽运（含新会）'!C17+'货量统计表-汽运（含新会）'!C18+'货量统计表-汽运（含新会）'!C19 -> 200 | F8: ='货量统计表-汽运（含新会）'!D16+'货量统计表-汽运（含新会）'!D17+'货量统计表-汽运（含新会）'!D18+'货量统计表-汽运（含新会）'!D19 -> 240 | G8: =SUM(D8+E8+F8)/31000*100 -> 4.512903226 | H8: ='货量统计表-汽运（含新会）'!E16+'货量统计表-汽运（含新会）'!E17+'货量统计表-汽运（含新会）'!E18+'货量统计表-汽运（含新会）'!E19 -> 1994 | I8: ='货量统计表-汽运（含新会）'!F16+'货量统计表-汽运（含新会）'!F17+'货量统计表-汽运（含新会）'!F18+'货量统计表-汽运（含新会）'!F19 -> 28614.34 | J8: ='货量统计表-汽运（含新会）'!G16+'货量统计表-汽运（含新会）'!G17+'货量统计表-汽运（含新会）'!G18+'货量统计表-汽运（含新会）'!G19 -> 424.284 | K8: =SUM(H8+J8+I8)/700000*100 -> 4.433232
A9: 5月份 （4月27日-5月31日) | B9: 0 | C9: 0 | D9: ='货量统计表-汽运（含新会）'!B20+'货量统计表-汽运（含新会）'!B21+'货量统计表-汽运（含新会）'!B22+'货量统计表-汽运（含新会）'!B23+'货量统计表-汽运（含新会）'!B24 -> 0 | E9: ='货量统计表-汽运（含新会）'!C20+'货量统计表-汽运（含新会）'!C21+'货量统计表-汽运（含新会）'!C22+'货量统计表-汽运（含新会）'!C23+'货量统计表-汽运（含新会）'!C24 -> 0 | F9: ='货量统计表-汽运（含新会）'!D20+'货量统计表-汽运（含新会）'!D21+'货量统计表-汽运（含新会）'!D22+'货量统计表-汽运（含新会）'!D23+'货量统计表-汽运（含新会）'!D24 -> 0 | G9: =SUM(D9+E9+F9)/31000*100 -> 0 | H9: ='货量统计表-汽运（含新会）'!E20+'货量统计表-汽运（含新会）'!E21+'货量统计表-汽运（含新会）'!E22+'货量统计表-汽运（含新会）'!E23+'货量统计表-汽运（含新会）'!E24 -> 0 | I9: ='货量统计表-汽运（含新会）'!F20+'货量统计表-汽运（含新会）'!F21+'货量统计表-汽运（含新会）'!F22+'货量统计表-汽运（含新会）'!F23+'货量统计表-汽运（含新会）'!F24 -> 0 | J9: ='货量统计表-汽运（含新会）'!G20+'货量统计表-汽运（含新会）'!G21+'货量统计表-汽运（含新会）'!G22+'货量统计表-汽运（含新会）'!G23+'货量统计表-汽运（含新会）'!G24 -> 0 | K9: =SUM(H9+J9+I9)/700000*100 -> 0
A10: 6月份 （6月1日-6月28日) | B10: 0 | C10: 0
A11: 7月份 （6月29日-7月26日) | B11: 0 | C11: 0
A12: 8月份 （7月27日-8月30日) | B12: 0 | C12: 0
A13: 9月份 （8月31日-9月27日) | B13: 0 | C13: 0
A14: 10月份 （9月28日-10月25日) | B14: 0 | C14: 0
A15: 11月份 （10月26日-11月29日) | B15: 0 | C15: 0

Sheet 货量统计表-汽运（含新会）
A1: 2019年集装箱预算完成情况 | K1: 说明：以送货时间为计算起止时间
A2: 侨益 预算箱量 | B2: 侨益 完成箱量 | C2: 侨益 完成比例（%） | D2: 自接单 预算箱量 | E2: 自接单 完成箱量 | F2: 自接单 完成比例（%） | G2: 新会 预算箱量 | H2: 新会 完成箱量 | I2: 新会 完成比例 | J2: 全年完成进度
A3: 14000 | B3: =SUM(B11:B54) -> 4574 | C3: =B3/A3*100 -> 32.67142857 | D3: 9100 | E3: =SUM(C11:C54) -> 1287 | F3: =E3/D3*100 -> 14.14285714 | G3: 8000 | H3: =SUM(D11:D54) -> 994 | I3: =H3/G3*100 -> 12.425 | J3: =(B3+E3+H3)/31000 -> 0.2211290323
A5: 2019年散货预算完成情况
A6: 钢材 预算量（吨） | B6: 钢材 完成量（吨） | C6: 钢材 完成比例（%） | D6: 粮食、饲料 预算量（吨） | E6: 粮食、饲料 完成量（吨） | F6: 粮食、饲料 完成比例（%） | G6: 其他货类 预算量（吨） | H6: 其他货类 完成量（吨） | I6: 其他货类 完成比例（%） | J6: 全年完成进度
A7: 400000 | B7: =SUM(E11:E54) -> 44657.4 | C7: =B7/A7*100 -> 11.16435 | D7: 250000 | E7: =SUM(F11:F54) -> 46092.23 | F7: =E7/D7*100 -> 18.436892 | G7: 50000 | H7: =SUM(G11:G54) -> 5772.644 | I7: =H7/G7*100 -> 11.545288 | J7: =(B7+E7+H7)/700000 -> 0.1378889629
A9: 汇报周期 | B9: 集装箱 | E9: 散货 | H9: 集装箱 每周小计箱量 | I9: 散货 每周小计货量
B10: 侨益 完成箱量 | C10: 自接单 完成箱量 | D10: 新会 完成箱量 | E10: 钢材 完成量（吨） | F10: 粮食、饲料 完成量（吨） | G10: 其他货类 完成量（吨）
A11: 第1-9周 （1月1日-3月1日） | B11: 2271 | C11: 740 | D11: 524 | E11: 24647.5 | F11: 2244.75 | G11: 4511.2 | H11: =SUM(B11:D11) -> 3535 | I11: =SUM(E11:G11) -> 31403.45
A12: 第10周 （3月2日-3月8日） | B12: 332 | C12: 41 | D12: 120 | E12: 8515.06 | H12: =SUM(B12:D12) -> 493 | I12: =SUM(E12:G12) -> 8515.06
A13: 第11周 （3月9日-3月15日） | B13: 351 | C13: 113 | D13: 50 | F13: 620 | G13: 296.26 | H13: 514 | I13: 916.26
A14: 第12周 （3月16日-3月22日） | B14: 266 | C14: 155 | D14: 22 | E14: 7572.28 | F14: 2742.14 | H14: 443 | I14: 10314.42
A15: 第13周 （3月23日-3月29日） | B15: 395 | C15: 38 | D15: 38 | E15: 1928.56 | F15: 11871 | G15: 540.9 | H15: 471 | I15: 14340.46
A16: 第14周 （3月30日-4月5日） | B16: 264 | C16: 40 | D16: 84 | F16: 10826.36 | G16: 290.684 | H16: 388 | I16: 11117.044
A17: 第15周 （4月6日-4月12日） | B17: 219 | C17: 70 | D17: 28 | E17: 1994 | F17: 164 | G17: 110.6 | H17: =SUM(B17:D17) -> 317 | I17: =SUM(E17:G17) -> 2268.6
A18: 第16周 （4月13日-4月19日） | B18: 221 | C18: 29 | D18: 33 | F18: 16000 | G18: 23 | H18: =SUM(B18:D18) -> 283 | I18: =SUM(E18:G18) -> 16023
A19: 第17周 （4月20日-4月26日） | B19: 255 | C19: 61 | D19: 95 | F19: 1623.98 | H19: =SUM(B19:D19) -> 411 | I19: =SUM(E19:G19) -> 1623.98
A20: 第18周 （4月27日-5月3日） | H20: 0 | I20: 0
A21: 第19周 （5月4日-5月10日） | H21: 0 | I21: 0
A22: 第20周 （5月11日-5月17日） | H22: 0 | I22: 0
A23: 第21周 （5月18日-5月24日） | H23: 0 | I23: 0
A24: 第22周 （5月25日-5月31日） | H24: 0 | I24: 0
A25: 第23周 （6月1日-6月7日） | H25: 0 | I25: 0
A26: 第24周 （6月8日-6月14日） | H26: 0 | I26: 0
A27: 第25周 （6月15日-6月21日） | H27: 0 | I27: 0
A28: 第26周 （6月22日-6月28日） | H28: 0 | I28: 0
A29: 第27周 | H29: 0 | I29: 0
A30: 第28周 | H30: 0 | I30: 0
A31: 第29周 | H31: 0 | I31: 0
A32: 第30周 | H32: 0 | I32: 0
A33: 第31周 | H33: 0 | I33: 0
A34: 第32周 | H34: 0 | I34: 0
A35: 第33周 | H35: 0 | I35: 0
A36: 第34周 | H36: 0 | I36: 0
A37: 第35周 | H37: 0 | I37: 0
A38: 第36周 | H38: 0 | I38: 0
A39: 第37周 | H39: 0 | I39: 0
A40: 第38周 | H40: 0 | I40: 0
A41: 第39周 | H41: 0 | I41: 0
A42: 第40周 | H42: 0 | I42: 0
A43: 第41周 | H43: 0 | I43: 0
A44: 第42周 | H44: 0 | I44: 0
A45: 第43周 | H45: 0 | I45: 0
A46: 第44周 | H46: 0 | I46: 0
A47: 第45周 | H47: 0 | I47: 0
A48: 第46周 | H48: 0 | I48: 0
A49: 第47周 | H49: 0 | I49: 0
A50: 第48周 | H50: 0 | I50: 0
A51: 第49周 | H51: 0 | I51: 0
A52: 第50周 | H52: 0 | I52: 0
A53: 第51周 | H53: 0 | I53: 0
A54: 第52周 | H54: 0 | I54: 0

Sheet Sheet3 (hidden)
A1: 货名 | B1: 2017预算（集）吨 | C1: 1-2月实际集装箱货量 | D1: 预算完成比例
A2: DDGS | B2: 203000 | C2: 32768.261 | D2: =C2/B2 -> 0.1614200049
A3: 米糠 | B3: 140000 | C3: 11934.639 | D3: =C3/B3 -> 0.08524742143
A4: 鱼粉 | B4: 107000 | C4: 14078.95 | D4: 0.131578972
A5: 大米 | B5: 100000 | C5: 1995.7784 | D5: 0.019957784
A6: 大豆 | B6: 50000 | C6: 390.965 | D6: 0.0078193
A7: 苜蓿草 | B7: 42000 | C7: 715.97 | D7: 0.01704690476
A8: 菜粕 | B8: 34000 | C8: 0 | D8: 0
A9: 银精矿 | B9: 25000 | C9: 6382.51 | D9: 0.2553004
A10: 铅精矿 | B10: 25000 | C10: 0 | D10: 0
A11: 大麦 | B11: 15000 | C11: 8260.55 | D11: 0.5507033333
A12: 高粱 | B12: 15000 | C12: 1546.09 | D12: 0.1030726667
A13: 乳清粉 | B13: 10500 | C13: 405.945 | D13: 0.03866142857
A14: 木薯渣粉/颗粒 | B14: 10000 | C14: 270.7 | D14: 0.02707
A15: 芝麻 | B15: 3000 | C15: 3328.4362 | D15: 1.109478733
A16: 芝麻油 | B16: 3000 | C16: 155.64 | D16: 0.05188
A17: 其他 | B17: 0 | C17: 17373.0208 | D17: -

Sheet Sheet5 (hidden)
A1: 行标签 | B1: 2017预算（散）吨 | C1: 1-2月实际散船货量 | D1: 预算完成比例
A2: 高粱 | B2: 3040000 | C2: 426851.76 | D2: =C2/B2 -> 0.1404117632
A3: 大豆 | B3: 400000 | C3: 0 | D3: =C3/B3 -> 0
A4: 大麦 | B4: 260000 | C4: 292766.22 | D4: 1.126023923
A5: 原糖 | B5: 250000 | C5: 59000 | D5: 0.236
A6: 小麦 | B6: 180000 | C6: 115249.941 | D6: 0.64027745
A7: 玉米 | B7: 120000 | C7: 0 | D7: 0
A8: 甜菜粕 | B8: 100000 | C8: 0 | D8: 0
A9: 豌豆 | B9: 90000 | C9: 31092.91 | D9: 0.3454767778
A10: 菜粕 | B10: 80000 | C10: 0 | D10: 0
A11: 锌精矿 | B11: 60000 | C11: 24011 | D11: 0.4001833333
A12: 木薯渣粉/颗粒 | B12: 60000 | C12: 0 | D12: 0
A13: 棕榈油 | B13: 30000 | C13: 0 | D13: 0
A14: 铅精矿 | B14: 25000 | C14: 0 | D14: 0
A15: 银精矿 | B15: 25000 | C15: 0 | D15: 0
A16: 其他 | B16: 0 | C16: 169744.741 | D16: -
